{"text_format":"1","workbook":"xlsx","n_sheets":5,"sheets":["PLANILHA RESUMO","CRONOGRAMA FISICO-FINANCEIRO","PLANILHA PADRÃO","COMPOSIÇÃO DO BDI","COMPOSIÇÃO DO BDI REDUZIDO"],"not_rendered":{"charts":0,"images":2,"macros":1,"external_links":2,"defined_names":75,"comments":0,"pivot_tables":0},"unopened":[],"bounds":{"document_bytes":16777216,"sheet_cells":100000,"rows_first":2000,"rows_last":500,"rows_between":2000,"halvings":0,"cell_chars":16384,"cell_head_chars":4096},"cells_cut":0,"cells_raw":0,"read":"whole","date_system":"1900"}

{"sheet":"PLANILHA RESUMO","index":0,"n_rows":82,"n_cols":6,"rows_kept":82,"cut":false,"hidden":false,"merged":[[21,1,21,3],[19,1,19,3],[43,1,43,3],[5,1,5,5],[33,1,33,3],[31,1,31,3],[29,1,29,3],[27,1,27,3],[25,1,25,3],[23,1,23,3],[9,0,9,5],[10,0,10,5],[13,1,13,3],[15,1,15,3],[17,1,17,3],[0,0,3,5],[4,0,4,5],[6,0,6,5],[7,0,7,5],[8,0,8,1],[49,1,49,3],[41,1,41,3],[39,1,39,3],[37,1,37,3],[35,1,35,3],[45,1,45,3],[47,1,47,3]]}
["RESUMO PLANILHA ORÇAMENTÁRIA"]
[]
[]
[]
["FIEMT - FEDERAÇÃO DAS INDUSTRIAS DO ESTADO DE MATO GROSSO"]
["OBRA:","CONTRATAÇÃO DE EMPRESA DE ENGENHARIA PARA A REALIZAÇÃO OBRA DE REFORMA DO GABINETE DA SUPERINTENDENCIA, DIRETORIA, RECEPÇÃO, BANHEROS E SALAS DE REUNIÃO."]
["UNIDADE OPERACIONAL: FIEMT"]
["ENDEREÇO: Av. Historiador Rubens de Mendonça, N.4571, Centro Politico Administrativo, Cuiabá - MT. CEP 78.049.940"]
["CONSTRUTORA:"]
["RESPONSÁVEL TÉCNICO:"]
[]
["ITEM","DESCRIÇÃO",null,null,"%","Valor Total (R$)"]
[]
["1.0",{"$f":"VLOOKUP(A14,'PLANILHA PADRÃO'!$1:$1048576,2,0)","v":"ADMINISTRAÇÃO"},null,null,{"$f":"F14/$F$50","v":0.1311693503382915},{"$f":"VLOOKUP(A14,'PLANILHA PADRÃO'!$1:$1048576,6,0)","v":69292.350000000006}]
[]
["1.1",{"$f":"VLOOKUP(A16,'PLANILHA PADRÃO'!$1:$1048576,2,0)","v":"CANTEIRO DE OBRAS"},null,null,{"$f":"F16/$F$50","v":1.9567781644682553E-2},{"$f":"VLOOKUP(A16,'PLANILHA PADRÃO'!$1:$1048576,6,0)","v":10337.000000000002}]
[]
["1.2",{"$f":"VLOOKUP(A18,'PLANILHA PADRÃO'!$1:$1048576,2,0)","v":"MOBILIZAÇÃO E DESMOBILIZAÇÃO CARGA, MANOBRA E DESCARGA DE CONTEINERS"},null,null,{"$f":"F18/$F$50","v":2.2350090386227916E-3},{"$f":"VLOOKUP(A18,'PLANILHA PADRÃO'!$1:$1048576,6,0)","v":1180.68}]
[]
["1.3",{"$f":"VLOOKUP(A20,'PLANILHA PADRÃO'!$1:$1048576,2,0)","v":"DEMOLIÇÕES E RETIRADAS"},null,null,{"$f":"F20/$F$50","v":1.938425678926493E-2},{"$f":"VLOOKUP(A20,'PLANILHA PADRÃO'!$1:$1048576,6,0)","v":10240.050000000001}]
[]
["1.4",{"$f":"VLOOKUP(A22,'PLANILHA PADRÃO'!$1:$1048576,2,0)","v":"ESTRUTURA DE CONCRETO"},null,null,{"$f":"F22/$F$50","v":6.9656153737001443E-4},{"$f":"VLOOKUP(A22,'PLANILHA PADRÃO'!$1:$1048576,6,0)","v":367.97}]
[]
["1.5",{"$f":"VLOOKUP(A24,'PLANILHA PADRÃO'!$1:$1048576,2,0)","v":"ALVENARIAS E PAINÉIS GABINETE SESI/SALA DE ARQUIVO/RECEPÇÃO"},null,null,{"$f":"F24/$F$50","v":2.6793322731610069E-2},{"$f":"VLOOKUP(A24,'PLANILHA PADRÃO'!$1:$1048576,6,0)","v":14154.01}]
[]
["1.6",{"$f":"VLOOKUP(A26,'PLANILHA PADRÃO'!$1:$1048576,2,0)","v":"ESQUADRIAS"},null,null,{"$f":"F26/$F$50","v":8.7572230612771224E-2},{"$f":"VLOOKUP(A26,'PLANILHA PADRÃO'!$1:$1048576,6,0)","v":46261.460000000006}]
[]
["1.7",{"$f":"VLOOKUP(A28,'PLANILHA PADRÃO'!$1:$1048576,2,0)","v":"PISOS"},null,null,{"$f":"F28/$F$50","v":9.2997600149863788E-2},{"$f":"VLOOKUP(A28,'PLANILHA PADRÃO'!$1:$1048576,6,0)","v":49127.5}]
[]
["1.8",{"$f":"VLOOKUP(A30,'PLANILHA PADRÃO'!$1:$1048576,2,0)","v":"REVESTIMENTOS"},null,null,{"$f":"F30/$F$50","v":9.4107381292072537E-2},{"$f":"VLOOKUP(A30,'PLANILHA PADRÃO'!$1:$1048576,6,0)","v":49713.760000000009}]
[]
["1.9",{"$f":"VLOOKUP(A32,'PLANILHA PADRÃO'!$1:$1048576,2,0)","v":"FORRO"},null,null,{"$f":"F32/$F$50","v":5.0161517016644182E-2},{"$f":"VLOOKUP(A32,'PLANILHA PADRÃO'!$1:$1048576,6,0)","v":26498.640000000003}]
[]
["1.10",{"$f":"VLOOKUP(A34,'PLANILHA PADRÃO'!$1:$1048576,2,0)","v":"PINTURA"},null,null,{"$f":"F34/$F$50","v":3.5067634067604381E-2},{"$f":"VLOOKUP(A34,'PLANILHA PADRÃO'!$1:$1048576,6,0)","v":18525.05}]
[]
["1.11",{"$f":"VLOOKUP(A36,'PLANILHA PADRÃO'!$1:$1048576,2,0)","v":"INSTALAÇÃO DE ÁGUA FRIA, ESGOTO E DRENAGEM"},null,null,{"$f":"F36/$F$50","v":4.8727316176431596E-3},{"$f":"VLOOKUP(A36,'PLANILHA PADRÃO'!$1:$1048576,6,0)","v":2574.0999999999995}]
[]
["1.12",{"$f":"VLOOKUP(A38,'PLANILHA PADRÃO'!$1:$1048576,2,0)","v":"INSTALAÇÕES ELÉTRICA DE BAIXA TENSÃO"},null,null,{"$f":"F38/$F$50","v":0.27276900787466435},{"$f":"VLOOKUP(A38,'PLANILHA PADRÃO'!$1:$1048576,6,0)","v":144094.67999999996}]
[]
["1.13",{"$f":"VLOOKUP(A40,'PLANILHA PADRÃO'!$1:$1048576,2,0)","v":"LOGICA E TELEFONICA"},null,null,{"$f":"F40/$F$50","v":7.3908024270788242E-2},{"$f":"VLOOKUP(A40,'PLANILHA PADRÃO'!$1:$1048576,6,0)","v":39043.119999999995}]
[]
["1.14",{"$f":"VLOOKUP(A42,'PLANILHA PADRÃO'!$1:$1048576,2,0)","v":"CLIMATIZAÇÃO - AR CONDICIONADO"},null,null,{"$f":"F42/$F$50","v":9.0913613421351545E-3},{"$f":"VLOOKUP(A42,'PLANILHA PADRÃO'!$1:$1048576,6,0)","v":4802.66}]
[]
["1.15",{"$f":"VLOOKUP(A44,'PLANILHA PADRÃO'!$1:$1048576,2,0)","v":"INFRAESTRUTURA PARA INSTALAÇÃO DE AUDIO E VÍDEO"},null,null,{"$f":"F44/$F$50","v":3.8699855027668616E-2},{"$f":"VLOOKUP(A44,'PLANILHA PADRÃO'!$1:$1048576,6,0)","v":20443.830000000002}]
[]
["1.16",{"$f":"VLOOKUP(A46,'PLANILHA PADRÃO'!$1:$1048576,2,0)","v":"LOUÇAS E METÁIS"},null,null,{"$f":"F46/$F$50","v":4.0342416681040723E-2},{"$f":"VLOOKUP(A46,'PLANILHA PADRÃO'!$1:$1048576,6,0)","v":21311.539999999997}]
[]
["1.17",{"$f":"VLOOKUP(A48,'PLANILHA PADRÃO'!$1:$1048576,2,0)","v":"LIMPEZA FINAL PARA ENTREGA"},null,null,{"$f":"F48/$F$50","v":5.6395796726166445E-4},{"$f":"VLOOKUP(A48,'PLANILHA PADRÃO'!$1:$1048576,6,0)","v":297.92}]
[]
[null,"VALOR TOTAL",null,null,{"$f":"SUBTOTAL(9,E14:E49)","v":0.99999999999999989},{"$f":"SUBTOTAL(9,F14:F49)","v":528266.32000000007}]
[]
[]
[]
[]
[]
[]
[]
[]
[]
[]
[]
[]
[]
[]
[]
[]
[]
[]
[]
[]
[]
[]
[]
[]
[]
[]
[]
[]
[]
[]
[]
[null," "]

{"sheet":"CRONOGRAMA FISICO-FINANCEIRO","index":1,"n_rows":32,"n_cols":12,"rows_kept":32,"cut":false,"hidden":false,"merged":[[0,0,2,1],[0,2,2,7],[0,10,1,11],[3,0,3,11],[4,3,4,10],[4,1,4,2],[10,10,10,11],[5,0,5,2],[6,0,6,2],[7,0,8,11],[10,0,11,0],[10,1,11,1],[10,2,10,3],[10,4,10,5],[10,6,10,7],[10,8,10,9]]}
[null,null,"CRONOGRAMA FÍSICO FINANCEIRO",null,null,null,null,null,null,null,"UNAEN-FF-003"]
[]
[null,null,null,null,null,null,null,null,null,null,"Revisão:\n00","Data:\n11/05/2017"]
["FIEMT - FEDERAÇÃO DAS INDUSTRIAS DO ESTADO DE MATO GROSSO"]
["OBRA:","CONTRATAÇÃO DE EMPRESA DE ENGENHARIA PARA A REALIZAÇÃO OBRA DE REFORMA DO GABINETE DA SUPERINTENDENCIA, DIRETORIA, RECEPÇÃO, BANHEROS E SALAS DE REUNIÃO.",null,"ENDEREÇO: Av. Historiador Rubens de Mendonça, N.4571, Centro Politico Administrativo, Cuiabá - MT. CEP 78.049.940 CIDADE: CUIABÁ-MT"]
["CONSTRUTORA:                                                                           ",null,null,"VALOR:",{"$f":"'PLANILHA RESUMO'!F50","v":528266.32000000007},null,null,"PRAZO: 03 MESES"]
["RESPONSÁVEL TÉCNICO:"]
["GERAL"]
[]
[]
["ITEM","DESCRIÇÃO","ETAPA TOTAL",null,"1 MÊS",null,"2 MESES",null,"3 MESES",null,"TOTAL "]
[null,null,"(R$)","(%)","(R$)","(%)","(R$)","(%)","(R$)","(%)","(R$)","(%)"]
[{"$f":"'PLANILHA PADRÃO'!$A$14","v":"1.0"},{"$f":"VLOOKUP(A13,'PLANILHA PADRÃO'!$1:$1048576,2,0)","v":"ADMINISTRAÇÃO"},{"$f":"'PLANILHA PADRÃO'!$F$14","v":69292.350000000006},{"$f":"C13/$C$31*100","v":13.116935033829149},{"$f":"F13*$C13/100","v":13179.40497},19.02,{"$f":"H13*$C13/100","v":34632.316529999996},49.98,{"$f":"J13*$C13/100","v":21480.628500000006},{"$f":"100-F13-H13","v":31.000000000000007},{"$f":"L13*$C13/100","v":69292.350000000006},{"$f":"F13+H13+J13","v":100}]
[{"$f":"'PLANILHA PADRÃO'!$A$21","v":"1.1"},{"$f":"VLOOKUP(A14,'PLANILHA PADRÃO'!$1:$1048576,2,0)","v":"CANTEIRO DE OBRAS"},{"$f":"'PLANILHA PADRÃO'!$F$21","v":10337.000000000002},1.9567781644682554,3445.6666666666674,{"$f":"100/3","v":33.333333333333336},3445.6666666666674,{"$f":"100/3","v":33.333333333333336},3445.6666666666674,{"$f":"100/3","v":33.333333333333336},10337.000000000002,{"$f":"F14+H14+J14","v":100}]
[{"$f":"'PLANILHA PADRÃO'!$A$29","v":"1.2"},{"$f":"VLOOKUP(A15,'PLANILHA PADRÃO'!$1:$1048576,2,0)","v":"MOBILIZAÇÃO E DESMOBILIZAÇÃO CARGA, MANOBRA E DESCARGA DE CONTEINERS"},{"$f":"'PLANILHA PADRÃO'!$F$29","v":1180.68},0.22350090386227917,590.34,50,590.34,50,0,null,1180.68,100]
[{"$f":"'PLANILHA PADRÃO'!$A$33","v":"1.3"},{"$f":"VLOOKUP(A16,'PLANILHA PADRÃO'!$1:$1048576,2,0)","v":"DEMOLIÇÕES E RETIRADAS"},{"$f":"'PLANILHA PADRÃO'!$F$33","v":10240.050000000001},1.9384256789264931,10240.050000000001,100,0,null,0,null,10240.050000000001,100]
[{"$f":"'PLANILHA PADRÃO'!$A$77","v":"1.4"},{"$f":"VLOOKUP(A17,'PLANILHA PADRÃO'!$1:$1048576,2,0)","v":"ESTRUTURA DE CONCRETO"},{"$f":"'PLANILHA PADRÃO'!$F$77","v":367.97},6.9656153737001444E-2,0,null,367.97,100,0,null,367.97,100]
[{"$f":"'PLANILHA PADRÃO'!$A$85","v":"1.5"},{"$f":"VLOOKUP(A18,'PLANILHA PADRÃO'!$1:$1048576,2,0)","v":"ALVENARIAS E PAINÉIS GABINETE SESI/SALA DE ARQUIVO/RECEPÇÃO"},{"$f":"'PLANILHA PADRÃO'!$F$85","v":14154.01},2.6793322731610067,4246.2029999999995,30,9907.8070000000007,70,0,null,14154.01,100]
[{"$f":"'PLANILHA PADRÃO'!$A$92","v":"1.6"},{"$f":"VLOOKUP(A19,'PLANILHA PADRÃO'!$1:$1048576,2,0)","v":"ESQUADRIAS"},{"$f":"'PLANILHA PADRÃO'!$F$92","v":46261.460000000006},8.7572230612771218,0,null,23130.730000000003,50,23130.730000000003,50,46261.460000000006,100]
[{"$f":"'PLANILHA PADRÃO'!$A$107","v":"1.7"},{"$f":"VLOOKUP(A20,'PLANILHA PADRÃO'!$1:$1048576,2,0)","v":"PISOS"},{"$f":"'PLANILHA PADRÃO'!$F$107","v":49127.5},9.2997600149863793,0,null,9825.5,20,39302,80,49127.5,100]
[{"$f":"'PLANILHA PADRÃO'!$A$115","v":"1.8"},{"$f":"VLOOKUP(A21,'PLANILHA PADRÃO'!$1:$1048576,2,0)","v":"REVESTIMENTOS"},{"$f":"'PLANILHA PADRÃO'!$F$115","v":49713.760000000009},9.4107381292072532,14914.128000000002,30,34799.632000000005,70,0,null,49713.760000000009,100]
[{"$f":"'PLANILHA PADRÃO'!$A$130","v":"1.9"},{"$f":"VLOOKUP(A22,'PLANILHA PADRÃO'!$1:$1048576,2,0)","v":"FORRO"},{"$f":"'PLANILHA PADRÃO'!$F$130","v":26498.640000000003},5.0161517016644179,0,null,26498.640000000003,100,0,null,26498.640000000003,100]
[{"$f":"'PLANILHA PADRÃO'!$A$134","v":"1.10"},{"$f":"VLOOKUP(A23,'PLANILHA PADRÃO'!$1:$1048576,2,0)","v":"PINTURA"},{"$f":"'PLANILHA PADRÃO'!$F$134","v":18525.05},3.5067634067604381,0,null,5557.5150000000003,30,12967.535,70,18525.05,100]
[{"$f":"'PLANILHA PADRÃO'!$A$146","v":"1.11"},{"$f":"VLOOKUP(A24,'PLANILHA PADRÃO'!$1:$1048576,2,0)","v":"INSTALAÇÃO DE ÁGUA FRIA, ESGOTO E DRENAGEM"},{"$f":"'PLANILHA PADRÃO'!$F$146","v":2574.0999999999995},{"$f":"C24/$C$31*100","v":0.48727316176431595},{"$f":"F24*$C24/100","v":1801.8699999999997},70,{"$f":"H24*$C24/100","v":772.2299999999999},30,0,null,{"$f":"L24*$C24/100","v":2574.0999999999995},100]
[{"$f":"'PLANILHA PADRÃO'!$A$172","v":"1.12"},{"$f":"VLOOKUP(A25,'PLANILHA PADRÃO'!$1:$1048576,2,0)","v":"INSTALAÇÕES ELÉTRICA DE BAIXA TENSÃO"},{"$f":"'PLANILHA PADRÃO'!$F$172","v":144094.67999999996},27.276900787466435,36023.669999999991,25,72047.339999999982,50,36023.669999999991,25,144094.67999999996,100]
[{"$f":"'PLANILHA PADRÃO'!$A$295","v":"1.13"},{"$f":"VLOOKUP(A26,'PLANILHA PADRÃO'!$1:$1048576,2,0)","v":"LOGICA E TELEFONICA"},{"$f":"'PLANILHA PADRÃO'!$F$295","v":39043.119999999995},7.3908024270788246,9760.7799999999988,25,25378.027999999998,65,3904.3119999999994,10,39043.119999999995,100]
[{"$f":"'PLANILHA PADRÃO'!$A$319","v":"1.14"},{"$f":"VLOOKUP(A27,'PLANILHA PADRÃO'!$1:$1048576,2,0)","v":"CLIMATIZAÇÃO - AR CONDICIONADO"},{"$f":"'PLANILHA PADRÃO'!$F$319","v":4802.66},0.90913613421351547,0,null,4802.66,100,0,null,4802.66,100]
[{"$f":"'PLANILHA PADRÃO'!$A$332","v":"1.15"},{"$f":"VLOOKUP(A28,'PLANILHA PADRÃO'!$1:$1048576,2,0)","v":"INFRAESTRUTURA PARA INSTALAÇÃO DE AUDIO E VÍDEO"},{"$f":"'PLANILHA PADRÃO'!$F$332","v":20443.830000000002},3.8699855027668617,6133.1490000000003,30,10221.915000000001,50,4088.7660000000005,20,20443.830000000002,100]
[{"$f":"'PLANILHA PADRÃO'!$A$345","v":"1.16"},{"$f":"VLOOKUP(A29,'PLANILHA PADRÃO'!$1:$1048576,2,0)","v":"LOUÇAS E METÁIS"},{"$f":"'PLANILHA PADRÃO'!$F$345","v":21311.539999999997},{"$f":"C29/$C$31*100","v":4.0342416681040723},{"$f":"F29*$C29/100","v":0},null,{"$f":"H29*$C29/100","v":2131.1539999999995},10,19180.385999999999,90,{"$f":"L29*$C29/100","v":21311.539999999994},100]
[{"$f":"'PLANILHA PADRÃO'!$A$366","v":"1.17"},{"$f":"VLOOKUP(A30,'PLANILHA PADRÃO'!$1:$1048576,2,0)","v":"LIMPEZA FINAL PARA ENTREGA"},{"$f":"'PLANILHA PADRÃO'!$F$366","v":297.92},5.6395796726166444E-2,null,null,0,null,297.92,100,297.92,100]
[null,"TOTAL",{"$f":"SUM(C13:C30)","v":528266.32000000007},{"$f":"SUM(D13:D30)","v":99.999999999999986},{"$f":"SUM(E13:E30)","v":100335.26163666666},{"$f":"E31/$C31*100","v":18.993310350859893},{"$f":"SUM(G13:G30)","v":264109.44419666665},{"$f":"G31/$C31*100","v":49.995510634989301},{"$f":"SUM(I13:I30)","v":163821.6141666667},{"$f":"I31/$C31*100","v":31.011179014150791},{"$f":"SUM(K13:K30)","v":528266.32000000007},{"$f":"K31/$C31*100","v":100}]
[null,"TOTAL ACUMULADO",null,null,{"$f":"E31","v":100335.26163666666},{"$f":"E32/$C31*100","v":18.993310350859893},{"$f":"G31+E32","v":364444.70583333331},{"$f":"G32/$C31*100","v":68.988820985849202},{"$f":"I31+G32","v":528266.32000000007},{"$f":"I32/$C31*100","v":100}]

{"sheet":"PLANILHA PADRÃO","index":2,"n_rows":369,"n_cols":32,"rows_kept":369,"cut":false,"hidden":false,"merged":[[4,0,4,5],[7,0,7,5],[6,0,6,5],[8,0,8,5],[5,1,5,5],[0,3,1,5],[2,3,3,3],[2,4,3,4],[2,5,3,5],[0,0,3,2]]}
["                                 PLANILHA ORÇAMENTARIA   ",null,null,"SPN-FF-003",null,null,null,null,null,null,null,"C:\\Users\\alexandre.seba\\OneDrive - SFIEMT\\UNAEN\\1.ENGENHARIA SESI SENAI\\01.UO\\03.CONDOMÍNIO.FIEMT\\2022.12.05_REFORMA_GDR_SUPERINT\\ANEXO I.B - PLANILHA ORÇAMENTÁRIA\\BASE-DADOS-SINAPI-10-2022.xlsx"]
[]
[null,null,null,"Folha:              1 de 1","Revisão:      \n02","Data: \n07/10/19"]
[]
["FIEMT - FEDERAÇÃO DAS INDUSTRIAS DO ESTADO DE MATO GROSSO"]
["OBRA: ","CONTRATAÇÃO DE EMPRESA DE ENGENHARIA PARA A REALIZAÇÃO OBRA DE REFORMA DO GABINETE DA SUPERINTENDENCIA, DIRETORIA, RECEPÇÃO, BANHEROS E SALAS DE REUNIÃO."]
["UNIDADE OPERACIONAL: FIEMT"]
["ENDEREÇO:  Av. Historiador Rubens de Mendonça, N.4571, Centro Politico Administrativo, Cuiabá - MT. CEP 78.049.940       \nCIDADE: CUIABÁ - MT"]
["CONSTRUTORA:",null,null,null,null,null,null,"BDI DIFERENCIADO:",{"$f":"BDI_EQUI","v":0.14610000000000001}]
["RESPONSÁVEL TÉCNICO:",null,null,"REF.:",{"$f":"LEFT(RIGHT(CAMINHO_DO_BD,19),14)","v":"SINAPI-10-2022"},null,null,"BDI:",{"$f":"BDI","v":0.2235},"SINAPI REF.",{"$f":"LEFT(RIGHT(CAMINHO_DO_BD,12),7)","v":"10-2022"}]
[]
["ITEM","DESCRIÇÃO","UNID.","QUANT.","Valor UNIT. (R$)","Valor Total (R$)",null,"CÓDIGO","ORIGEM/OBSERVAÇÃO","Valor Unit. (R$) SEM BDI","Valor Unit. (R$)\nC/ BDI",null,"TIPO DO ITEM","TIPO DO BDI"]
[]
["1.0","ADMINISTRAÇÃO",null,null,null,{"$f":"SUBTOTAL(9,F15:F20)","v":69292.350000000006}]
[{"$f":"$A$14&\".\"&(ROW(A15)-ROW($A$14))","v":"1.0.1"},"ENGENHEIRO CIVIL DE OBRA PLENO COM ENCARGOS COMPLEMENTARES \n02 HORAS X 5 DIAS X3 meses","H",120,{"$f":"K15","v":143.41},{"$f":"ROUND(D15*E15,2)","v":17209.2},null,"90778",{"$f":"IF(M15=\"COMPOSIÇÃO\",LEFT(RIGHT(CAMINHO_DO_BD,19),14),IF(M15=\"INSUMO\",\"INSUMO \" & LEFT(RIGHT(CAMINHO_DO_BD,19),14),IF(M15=\"COMPOSIÇÃO PRÓPRIA\",\"COMPOSIÇÃO PRÓPRIA COM BASE NA \" & LEFT(RIGHT(CAMINHO_DO_BD,19),14),\"PREÇO MÉDIO DE ORÇAMENTOS\")))","v":"SINAPI-10-2022"},117.21,{"$f":"ROUND(J15*(1+BDI),2)","v":143.41},null,"COMPOSIÇÃO","BDI DE OBRA"]
[{"$f":"$A$14&\".\"&(ROW(A16)-ROW($A$14))","v":"1.0.2"},"ENGENHEIRO ELETRICISTA COM ENCARGOS COMPLEMENTARES\n02 HORAS X 5 DIAS X3 meses","H",120,{"$f":"K16","v":122.29},{"$f":"ROUND(D16*E16,2)","v":14674.8},null,"91677",{"$f":"IF(M16=\"COMPOSIÇÃO\",LEFT(RIGHT(CAMINHO_DO_BD,19),14),IF(M16=\"INSUMO\",\"INSUMO \" & LEFT(RIGHT(CAMINHO_DO_BD,19),14),IF(M16=\"COMPOSIÇÃO PRÓPRIA\",\"COMPOSIÇÃO PRÓPRIA COM BASE NA \" & LEFT(RIGHT(CAMINHO_DO_BD,19),14),\"PREÇO MÉDIO DE ORÇAMENTOS\")))","v":"SINAPI-10-2022"},99.95,{"$f":"ROUND(J16*(1+BDI),2)","v":122.29},null,"COMPOSIÇÃO","BDI DE OBRA"]
[{"$f":"$A$14&\".\"&(ROW(A17)-ROW($A$14))","v":"1.0.3"},"ENCARREGADO GERAL DE OBRAS COM ENCARGOS COMPLEMENTARES","MES",3,{"$f":"K17","v":6144.75},{"$f":"ROUND(D17*E17,2)","v":18434.25},null,"93572",{"$f":"IF(M17=\"COMPOSIÇÃO\",LEFT(RIGHT(CAMINHO_DO_BD,19),14),IF(M17=\"INSUMO\",\"INSUMO \" & LEFT(RIGHT(CAMINHO_DO_BD,19),14),IF(M17=\"COMPOSIÇÃO PRÓPRIA\",\"COMPOSIÇÃO PRÓPRIA COM BASE NA \" & LEFT(RIGHT(CAMINHO_DO_BD,19),14),\"PREÇO MÉDIO DE ORÇAMENTOS\")))","v":"SINAPI-10-2022"},5022.2700000000004,{"$f":"ROUND(J17*(1+BDI),2)","v":6144.75},null,"COMPOSIÇÃO","BDI DE OBRA"]
[{"$f":"$A$14&\".\"&(ROW(A18)-ROW($A$14))","v":"1.0.4"},"TÉCNICO EM SEGURANÇA DO TRABALHO COM ENCARGOS COMPLEMENTARES","MES",3,{"$f":"K18","v":6133.88},{"$f":"ROUND(D18*E18,2)","v":18401.64},null,"100321",{"$f":"IF(M18=\"COMPOSIÇÃO\",LEFT(RIGHT(CAMINHO_DO_BD,19),14),IF(M18=\"INSUMO\",\"INSUMO \" & LEFT(RIGHT(CAMINHO_DO_BD,19),14),IF(M18=\"COMPOSIÇÃO PRÓPRIA\",\"COMPOSIÇÃO PRÓPRIA COM BASE NA \" & LEFT(RIGHT(CAMINHO_DO_BD,19),14),\"PREÇO MÉDIO DE ORÇAMENTOS\")))","v":"SINAPI-10-2022"},5013.3900000000003,{"$f":"ROUND(J18*(1+BDI),2)","v":6133.88},null,"COMPOSIÇÃO","BDI DE OBRA"]
[{"$f":"$A$14&\".\"&(ROW(A19)-ROW($A$14))","v":"1.0.5"},"ANOTAÇÃO DE RESPONSABILIDADE TÉCNICA DE EXECUÇÃO","UN",2,{"$f":"K19","v":286.23},{"$f":"ROUND(D19*E19,2)","v":572.46},null,"C_CIV0326",{"$f":"IF(M19=\"COMPOSIÇÃO\",LEFT(RIGHT(CAMINHO_DO_BD,19),14),IF(M19=\"INSUMO\",\"INSUMO \" & LEFT(RIGHT(CAMINHO_DO_BD,19),14),IF(M19=\"COMPOSIÇÃO PRÓPRIA\",\"COMPOSIÇÃO PRÓPRIA COM BASE NA \" & LEFT(RIGHT(CAMINHO_DO_BD,19),14),\"PREÇO MÉDIO DE ORÇAMENTOS\")))","v":"COMPOSIÇÃO PRÓPRIA COM BASE NA SINAPI-10-2022"},233.94,{"$f":"ROUND(J19*(1+BDI),2)","v":286.23},null,"COMPOSIÇÃO PRÓPRIA","BDI DE OBRA"]
[]
["1.1","CANTEIRO DE OBRAS",null,null,null,{"$f":"SUBTOTAL(9,F22:F28)","v":10337.000000000002}]
[{"$f":"$A$21&\".\"&(ROW(A22)-ROW($A$21))","v":"1.1.1"},"LOCACAO DE CONTAINER 2,30 X 6,00 M, ALT. 2,50 M, COM 1 SANITARIO, PARA ESCRITORIO, COMPLETO, SEM DIVISORIAS INTERNAS (NAO INCLUI MOBILIZACAO/DESMOBILIZACAO)                                                                                                                                                                                                                                                                                                                                              ","MES   ",3,{"$f":"K22","v":1052.21},{"$f":"ROUND(D22*E22,2)","v":3156.63},null,10775,{"$f":"IF(M22=\"COMPOSIÇÃO\",LEFT(RIGHT(CAMINHO_DO_BD,19),14),IF(M22=\"INSUMO\",\"INSUMO \" & LEFT(RIGHT(CAMINHO_DO_BD,19),14),IF(M22=\"COMPOSIÇÃO PRÓPRIA\",\"COMPOSIÇÃO PRÓPRIA COM BASE NA \" & LEFT(RIGHT(CAMINHO_DO_BD,19),14),\"PREÇO MÉDIO DE ORÇAMENTOS\")))","v":"INSUMO SINAPI-10-2022"},860,{"$f":"ROUND(J22*(1+BDI),2)","v":1052.21},null,"INSUMO","BDI DE OBRA"]
[{"$f":"$A$21&\".\"&(ROW(A23)-ROW($A$21))","v":"1.1.2"},"LOCACAO DE CONTAINER 2,30 X 6,00 M, ALT. 2,50 M, PARA ALMOXARIFADO, SEM DIVISORIAS INTERNAS E SEM SANITARIO                                                                                                                                                                                                                                                                                                                                                       ","MES   ",3,822.03,2466.09,null,10776,"INSUMO SINAPI-10-2022",671.87,822.03,null,"INSUMO","BDI DE OBRA"]
["1.1.3","LOCAÇÃO MENSAL INCLUSIVE FRETE BEBEDOURO ELÉTRICO TEMPERATURA NATURAL OU GELADA.","MES",3,390.19,1170.57,null,"C_CIV0149","COMPOSIÇÃO PRÓPRIA COM BASE NA SINAPI-10-2022",318.91000000000003,390.19,null,"COMPOSIÇÃO PRÓPRIA","BDI DE OBRA"]
["1.1.4","LOCACAO DE ANDAIME METALICO TUBULAR DE ENCAIXE, TIPO DE TORRE, CADA PAINEL COM LARGURA DE 1 ATE 1,5 M E ALTURA DE *1,00* M, INCLUINDO DIAGONAL, BARRAS DE LIGACAO, SAPATAS OU RODIZIOS E DEMAIS ITENS NECESSARIOS A MONTAGEM","MXMES ",24,{"$f":"K25","v":29.36},704.64,null,10527,"INSUMO SINAPI-10-2022",24,29.36,null,"INSUMO","BDI DE OBRA"]
[{"$f":"$A$21&\".\"&(ROW(A26)-ROW($A$21))","v":"1.1.5"},"TAPUME COM TELHA METÁLICA. AF_05/2018","M2",18.959999999999997,{"$f":"K26","v":130.4},2472.38,"C_CIV0327","98459","SINAPI-10-2022",106.58,130.4,null,"COMPOSIÇÃO","BDI DE OBRA"]
[{"$f":"$A$21&\".\"&(ROW(A27)-ROW($A$21))","v":"1.1.6"},"PLANO MENSAL DE INTERNET","MÊS",3,{"$f":"K27","v":122.23},366.69,"C_CIV0327","C_CIV0327","COMPOSIÇÃO PRÓPRIA COM BASE NA SINAPI-10-2022",99.9,122.23,null,"COMPOSIÇÃO PRÓPRIA","BDI DE OBRA"]
[]
["1.2","MOBILIZAÇÃO E DESMOBILIZAÇÃO CARGA, MANOBRA E DESCARGA DE CONTEINERS",null,null,null,{"$f":"SUBTOTAL(9,F30:F32)","v":1180.68}]
[{"$f":"$A$29&\".\"&(ROW(A30)-ROW($A$29))","v":"1.2.1"},"TRANSPORTE COM CAMINHÃO CARROCERIA COM GUINDAUTO (MUNCK),  MOMENTO MÁXIMO DE CARGA 11,7 TM, EM VIA URBANA PAVIMENTADA, DMT ATÉ 30KM (UNIDADE: TXKM). AF_07/2020\n2 TONELADAS X 3 CONTEINERS X 30KM (20KM IDA E 20KM VOLTA)","TXKM",240,{"$f":"K30","v":3.33},{"$f":"ROUND(D30*E30,2)","v":799.2},null,"100952",{"$f":"IF(M30=\"COMPOSIÇÃO\",LEFT(RIGHT(CAMINHO_DO_BD,19),14),IF(M30=\"INSUMO\",\"INSUMO \" & LEFT(RIGHT(CAMINHO_DO_BD,19),14),IF(M30=\"COMPOSIÇÃO PRÓPRIA\",\"COMPOSIÇÃO PRÓPRIA COM BASE NA \" & LEFT(RIGHT(CAMINHO_DO_BD,19),14),\"PREÇO MÉDIO DE ORÇAMENTOS\")))","v":"SINAPI-10-2022"},2.72,{"$f":"ROUND(J30*(1+BDI),2)","v":3.33},null,"COMPOSIÇÃO","BDI DE OBRA"]
[{"$f":"$A$29&\".\"&(ROW(A31)-ROW($A$29))","v":"1.2.2"},"CARGA, MANOBRA E DESCARGA DE CONTEINER EM CAMINHÃO CARROCERIA COM GUINDAUTO (MUNCK) 11,7 TM","T",12,31.79,381.48,null,"101010",{"$f":"IF(M31=\"COMPOSIÇÃO\",LEFT(RIGHT(CAMINHO_DO_BD,19),14),IF(M31=\"INSUMO\",\"INSUMO \" & LEFT(RIGHT(CAMINHO_DO_BD,19),14),IF(M31=\"COMPOSIÇÃO PRÓPRIA\",\"COMPOSIÇÃO PRÓPRIA COM BASE NA \" & LEFT(RIGHT(CAMINHO_DO_BD,19),14),\"PREÇO MÉDIO DE ORÇAMENTOS\")))","v":"SINAPI-10-2022"},25.98,{"$f":"ROUND(J31*(1+BDI),2)","v":31.79},null,"COMPOSIÇÃO","BDI DE OBRA"]
[]
["1.3","DEMOLIÇÕES E RETIRADAS",null,null,null,{"$f":"SUBTOTAL(9,F34:F76)","v":10240.050000000001}]
[]
["1.3.1","GABINETE SESI",null,null,null,{"$f":"SUBTOTAL(9,F36:F51)","v":4348.6399999999994}]
[{"$f":"$A$35&\".\"&(ROW(A36)-ROW($A$35))","v":"1.3.1.1"},"DEMOLIÇÃO DE ALVENARIA DE BLOCO FURADO, DE FORMA MANUAL, SEM REAPROVEITAMENTO. AF_12/2017 - ABERTURA DE VÃO DE PORTAS","M3",3.3105000000000002,{"$f":"K36","v":62.08},{"$f":"ROUND(D36*E36,2)","v":205.52},null,"97622",{"$f":"IF(M36=\"COMPOSIÇÃO\",LEFT(RIGHT(CAMINHO_DO_BD,19),14),IF(M36=\"INSUMO\",\"INSUMO \" & LEFT(RIGHT(CAMINHO_DO_BD,19),14),IF(M36=\"COMPOSIÇÃO PRÓPRIA\",\"COMPOSIÇÃO PRÓPRIA COM BASE NA \" & LEFT(RIGHT(CAMINHO_DO_BD,19),14),\"PREÇO MÉDIO DE ORÇAMENTOS\")))","v":"SINAPI-10-2022"},50.74,{"$f":"ROUND(J36*(1+BDI),2)","v":62.08},null,"COMPOSIÇÃO","BDI DE OBRA"]
[{"$f":"$A$35&\".\"&(ROW(A37)-ROW($A$35))","v":"1.3.1.2"},"REMOÇÃO DE CHAPAS E PERFIS DE DRYWALL, DE FORMA MANUAL, SEM REAPROVEITAMENTO. AF_12/2017 - GABINETE DA SUPERINTENDENCIA","M2",13.92,8.09,112.61,null,"97638","SINAPI-10-2022",6.61,8.09,null,"COMPOSIÇÃO","BDI DE OBRA"]
["1.3.1.3","REMOÇÃO DE BANCADA DE GRANITO JUNTAMENTE COM AS CUBAS EMBUTIDAS, DE FORMA MANUAL, RETIRADA E ARMAZENAMENTO EM LOCAL DEFINIDO PELA FISCALIZAÇÃO\nBANHEIRO GABINETE SUPERINTENDENCIA","M2",0.5,{"$f":"K38","v":53.67},{"$f":"ROUND(D38*E38,2)","v":26.84},null,"C_CIV0298","COMPOSIÇÃO PRÓPRIA COM BASE NA SINAPI-10-2022",43.87,{"$f":"ROUND(J38*(1+BDI),2)","v":53.67},null,"COMPOSIÇÃO PRÓPRIA","BDI DE OBRA"]
["1.3.1.4","DEMOLIÇÃO DE REVESTIMENTO DE PISO E PAREDE, DE FORMA MANUAL, SEM REAPROVEITAMENTO. AF_12/2017 - \nBANHEIRO E GABINETE SUPERINTENDENCIA","M2",51.349999999999994,{"$f":"K39","v":24.76},{"$f":"ROUND(D39*E39,2)","v":1271.43},null,"97633","SINAPI-10-2022",20.239999999999998,{"$f":"ROUND(J39*(1+BDI),2)","v":24.76},null,"COMPOSIÇÃO","BDI DE OBRA"]
["1.3.1.5","REMOÇÃO DE FORRO DE GESSO, DE FORMA MANUAL, SEM REAPROVEITAMENTO. AF_12/2017","M2",39.56,5.38,212.83,null,"97641","SINAPI-10-2022",4.4000000000000004,{"$f":"ROUND(J40*(1+BDI),2)","v":5.38},null,"COMPOSIÇÃO","BDI DE OBRA"]
["1.3.1.6","REMOÇÃO DE TRAMA METÁLICA OU DE MADEIRA PARA FORRO, DE FORMA MANUAL, SEM REAPROVEITAMENTO. AF_12/2017 - REMOÇÃO DE ESTRUTURA DE FORRO.","M2",39.56,3.14,124.22,null,"97642","SINAPI-10-2022",2.57,3.14,null,"COMPOSIÇÃO","BDI DE OBRA"]
["1.3.1.7","REMOÇÃO DE CORTINA E CORTINEIROS DE JANELAS COM DESTINAÇÃO A SER DEFINIDO PELA FISCALIZAÇÃO","M2",23.34,8.09,188.82,null,"97638","SINAPI-10-2022",6.61,8.09,null,"COMPOSIÇÃO","BDI DE OBRA"]
["1.3.1.8","REMOÇÃO DE LOUÇAS, DE FORMA MANUAL, SEM REAPROVEITAMENTO. AF_12/2017\nBANHEIRO SESI COM DESTINAÇÃO A SER DEFINIDO PELA FISCALIZAÇÃO","UN",2,{"$f":"K43","v":13.48},{"$f":"ROUND(D43*E43,2)","v":26.96},null,"97663","SINAPI-10-2022",11.02,{"$f":"ROUND(J43*(1+BDI),2)","v":13.48},null,"COMPOSIÇÃO","BDI DE OBRA"]
["1.3.1.9","REMOÇÃO DE METAIS SANITÁRIOS, DE FORMA MANUAL, SEM REAPROVEITAMENTO. AF_12/2017\nBANHEIRO SESI COM DESTINAÇÃO A SER DEFINIDO PELA FISCALIZAÇÃO","UN",10,{"$f":"K44","v":9.82},{"$f":"ROUND(D44*E44,2)","v":98.2},null,"97666","SINAPI-10-2022",8.0299999999999994,{"$f":"ROUND(J44*(1+BDI),2)","v":9.82},null,"COMPOSIÇÃO","BDI DE OBRA"]
["1.3.1.10","REMOÇÃO DE BANCADA DE GRANITO JUNTAMENTE COM AS CUBAS EMBUTIDAS, DE FORMA MANUAL, RETIRADA E ARMAZENAMENTO EM LOCAL DEFINIDO PELA FISCALIZAÇÃO\nBAHEIRO SESI COM DESTINAÇÃO A SER DEFINIDO PELA FISCALIZAÇÃO","M2",1.19,{"$f":"K45","v":53.67},{"$f":"ROUND(D45*E45,2)","v":63.87},null,"C_CIV0298","COMPOSIÇÃO PRÓPRIA COM BASE NA SINAPI-10-2022",43.87,{"$f":"ROUND(J45*(1+BDI),2)","v":53.67},null,"COMPOSIÇÃO PRÓPRIA","BDI DE OBRA"]
["1.3.1.11","REMOÇÃO DE PORTAS, DE FORMA MANUAL, SEM REAPROVEITAMENTO, COM DESTINAÇÃO A SER DEFINIDO PELA FISCALIZAÇÃO","M2",3.5700000000000003,{"$f":"K46","v":10.09},{"$f":"ROUND(D46*E46,2)","v":36.020000000000003},null,"97644","SINAPI-10-2022",8.25,{"$f":"ROUND(J46*(1+BDI),2)","v":10.09},null,"COMPOSIÇÃO","BDI DE OBRA"]
["1.3.1.12","DEMOLIÇÃO DE RODAPÉ, DE FORMA MANUAL, SEM REAPROVEITAMENTO. AF_12/2017\nGABINETE SUPERINTENDENCIA/SALA DE ARQUIVO/SALA REUNIÃO DA SUPERINTENDENCIA","M",51.61,2.83,146.06,null,"97632","SINAPI-10-2022",2.31,{"$f":"ROUND(J47*(1+BDI),2)","v":2.83},null,"COMPOSIÇÃO","BDI DE OBRA"]
["1.3.1.13","REMOÇÃO DE JANELAS, DE FORMA MANUAL, SEM REAPROVEITAMENTO. AF_12/2017\nGABINETE SESI/SALA REUNIÃO SESI/SALA DO ATUAL MARKETING COM DESTINAÇÃO A SER DEFINIDO PELA FISCALIZAÇÃO","M2",34.799999999999997,37.450000000000003,1303.26,null,"97645","SINAPI-10-2022",30.61,37.450000000000003,null,"COMPOSIÇÃO","BDI DE OBRA"]
["1.3.1.14","RETIRADA DE ESPELHO FIXADO, INCLUSO TRANSPORTE E DEPOSITO EM LOCAL A SER INDICADO PELA FISCALIZAÇÃO (BANHEIRO GABINETE SESI).","M2",2.25,90.8,204.3,null,"C_CIV0021",{"$f":"IF(M49=\"COMPOSIÇÃO\",LEFT(RIGHT(CAMINHO_DO_BD,19),14),IF(M49=\"INSUMO\",\"INSUMO \" & LEFT(RIGHT(CAMINHO_DO_BD,19),14),IF(M49=\"COMPOSIÇÃO PRÓPRIA\",\"COMPOSIÇÃO PRÓPRIA COM BASE NA \" & LEFT(RIGHT(CAMINHO_DO_BD,19),14),\"PREÇO MÉDIO DE ORÇAMENTOS\")))","v":"COMPOSIÇÃO PRÓPRIA COM BASE NA SINAPI-10-2022"},74.209999999999994,{"$f":"ROUND(J49*(1+BDI),2)","v":90.8},null,"COMPOSIÇÃO PRÓPRIA","BDI DE OBRA"]
["1.3.1.15","RASGO EM CONTRAPISO PARA RAMAIS/ DISTRIBUIÇÃO COM DIÂMETROS MAIORES QUE 75 MM. AF_05/2015","M",10,{"$f":"K50","v":32.770000000000003},{"$f":"ROUND(D50*E50,2)","v":327.7},null,"90446",{"$f":"IF(M50=\"COMPOSIÇÃO\",LEFT(RIGHT(CAMINHO_DO_BD,19),14),IF(M50=\"INSUMO\",\"INSUMO \" & LEFT(RIGHT(CAMINHO_DO_BD,19),14),IF(M50=\"COMPOSIÇÃO PRÓPRIA\",\"COMPOSIÇÃO PRÓPRIA COM BASE NA \" & LEFT(RIGHT(CAMINHO_DO_BD,19),14),\"PREÇO MÉDIO DE ORÇAMENTOS\")))","v":"SINAPI-10-2022"},26.78,{"$f":"ROUND(J50*(1+BDI),2)","v":32.770000000000003},null,"COMPOSIÇÃO","BDI DE OBRA"]
[]
["1.3.2","GABINETE SENAI",null,null,null,{"$f":"SUBTOTAL(9,F53:F64)","v":3335.01}]
[{"$f":"$A$52&\".\"&(ROW(A53)-ROW($A$52))","v":"1.3.2.1"},"DEMOLIÇÃO DE ALVENARIA DE BLOCO FURADO, DE FORMA MANUAL, SEM REAPROVEITAMENTO. AF_12/2017 - ABERTURA DE VÃOS DE PORTAS","M3",0.315,{"$f":"K53","v":62.08},{"$f":"ROUND(D53*E53,2)","v":19.559999999999999},null,"97622",{"$f":"IF(M53=\"COMPOSIÇÃO\",LEFT(RIGHT(CAMINHO_DO_BD,19),14),IF(M53=\"INSUMO\",\"INSUMO \" & LEFT(RIGHT(CAMINHO_DO_BD,19),14),IF(M53=\"COMPOSIÇÃO PRÓPRIA\",\"COMPOSIÇÃO PRÓPRIA COM BASE NA \" & LEFT(RIGHT(CAMINHO_DO_BD,19),14),\"PREÇO MÉDIO DE ORÇAMENTOS\")))","v":"SINAPI-10-2022"},50.74,{"$f":"ROUND(J53*(1+BDI),2)","v":62.08},null,"COMPOSIÇÃO","BDI DE OBRA"]
[{"$f":"$A$52&\".\"&(ROW(A54)-ROW($A$52))","v":"1.3.2.2"},"REMOÇÃO DE FORRO DE GESSO, DE FORMA MANUAL, SEM REAPROVEITAMENTO. AF_12/2017","M2",58.14,5.38,312.79000000000002,null,"97641","SINAPI-10-2022",4.4000000000000004,5.38,null,"COMPOSIÇÃO","BDI DE OBRA"]
["1.3.2.3","REMOÇÃO DE TRAMA METÁLICA OU DE MADEIRA PARA FORRO, DE FORMA MANUAL, SEM REAPROVEITAMENTO. AF_12/2017 - REMOÇÃO DE ESTRUTURA DE FORRO.","M2",58.14,3.14,182.56,null,"97642","SINAPI-10-2022",2.57,3.14,null,"COMPOSIÇÃO","BDI DE OBRA"]
["1.3.2.4","REMOÇÃO DE CORTINA DE JANELAS COM DESTINAÇÃO A SER DEFINIDO PELA FISCALIZAÇÃO","M2",19.940000000000001,8.09,161.31,null,"97638","SINAPI-10-2022",6.61,8.09,null,"COMPOSIÇÃO","BDI DE OBRA"]
["1.3.2.5","REMOÇÃO DE PORTAS, DE FORMA MANUAL, SEM REAPROVEITAMENTO.COM DESTINAÇÃO A SER DEFINIDO PELA FISCALIZAÇÃO","M2",5.25,10.09,52.97,null,"97644","SINAPI-10-2022",8.25,{"$f":"ROUND(J57*(1+BDI),2)","v":10.09},null,"COMPOSIÇÃO","BDI DE OBRA"]
["1.3.2.6","REMOÇÃO DE PAPEL DE PAREDE, INCLUSIVE LIMPEZA DO EXCESSO DE COLA NA PAREDE\nINCLUSO SALA GABINETE E LAVABO","M2",72.010000000000005,{"$f":"K58","v":4.76},{"$f":"ROUND(D58*E58,2)","v":342.77},null,"C_CIV0304","COMPOSIÇÃO PRÓPRIA COM BASE NA SINAPI-10-2022",3.89,{"$f":"ROUND(J58*(1+BDI),2)","v":4.76},null,"COMPOSIÇÃO PRÓPRIA","BDI DE OBRA"]
["1.3.2.7","DEMOLIÇÃO DE RODAPÉ, DE FORMA MANUAL, SEM REAPROVEITAMENTO. AF_12/2017","M",43.61,{"$f":"K59","v":2.83},{"$f":"ROUND(D59*E59,2)","v":123.42},null,"97632","SINAPI-10-2022",2.31,{"$f":"ROUND(J59*(1+BDI),2)","v":2.83},null,"COMPOSIÇÃO","BDI DE OBRA"]
["1.3.2.8","REMOÇÃO DE JANELAS, DE FORMA MANUAL, SEM REAPROVEITAMENTO. AF_12/2017\nGABINETE DA DIRETORIA (ATUAL SALA DE REUNIÃO) COM DESTINAÇÃO A SER DEFINIDO PELA FISCALIZAÇÃO","M2",11.72,{"$f":"K60","v":37.450000000000003},{"$f":"ROUND(D60*E60,2)","v":438.91},null,"97645","SINAPI-10-2022",30.61,37.450000000000003,null,"COMPOSIÇÃO","BDI DE OBRA"]
["1.3.2.9","DEMOLIÇÃO DE REVESTIMENTO DE PISO, DE FORMA MANUAL, SEM REAPROVEITAMENTO. AF_12/2017 - GABINETE E SALA DE REUNIÃO DIRETORIA","M2",54.34,24.76,1345.46,null,"97633","SINAPI-10-2022",20.239999999999998,{"$f":"ROUND(J61*(1+BDI),2)","v":24.76},null,"COMPOSIÇÃO","BDI DE OBRA"]
["1.3.2.10","RETIRADA DE ESPELHO FIXADO, INCLUSO TRANSPORTE E DEPOSITO EM LOCAL A SER INDICADO PELA FISCALIZAÇÃO ATUAL GABINETE DA DIRETORIA","M2",3.48,{"$f":"K62","v":90.8},{"$f":"ROUND(D62*E62,2)","v":315.98},null,"C_CIV0021",{"$f":"IF(M62=\"COMPOSIÇÃO\",LEFT(RIGHT(CAMINHO_DO_BD,19),14),IF(M62=\"INSUMO\",\"INSUMO \" & LEFT(RIGHT(CAMINHO_DO_BD,19),14),IF(M62=\"COMPOSIÇÃO PRÓPRIA\",\"COMPOSIÇÃO PRÓPRIA COM BASE NA \" & LEFT(RIGHT(CAMINHO_DO_BD,19),14),\"PREÇO MÉDIO DE ORÇAMENTOS\")))","v":"COMPOSIÇÃO PRÓPRIA COM BASE NA SINAPI-10-2022"},74.209999999999994,{"$f":"ROUND(J62*(1+BDI),2)","v":90.8},null,"COMPOSIÇÃO PRÓPRIA","BDI DE OBRA"]
["1.3.2.11","REMOÇÃO DE METAIS SANITÁRIOS, DE FORMA MANUAL, SEM REAPROVEITAMENTO. AF_12/2017\nBANHEIRO SENAI COM DESTINAÇÃO A SER DEFINIDO PELA FISCALIZAÇÃO","UN",4,9.82,39.28,null,"97666",{"$f":"IF(M63=\"COMPOSIÇÃO\",LEFT(RIGHT(CAMINHO_DO_BD,19),14),IF(M63=\"INSUMO\",\"INSUMO \" & LEFT(RIGHT(CAMINHO_DO_BD,19),14),IF(M63=\"COMPOSIÇÃO PRÓPRIA\",\"COMPOSIÇÃO PRÓPRIA COM BASE NA \" & LEFT(RIGHT(CAMINHO_DO_BD,19),14),\"PREÇO MÉDIO DE ORÇAMENTOS\")))","v":"SINAPI-10-2022"},8.0299999999999994,{"$f":"ROUND(J63*(1+BDI),2)","v":9.82},null,"COMPOSIÇÃO","BDI DE OBRA"]
[]
["1.3.3","RECEPÇÃO/ARQUIVO",null,null,null,{"$f":"SUBTOTAL(9,F66:F76)","v":2556.4}]
[{"$f":"$A$65&\".\"&(ROW(A66)-ROW($A$65))","v":"1.3.3.1"},"REMOÇÃO DE PAREDE DE GESSO, DE FORMA MANUAL, SEM REAPROVEITAMENTO. AF_12/2017 - SALA DE ARQUIVO","M2",17.399999999999999,{"$f":"K66","v":8.09},{"$f":"ROUND(D66*E66,2)","v":140.77000000000001},null,"97638",{"$f":"IF(M66=\"COMPOSIÇÃO\",LEFT(RIGHT(CAMINHO_DO_BD,19),14),IF(M66=\"INSUMO\",\"INSUMO \" & LEFT(RIGHT(CAMINHO_DO_BD,19),14),IF(M66=\"COMPOSIÇÃO PRÓPRIA\",\"COMPOSIÇÃO PRÓPRIA COM BASE NA \" & LEFT(RIGHT(CAMINHO_DO_BD,19),14),\"PREÇO MÉDIO DE ORÇAMENTOS\")))","v":"SINAPI-10-2022"},6.61,{"$f":"ROUND(J66*(1+BDI),2)","v":8.09},null,"COMPOSIÇÃO","BDI DE OBRA"]
["1.3.3.2","DESMONTAGEM E RETIRADA DE VIDRO TEMPERADO INCOLOR, INCLUSO TRANSPORTE E DEPOSITO EM LOCAL A SER INDICADO PELA FISCALIZAÇÃO\nPORTA DE ACESSO PARA A RECEPÇÃO/VISORES DE DIVISÓRIAS PARA A SALA DE ARQUIVO","M2",6.76,{"$f":"K67","v":25.23},{"$f":"ROUND(D67*E67,2)","v":170.55},null,"C_CIV0012","COMPOSIÇÃO PRÓPRIA COM BASE NA SINAPI-10-2022",20.62,{"$f":"ROUND(J67*(1+BDI),2)","v":25.23},null,"COMPOSIÇÃO PRÓPRIA","BDI DE OBRA"]
["1.3.3.3","REMOÇÃO DE FORRO DE GESSO, DE FORMA MANUAL, SEM REAPROVEITAMENTO. AF_12/2017\nATUAL RECEPÇÃO EXISTENTE","M2",31.47,5.38,169.31,null,"97641","SINAPI-10-2022",4.4000000000000004,{"$f":"ROUND(J68*(1+BDI),2)","v":5.38},null,"COMPOSIÇÃO","BDI DE OBRA"]
["1.3.3.4","REMOÇÃO DE FORROS DE DRYWALL, PVC E FIBROMINERAL, DE FORMA MANUAL, SEM REAPROVEITAMENTO. AF_12/2017\nANTIGA SALA DA AUDITORIA","M2",47.46,{"$f":"K69","v":1.75},{"$f":"ROUND(D69*E69,2)","v":83.06},null,"97640","SINAPI-10-2022",1.43,{"$f":"ROUND(J69*(1+BDI),2)","v":1.75},null,"COMPOSIÇÃO","BDI DE OBRA"]
["1.3.3.5","REMOÇÃO DE TRAMA METÁLICA OU DE MADEIRA PARA FORRO, DE FORMA MANUAL, SEM REAPROVEITAMENTO. AF_12/2017 - REMOÇÃO DE ESTRUTURA DE FORRO.","M2",78.930000000000007,3.14,247.84,null,"97642","SINAPI-10-2022",2.57,{"$f":"ROUND(J70*(1+BDI),2)","v":3.14},null,"COMPOSIÇÃO","BDI DE OBRA"]
["1.3.3.6","REMOÇÃO DE PAPEL DE PAREDE, INCLUSIVE LIMPEZA DO EXCESSO DE COLA NA PAREDE","M2",69.34,4.76,330.06,null,"C_CIV0304","COMPOSIÇÃO PRÓPRIA COM BASE NA SINAPI-10-2022",3.89,{"$f":"ROUND(J71*(1+BDI),2)","v":4.76},null,"COMPOSIÇÃO PRÓPRIA","BDI DE OBRA"]
["1.3.3.7","DEMOLIÇÃO DE RODAPÉ, DE FORMA MANUAL, SEM REAPROVEITAMENTO. AF_12/2017\nRECEPÇÃO","M",27.23,{"$f":"K72","v":2.83},{"$f":"ROUND(D72*E72,2)","v":77.06},null,"97632","SINAPI-10-2022",2.31,{"$f":"ROUND(J72*(1+BDI),2)","v":2.83},null,"COMPOSIÇÃO","BDI DE OBRA"]
["1.3.3.8","LIXAMENTO DE SUPERFÍCIE PARA PREPARO DE ASSENTAMENTO DE REVESTIMENTO. RODAPÉ PAREDE DO BANHEIRO)","M2",35.950000000000003,{"$f":"K73","v":3.93},{"$f":"ROUND(D73*E73,2)","v":141.28},null,"102488","SINAPI-10-2022",3.21,{"$f":"ROUND(J73*(1+BDI),2)","v":3.93},null,"COMPOSIÇÃO","BDI DE OBRA"]
["1.3.3.9","DEMOLIÇÃO DE REVESTIMENTO DE PISO, DE FORMA MANUAL, SEM REAPROVEITAMENTO. AF_12/2017 - ","M2",46.89,24.76,1161,null,"97633","SINAPI-10-2022",20.239999999999998,{"$f":"ROUND(J74*(1+BDI),2)","v":24.76},null,"COMPOSIÇÃO","BDI DE OBRA"]
["1.3.3.10","REMOÇÃO DE PAINEIS COM LOGOMARCA DA RECEPÇÃO COM DESTINAÇÃO A SER DEFINIDO PELA FISCALIZAÇÃO","M2",12.76,{"$f":"K75","v":2.78},{"$f":"ROUND(D75*E75,2)","v":35.47},null,"97637",{"$f":"IF(M75=\"COMPOSIÇÃO\",LEFT(RIGHT(CAMINHO_DO_BD,19),14),IF(M75=\"INSUMO\",\"INSUMO \" & LEFT(RIGHT(CAMINHO_DO_BD,19),14),IF(M75=\"COMPOSIÇÃO PRÓPRIA\",\"COMPOSIÇÃO PRÓPRIA COM BASE NA \" & LEFT(RIGHT(CAMINHO_DO_BD,19),14),\"PREÇO MÉDIO DE ORÇAMENTOS\")))","v":"SINAPI-10-2022"},2.27,{"$f":"ROUND(J75*(1+BDI),2)","v":2.78},null,"COMPOSIÇÃO","BDI DE OBRA"]
[]
["1.4","ESTRUTURA DE CONCRETO",null,null,null,{"$f":"SUBTOTAL(9,F78:F84)","v":367.97}]
[]
["1.4.1","GABINETE SESI",null,null,null,{"$f":"SUBTOTAL(9,F80:F81)","v":258.36}]
[{"$f":"$A$79&\".\"&(ROW(A80)-ROW($A$79))","v":"1.4.1.1"},"VERGA PRÉ-MOLDADA PARA PORTAS COM MAIS DE 1,5 M DE VÃO. AF_03/2016","M",3.3,{"$f":"K80","v":78.290000000000006},{"$f":"ROUND(D80*E80,2)","v":258.36},null,"93185",{"$f":"IF(M80=\"COMPOSIÇÃO\",LEFT(RIGHT(CAMINHO_DO_BD,19),14),IF(M80=\"INSUMO\",\"INSUMO \" & LEFT(RIGHT(CAMINHO_DO_BD,19),14),IF(M80=\"COMPOSIÇÃO PRÓPRIA\",\"COMPOSIÇÃO PRÓPRIA COM BASE NA \" & LEFT(RIGHT(CAMINHO_DO_BD,19),14),\"PREÇO MÉDIO DE ORÇAMENTOS\")))","v":"SINAPI-10-2022"},63.99,{"$f":"ROUND(J80*(1+BDI),2)","v":78.290000000000006},null,"COMPOSIÇÃO","BDI DE OBRA"]
[]
["1.4.2","GABINETE SENAI",null,null,null,{"$f":"SUBTOTAL(9,F83:F84)","v":109.61}]
[{"$f":"$A$82&\".\"&(ROW(A83)-ROW($A$82))","v":"1.4.2.1"},"VERGA PRÉ-MOLDADA PARA PORTAS COM MAIS DE 1,5 M DE VÃO. AF_03/2016","M",1.4,{"$f":"K83","v":78.290000000000006},{"$f":"ROUND(D83*E83,2)","v":109.61},null,"93185",{"$f":"IF(M83=\"COMPOSIÇÃO\",LEFT(RIGHT(CAMINHO_DO_BD,19),14),IF(M83=\"INSUMO\",\"INSUMO \" & LEFT(RIGHT(CAMINHO_DO_BD,19),14),IF(M83=\"COMPOSIÇÃO PRÓPRIA\",\"COMPOSIÇÃO PRÓPRIA COM BASE NA \" & LEFT(RIGHT(CAMINHO_DO_BD,19),14),\"PREÇO MÉDIO DE ORÇAMENTOS\")))","v":"SINAPI-10-2022"},63.99,{"$f":"ROUND(J83*(1+BDI),2)","v":78.290000000000006},null,"COMPOSIÇÃO","BDI DE OBRA"]
[]
["1.5","ALVENARIAS E PAINÉIS GABINETE SESI/SALA DE ARQUIVO/RECEPÇÃO",null,null,null,{"$f":"SUBTOTAL(9,F86:F91)","v":14154.01}]
[{"$f":"$A$85&\".\"&(ROW(A86)-ROW($A$85))","v":"1.5.1"},"ALVENARIA DE VEDAÇÃO DE BLOCOS CERÂMICOS FURADOS NA HORIZONTAL DE 9X19X19 CM (ESPESSURA 9 CM) E ARGAMASSA DE ASSENTAMENTO COM PREPARO EM BETONEIRA. AF_12/2021","M2",2.8899999999999997,{"$f":"K86","v":113.53},{"$f":"ROUND(D86*E86,2)","v":328.1},null,"103328",{"$f":"IF(M86=\"COMPOSIÇÃO\",LEFT(RIGHT(CAMINHO_DO_BD,19),14),IF(M86=\"INSUMO\",\"INSUMO \" & LEFT(RIGHT(CAMINHO_DO_BD,19),14),IF(M86=\"COMPOSIÇÃO PRÓPRIA\",\"COMPOSIÇÃO PRÓPRIA COM BASE NA \" & LEFT(RIGHT(CAMINHO_DO_BD,19),14),\"PREÇO MÉDIO DE ORÇAMENTOS\")))","v":"SINAPI-10-2022"},92.79,{"$f":"ROUND(J86*(1+BDI),2)","v":113.53},null,"COMPOSIÇÃO","BDI DE OBRA"]
[{"$f":"$A$85&\".\"&(ROW(A87)-ROW($A$85))","v":"1.5.2"},"CHAPISCO APLICADO EM ALVENARIAS E ESTRUTURAS DE CONCRETO INTERNAS, COM COLHER DE PEDREIRO.  ARGAMASSA TRAÇO 1:3 COM PREPARO MANUAL. AF_10/2022","M2",3.78,5.95,22.49,null,"87878",{"$f":"IF(M87=\"COMPOSIÇÃO\",LEFT(RIGHT(CAMINHO_DO_BD,19),14),IF(M87=\"INSUMO\",\"INSUMO \" & LEFT(RIGHT(CAMINHO_DO_BD,19),14),IF(M87=\"COMPOSIÇÃO PRÓPRIA\",\"COMPOSIÇÃO PRÓPRIA COM BASE NA \" & LEFT(RIGHT(CAMINHO_DO_BD,19),14),\"PREÇO MÉDIO DE ORÇAMENTOS\")))","v":"SINAPI-10-2022"},4.8600000000000003,{"$f":"ROUND(J87*(1+BDI),2)","v":5.95},null,"COMPOSIÇÃO","BDI DE OBRA"]
["1.5.3","EMBOÇO, PARA RECEBIMENTO DE CERÂMICA, EM ARGAMASSA TRAÇO 1:2:8, PREPARO MECÂNICO COM BETONEIRA 400L, APLICADO MANUALMENTE EM FACES INTERNAS DE PAREDES, PARA AMBIENTE COM ÁREA MENOR QUE 5M2, ESPESSURA DE 20MM, COM EXECUÇÃO DE TALISCAS. AF_06/2014","M2",3.78,{"$f":"K88","v":49.05},{"$f":"ROUND(D88*E88,2)","v":185.41},null,"87527",{"$f":"IF(M88=\"COMPOSIÇÃO\",LEFT(RIGHT(CAMINHO_DO_BD,19),14),IF(M88=\"INSUMO\",\"INSUMO \" & LEFT(RIGHT(CAMINHO_DO_BD,19),14),IF(M88=\"COMPOSIÇÃO PRÓPRIA\",\"COMPOSIÇÃO PRÓPRIA COM BASE NA \" & LEFT(RIGHT(CAMINHO_DO_BD,19),14),\"PREÇO MÉDIO DE ORÇAMENTOS\")))","v":"SINAPI-10-2022"},40.090000000000003,{"$f":"ROUND(J88*(1+BDI),2)","v":49.05},null,"COMPOSIÇÃO","BDI DE OBRA"]
["1.5.4","FORNECIMENTO E INSTALAÇÃO DE PAREDE DE GESSO ACARTONADO ESP. 10CM, FACE DUPLA, COM ISOLAMENTO TERMO-ACÚSTICO DE LÃ DE ROCHA 50MM (CONSUMO CONF. TCPO 04840.8.5.1, MONTANTE M75-0,62kg/m, GUIA 75 )","M2",49.88,{"$f":"K89","v":246.96},{"$f":"ROUND(D89*E89,2)","v":12318.36},null,"C_CIV0036",{"$f":"IF(M89=\"COMPOSIÇÃO\",LEFT(RIGHT(CAMINHO_DO_BD,19),14),IF(M89=\"INSUMO\",\"INSUMO \" & LEFT(RIGHT(CAMINHO_DO_BD,19),14),IF(M89=\"COMPOSIÇÃO PRÓPRIA\",\"COMPOSIÇÃO PRÓPRIA COM BASE NA \" & LEFT(RIGHT(CAMINHO_DO_BD,19),14),\"PREÇO MÉDIO DE ORÇAMENTOS\")))","v":"COMPOSIÇÃO PRÓPRIA COM BASE NA SINAPI-10-2022"},201.85,{"$f":"ROUND(J89*(1+BDI),2)","v":246.96},null,"COMPOSIÇÃO PRÓPRIA","BDI DE OBRA"]
["1.5.5","REQUADRO EM PORTAS E JANELAS EM ARGAMASSA TRACO 1:2:8, PREPARO MECANICO COM BETONEIRA 400 L","M",27.8,{"$f":"K90","v":46.75},{"$f":"ROUND(D90*E90,2)","v":1299.6500000000001},null,"C_CIV0328",{"$f":"IF(M90=\"COMPOSIÇÃO\",LEFT(RIGHT(CAMINHO_DO_BD,19),14),IF(M90=\"INSUMO\",\"INSUMO \" & LEFT(RIGHT(CAMINHO_DO_BD,19),14),IF(M90=\"COMPOSIÇÃO PRÓPRIA\",\"COMPOSIÇÃO PRÓPRIA COM BASE NA \" & LEFT(RIGHT(CAMINHO_DO_BD,19),14),\"PREÇO MÉDIO DE ORÇAMENTOS\")))","v":"COMPOSIÇÃO PRÓPRIA COM BASE NA SINAPI-10-2022"},38.21,{"$f":"ROUND(J90*(1+BDI),2)","v":46.75},null,"COMPOSIÇÃO PRÓPRIA","BDI DE OBRA",null,null,null,null,null,null,null,null,null,null,null,null,null,null,null,null,null,1299.6500000000001]
[null,null,null,","]
["1.6","ESQUADRIAS",null,null,null,{"$f":"SUBTOTAL(9,F93:F106)","v":46261.460000000006}]
[]
["1.6.1","GABINETE SESI/MARKETING",null,null,null,{"$f":"SUBTOTAL(9,F95:F97)","v":31296.230000000003}]
[{"$f":"$A$94&\".\"&(ROW(A95)-ROW($A$94))","v":"1.6.1.1"},"JANELA FIXA DE ALUMÍNIO PARA VIDRO, COM VIDRO, BATENTE E FERRAGENS. EXCLUSIVE ACABAMENTO, ALIZAR E CONTRAMARCO. FORNECIMENTO E INSTALAÇÃO. AF_12/2019","M2",22.98,{"$f":"K95","v":930.39},{"$f":"ROUND(D95*E95,2)","v":21380.36},null,"100674",{"$f":"IF(M95=\"COMPOSIÇÃO\",LEFT(RIGHT(CAMINHO_DO_BD,19),14),IF(M95=\"INSUMO\",\"INSUMO \" & LEFT(RIGHT(CAMINHO_DO_BD,19),14),IF(M95=\"COMPOSIÇÃO PRÓPRIA\",\"COMPOSIÇÃO PRÓPRIA COM BASE NA \" & LEFT(RIGHT(CAMINHO_DO_BD,19),14),\"PREÇO MÉDIO DE ORÇAMENTOS\")))","v":"SINAPI-10-2022"},760.43,{"$f":"ROUND(J95*(1+BDI),2)","v":930.39},null,"COMPOSIÇÃO","BDI DE OBRA"]
[{"$f":"$A$94&\".\"&(ROW(A96)-ROW($A$94))","v":"1.6.1.2"},"JANELA DE ALUMÍNIO TIPO MAXIM-AR, COM VIDROS, BATENTE E FERRAGENS. EXCLUSIVE ALIZAR, ACABAMENTO E CONTRAMARCO. FORNECIMENTO E INSTALAÇÃO. AF_12/2019","M2",11.49,863,9915.8700000000008,null,"94569",{"$f":"IF(M96=\"COMPOSIÇÃO\",LEFT(RIGHT(CAMINHO_DO_BD,19),14),IF(M96=\"INSUMO\",\"INSUMO \" & LEFT(RIGHT(CAMINHO_DO_BD,19),14),IF(M96=\"COMPOSIÇÃO PRÓPRIA\",\"COMPOSIÇÃO PRÓPRIA COM BASE NA \" & LEFT(RIGHT(CAMINHO_DO_BD,19),14),\"PREÇO MÉDIO DE ORÇAMENTOS\")))","v":"SINAPI-10-2022"},705.35,{"$f":"ROUND(J96*(1+BDI),2)","v":863},null,"COMPOSIÇÃO","BDI DE OBRA"]
[]
["1.6.2","GABINETE SENAI",null,null,null,{"$f":"SUBTOTAL(9,F99:F101)","v":10432.08}]
[{"$f":"$A$98&\".\"&(ROW(A99)-ROW($A$98))","v":"1.6.2.1"},"JANELA FIXA DE ALUMÍNIO PARA VIDRO, COM VIDRO, BATENTE E FERRAGENS. EXCLUSIVE ACABAMENTO, ALIZAR E CONTRAMARCO. FORNECIMENTO E INSTALAÇÃO. AF_12/2019","M2",7.66,{"$f":"K99","v":930.39},{"$f":"ROUND(D99*E99,2)","v":7126.79},null,"100674",{"$f":"IF(M99=\"COMPOSIÇÃO\",LEFT(RIGHT(CAMINHO_DO_BD,19),14),IF(M99=\"INSUMO\",\"INSUMO \" & LEFT(RIGHT(CAMINHO_DO_BD,19),14),IF(M99=\"COMPOSIÇÃO PRÓPRIA\",\"COMPOSIÇÃO PRÓPRIA COM BASE NA \" & LEFT(RIGHT(CAMINHO_DO_BD,19),14),\"PREÇO MÉDIO DE ORÇAMENTOS\")))","v":"SINAPI-10-2022"},760.43,{"$f":"ROUND(J99*(1+BDI),2)","v":930.39},null,"COMPOSIÇÃO","BDI DE OBRA"]
[{"$f":"$A$98&\".\"&(ROW(A100)-ROW($A$98))","v":"1.6.2.2"},"JANELA DE ALUMÍNIO TIPO MAXIM-AR, COM VIDROS, BATENTE E FERRAGENS. EXCLUSIVE ALIZAR, ACABAMENTO E CONTRAMARCO. FORNECIMENTO E INSTALAÇÃO. AF_12/2019","M2",3.83,{"$f":"K100","v":863},{"$f":"ROUND(D100*E100,2)","v":3305.29},null,"94569",{"$f":"IF(M100=\"COMPOSIÇÃO\",LEFT(RIGHT(CAMINHO_DO_BD,19),14),IF(M100=\"INSUMO\",\"INSUMO \" & LEFT(RIGHT(CAMINHO_DO_BD,19),14),IF(M100=\"COMPOSIÇÃO PRÓPRIA\",\"COMPOSIÇÃO PRÓPRIA COM BASE NA \" & LEFT(RIGHT(CAMINHO_DO_BD,19),14),\"PREÇO MÉDIO DE ORÇAMENTOS\")))","v":"SINAPI-10-2022"},705.35,{"$f":"ROUND(J100*(1+BDI),2)","v":863},null,"COMPOSIÇÃO","BDI DE OBRA"]
[]
["1.6.3","PORTA DE ACESSO PRINCIPAL DA RECEPÇÃO",null,null,null,{"$f":"SUBTOTAL(9,F103:F106)","v":4533.1499999999996}]
[{"$f":"$A$102&\".\"&(ROW(A103)-ROW($A$102))","v":"1.6.3.1"},"PORTA DE ABRIR DE VIDRO TEMPERADO INCOLOR, 1,10X240 CM, ESPESSURA 10 MM, INCLUSIVE ACESSÓRIOS. AF_01/2021 - PORTA DE ACESSO PRINCIPAL RECEPÇÃO COM REAPROVEITAMENTO DE PUXADOR","UN",1,{"$f":"K103","v":1960.61},{"$f":"ROUND(D103*E103,2)","v":1960.61},null,"C_CIV0306",{"$f":"IF(M103=\"COMPOSIÇÃO\",LEFT(RIGHT(CAMINHO_DO_BD,19),14),IF(M103=\"INSUMO\",\"INSUMO \" & LEFT(RIGHT(CAMINHO_DO_BD,19),14),IF(M103=\"COMPOSIÇÃO PRÓPRIA\",\"COMPOSIÇÃO PRÓPRIA COM BASE NA \" & LEFT(RIGHT(CAMINHO_DO_BD,19),14),\"PREÇO MÉDIO DE ORÇAMENTOS\")))","v":"COMPOSIÇÃO PRÓPRIA COM BASE NA SINAPI-10-2022"},1602.46,{"$f":"ROUND(J103*(1+BDI),2)","v":1960.61},null,"COMPOSIÇÃO PRÓPRIA","BDI DE OBRA"]
[{"$f":"$A$102&\".\"&(ROW(A104)-ROW($A$102))","v":"1.6.3.2"},"DIVISÓRIA FIXA EM VIDRO TEMPERADO INCOLOR 10 MM , SEM ABERTURA. AF_01/2021 \nVIDRO FIXO PORTA DE ACESSO PRINCIPAL RECEPÇÃO","M2",1.92,{"$f":"K104","v":660.32},{"$f":"ROUND(D104*E104,2)","v":1267.81},null,"102235",{"$f":"IF(M104=\"COMPOSIÇÃO\",LEFT(RIGHT(CAMINHO_DO_BD,19),14),IF(M104=\"INSUMO\",\"INSUMO \" & LEFT(RIGHT(CAMINHO_DO_BD,19),14),IF(M104=\"COMPOSIÇÃO PRÓPRIA\",\"COMPOSIÇÃO PRÓPRIA COM BASE NA \" & LEFT(RIGHT(CAMINHO_DO_BD,19),14),\"PREÇO MÉDIO DE ORÇAMENTOS\")))","v":"SINAPI-10-2022"},539.70000000000005,{"$f":"ROUND(J104*(1+BDI),2)","v":660.32},null,"COMPOSIÇÃO","BDI DE OBRA"]
["1.6.3.3","MOLA HIDRAULICA DE PISO PARA PORTA DE VIDRO TEMPERADO. AF_01/2021","UN",1,{"$f":"K105","v":1304.73},{"$f":"ROUND(D105*E105,2)","v":1304.73},null,"102188",{"$f":"IF(M105=\"COMPOSIÇÃO\",LEFT(RIGHT(CAMINHO_DO_BD,19),14),IF(M105=\"INSUMO\",\"INSUMO \" & LEFT(RIGHT(CAMINHO_DO_BD,19),14),IF(M105=\"COMPOSIÇÃO PRÓPRIA\",\"COMPOSIÇÃO PRÓPRIA COM BASE NA \" & LEFT(RIGHT(CAMINHO_DO_BD,19),14),\"PREÇO MÉDIO DE ORÇAMENTOS\")))","v":"SINAPI-10-2022"},1066.3900000000001,{"$f":"ROUND(J105*(1+BDI),2)","v":1304.73},null,"COMPOSIÇÃO","BDI DE OBRA"]
[]
["1.7","PISOS",null,null,null,{"$f":"SUBTOTAL(9,F108:F114)","v":49127.5}]
[{"$f":"$A$107&\".\"&(ROW(A108)-ROW($A$107))","v":"1.7.1"},"CONTRAPISO EM ARGAMASSA TRAÇO 1:4 (CIMENTO E AREIA), PREPARO MECÂNICO COM BETONEIRA 400 L, APLICADO EM ÁREAS SECAS SOBRE LAJE, ADERIDO, ACABAMENTO NÃO REFORÇADO, ESPESSURA 3CM. SARRAFEAMENTO, POLIMENTO COM MÁQUINA POLITRIZ INDUSTRIAL.\nRECEPÇÃO/COWOORKING/SALA REUNIÃO DIREÇÃO SENAI (REGULARIZAÇÃO)","M2",83.91,{"$f":"K108","v":68.33},{"$f":"ROUND(D108*E108,2)","v":5733.57},null,"C_CIV0303",{"$f":"IF(M108=\"COMPOSIÇÃO\",LEFT(RIGHT(CAMINHO_DO_BD,19),14),IF(M108=\"INSUMO\",\"INSUMO \" & LEFT(RIGHT(CAMINHO_DO_BD,19),14),IF(M108=\"COMPOSIÇÃO PRÓPRIA\",\"COMPOSIÇÃO PRÓPRIA COM BASE NA \" & LEFT(RIGHT(CAMINHO_DO_BD,19),14),\"PREÇO MÉDIO DE ORÇAMENTOS\")))","v":"COMPOSIÇÃO PRÓPRIA COM BASE NA SINAPI-10-2022"},55.85,{"$f":"ROUND(J108*(1+BDI),2)","v":68.33},null,"COMPOSIÇÃO PRÓPRIA","BDI DE OBRA"]
[{"$f":"$A$107&\".\"&(ROW(A109)-ROW($A$107))","v":"1.7.2"},"CONTRAPISO DE CONCRETO, ESPESSURA 7CM, PREPARO MECANICO \n(BANHEIRO SUPERINTENDENCIA)","M2",4.4000000000000004,{"$f":"K109","v":42.03},{"$f":"ROUND(D109*E109,2)","v":184.93},null,"C_CIV0095","COMPOSIÇÃO PRÓPRIA COM BASE NA SINAPI-10-2022",34.35,42.03,null,"COMPOSIÇÃO PRÓPRIA","BDI DE OBRA"]
["1.7.3","FORNECIMENTO E INSTALAÇÃO DE PISO LAMINADO QUICK - STEP SMART (HYDRO SEAL) COR PATINA COTTAGE\nGABINETE E SALA DE REUNIÃO DA SUPERINTENDENCIA","M2",19.32,{"$f":"K110","v":198.24},{"$f":"ROUND(D110*E110,2)","v":3830},null,"C_CIV0307","COMPOSIÇÃO PRÓPRIA COM BASE NA SINAPI-10-2022",162.03,198.24,null,"COMPOSIÇÃO PRÓPRIA","BDI DE OBRA"]
["1.7.4","FORNECIMENTO E INSTALAÇÃO DE ACABAMENTO DE PISO LAMINADO QUICK - STEP SMART (HYDRO SEAL) COR PATINA COTTAGE ENTRE PORTAS DE DIVISÃO DE AMBIENTES","M2",0.21000000000000002,{"$f":"K111","v":198.24},{"$f":"ROUND(D111*E111,2)","v":41.63},null,"C_CIV0307","COMPOSIÇÃO PRÓPRIA COM BASE NA SINAPI-10-2022",162.03,198.24,null,"COMPOSIÇÃO PRÓPRIA","BDI DE OBRA"]
["1.7.5","FORNECIMENTO E INSTALAÇÃO DE PISO PORCELANATO FOSSILE, POLIDO, 1,20 X 0,60 M, REF.: ELIANE OU EQUIVALENTE\nBANHEIRO GABINETE SESI","M2",4.41,{"$f":"K112","v":247.64},{"$f":"ROUND(D112*E112,2)","v":1092.0899999999999},null,"C_CIV0308","COMPOSIÇÃO PRÓPRIA COM BASE NA SINAPI-10-2022",202.4,247.64,null,"COMPOSIÇÃO PRÓPRIA","BDI DE OBRA"]
["1.7.6","PISO VINILICO - REF. TARKETT, COR AVEIA, TEXTURA LISA, LINHA AMBIENTA SERIES, 184X950MMX0,7MM\nARQUIVO SESI/SENAI, RECEPÇÃO, COWOORKING, GABINETE E SALA DE REUNIÃO SENAI","M2",118.8,{"$f":"K113","v":321.93},{"$f":"ROUND(D113*E113,2)","v":38245.279999999999},null,"101727","SINAPI-10-2022",263.12,321.93,null,"COMPOSIÇÃO","BDI DE OBRA"]
[]
["1.8","REVESTIMENTOS",null,null,null,{"$f":"SUBTOTAL(9,F116:F129)","v":49713.760000000009}]
[]
["1.8.1","AZULEJO",null,null,null,{"$f":"SUBTOTAL(9,F118:F119)","v":7262.44}]
[{"$f":"$A$117&\".\"&(ROW(A118)-ROW($A$117))","v":"1.8.1.1"},"FORNECIMENTO E INSTALAÇÃO DE REVESTIMENTO CASTELATTO PEDRA PUGLIA COR FENDI OU SIMILAR\nSALA DE REUNIÃO SUPERINTENDENCIA SESI","M²",9.2799999999999994,{"$f":"K118","v":782.59},{"$f":"ROUND(D118*E118,2)","v":7262.44},null,"C_CIV0314",{"$f":"IF(M118=\"COMPOSIÇÃO\",LEFT(RIGHT(CAMINHO_DO_BD,19),14),IF(M118=\"INSUMO\",\"INSUMO \" & LEFT(RIGHT(CAMINHO_DO_BD,19),14),IF(M118=\"COMPOSIÇÃO PRÓPRIA\",\"COMPOSIÇÃO PRÓPRIA COM BASE NA \" & LEFT(RIGHT(CAMINHO_DO_BD,19),14),\"PREÇO MÉDIO DE ORÇAMENTOS\")))","v":"COMPOSIÇÃO PRÓPRIA COM BASE NA SINAPI-10-2022"},639.63,{"$f":"ROUND(J118*(1+BDI),2)","v":782.59},null,"COMPOSIÇÃO PRÓPRIA","BDI DE OBRA"]
[]
["1.8.2","RODAPÉ",null,null,null,{"$f":"SUBTOTAL(9,F121:F123)","v":33781}]
[{"$f":"$A$120&\".\"&(ROW(A121)-ROW($A$120))","v":"1.8.2.1"},"RODAPÉ EM POLIESTIRENO COM 1 FRISO, ALTURA (100X13) MM. AF_09/2020 - COR BRANCA OU EQUIVALENTE\nGABINETE, SALA DE REUNIÃO E BANHEIRO DA SUPERINTENDENCIA SESI","M",31.340000000000003,{"$f":"K121","v":210.89},{"$f":"ROUND(D121*E121,2)","v":6609.29},null,"C_CIV0309",{"$f":"IF(M121=\"COMPOSIÇÃO\",LEFT(RIGHT(CAMINHO_DO_BD,19),14),IF(M121=\"INSUMO\",\"INSUMO \" & LEFT(RIGHT(CAMINHO_DO_BD,19),14),IF(M121=\"COMPOSIÇÃO PRÓPRIA\",\"COMPOSIÇÃO PRÓPRIA COM BASE NA \" & LEFT(RIGHT(CAMINHO_DO_BD,19),14),\"PREÇO MÉDIO DE ORÇAMENTOS\")))","v":"COMPOSIÇÃO PRÓPRIA COM BASE NA SINAPI-10-2022"},172.37,{"$f":"ROUND(J121*(1+BDI),2)","v":210.89},null,"COMPOSIÇÃO PRÓPRIA","BDI DE OBRA"]
[{"$f":"$A$120&\".\"&(ROW(A122)-ROW($A$120))","v":"1.8.2.2"},"RODAPÉ COR CINZA URBANO EM POLIESTIRENO - 15 CM - ARQUITECH OU EQUIVALENTE\nRECEPÇÃO, GABINETE SENAI E SALA DE REUNIÃO SENAI/SALA ARQUIVO","M",64.42,{"$f":"K122","v":421.79},{"$f":"ROUND(D122*E122,2)","v":27171.71},null,"C_CIV0311",{"$f":"IF(M122=\"COMPOSIÇÃO\",LEFT(RIGHT(CAMINHO_DO_BD,19),14),IF(M122=\"INSUMO\",\"INSUMO \" & LEFT(RIGHT(CAMINHO_DO_BD,19),14),IF(M122=\"COMPOSIÇÃO PRÓPRIA\",\"COMPOSIÇÃO PRÓPRIA COM BASE NA \" & LEFT(RIGHT(CAMINHO_DO_BD,19),14),\"PREÇO MÉDIO DE ORÇAMENTOS\")))","v":"COMPOSIÇÃO PRÓPRIA COM BASE NA SINAPI-10-2022"},344.74,{"$f":"ROUND(J122*(1+BDI),2)","v":421.79},null,"COMPOSIÇÃO PRÓPRIA","BDI DE OBRA"]
[]
["1.8.3","GRANITO",null,null,null,{"$f":"SUBTOTAL(9,F125:F129)","v":8670.32}]
[{"$f":"$A$124&\".\"&(ROW(A125)-ROW($A$124))","v":"1.8.3.1"},"SOLEIRA EM GRANITO, LARGURA 15 CM, ESPESSURA 3,0 CM, BRANCO ALPHA, ITAUNAS OU SIMILAR","M",4.2,{"$f":"K125","v":184.59},{"$f":"ROUND(D125*E125,2)","v":775.28},null,"C_CIV0328",{"$f":"IF(M125=\"COMPOSIÇÃO\",LEFT(RIGHT(CAMINHO_DO_BD,19),14),IF(M125=\"INSUMO\",\"INSUMO \" & LEFT(RIGHT(CAMINHO_DO_BD,19),14),IF(M125=\"COMPOSIÇÃO PRÓPRIA\",\"COMPOSIÇÃO PRÓPRIA COM BASE NA \" & LEFT(RIGHT(CAMINHO_DO_BD,19),14),\"PREÇO MÉDIO DE ORÇAMENTOS\")))","v":"COMPOSIÇÃO PRÓPRIA COM BASE NA SINAPI-10-2022"},150.87,{"$f":"ROUND(J125*(1+BDI),2)","v":184.59},null,"COMPOSIÇÃO PRÓPRIA","BDI DE OBRA"]
[{"$f":"$A$124&\".\"&(ROW(A126)-ROW($A$124))","v":"1.8.3.2"},"SOLEIRA EM GRANITO, LARGURA 30 CM, ESPESSURA 3,0 CM, ALPHA, ITAUNAS OU SIMILAR","M",1.9,{"$f":"K126","v":313.70999999999998},{"$f":"ROUND(D126*E126,2)","v":596.04999999999995},null,"C_CIV0305",{"$f":"IF(M126=\"COMPOSIÇÃO\",LEFT(RIGHT(CAMINHO_DO_BD,19),14),IF(M126=\"INSUMO\",\"INSUMO \" & LEFT(RIGHT(CAMINHO_DO_BD,19),14),IF(M126=\"COMPOSIÇÃO PRÓPRIA\",\"COMPOSIÇÃO PRÓPRIA COM BASE NA \" & LEFT(RIGHT(CAMINHO_DO_BD,19),14),\"PREÇO MÉDIO DE ORÇAMENTOS\")))","v":"COMPOSIÇÃO PRÓPRIA COM BASE NA SINAPI-10-2022"},256.39999999999998,{"$f":"ROUND(J126*(1+BDI),2)","v":313.70999999999998},null,"COMPOSIÇÃO PRÓPRIA","BDI DE OBRA"]
["1.8.3.3","PEITORIL DE GRANITO POLIDO - BRANCO ALPHA, ITAUNAS OU SIMILAR","M",23.2,{"$f":"K127","v":132.79},{"$f":"ROUND(D127*E127,2)","v":3080.73},null,"C_CIV0092",{"$f":"IF(M127=\"COMPOSIÇÃO\",LEFT(RIGHT(CAMINHO_DO_BD,19),14),IF(M127=\"INSUMO\",\"INSUMO \" & LEFT(RIGHT(CAMINHO_DO_BD,19),14),IF(M127=\"COMPOSIÇÃO PRÓPRIA\",\"COMPOSIÇÃO PRÓPRIA COM BASE NA \" & LEFT(RIGHT(CAMINHO_DO_BD,19),14),\"PREÇO MÉDIO DE ORÇAMENTOS\")))","v":"COMPOSIÇÃO PRÓPRIA COM BASE NA SINAPI-10-2022"},108.53,{"$f":"ROUND(J127*(1+BDI),2)","v":132.79},null,"COMPOSIÇÃO PRÓPRIA","BDI DE OBRA"]
["1.8.3.4","BANCADA EM QUARTZO POLIDO, COR BRANCO PRIME, SOBRE MÃOS-FRANCESAS METÁLICAS, ESP=2cm COM FRONTÃO 20cm, SAIA COM ACAB. DE MEIA ESQUADRIA E REFORÇO INFERIOR DE BORDA E CORTE PARA INST. DE CORTE COM PIA ESCULPIDA EM PEDRA","M2",2.2399999999999998,{"$f":"K128","v":1883.15},{"$f":"ROUND(D128*E128,2)","v":4218.26},null,"C_CIV0093",{"$f":"IF(M128=\"COMPOSIÇÃO\",LEFT(RIGHT(CAMINHO_DO_BD,19),14),IF(M128=\"INSUMO\",\"INSUMO \" & LEFT(RIGHT(CAMINHO_DO_BD,19),14),IF(M128=\"COMPOSIÇÃO PRÓPRIA\",\"COMPOSIÇÃO PRÓPRIA COM BASE NA \" & LEFT(RIGHT(CAMINHO_DO_BD,19),14),\"PREÇO MÉDIO DE ORÇAMENTOS\")))","v":"COMPOSIÇÃO PRÓPRIA COM BASE NA SINAPI-10-2022"},1539.15,{"$f":"ROUND(J128*(1+BDI),2)","v":1883.15},null,"COMPOSIÇÃO PRÓPRIA","BDI DE OBRA"]
[]
["1.9","FORRO",null,null,null,{"$f":"SUBTOTAL(9,F131:F133)","v":26498.640000000003}]
[{"$f":"$A$130&\".\"&(ROW(A131)-ROW($A$130))","v":"1.9.1"},"FORRO DE GESSO ACARTONADO COM FACE DUPLA (DUAS PLACAS DE GESSO) FIXO, MONOLÍTICA, APARAFUSADO EM PERFIS METÁLICOS ESPAÇADOS A 0,60 M, SUSPENSOS POR PENDURAIS RÍGIDOS REGULÁVEIS, ESPAÇADOS A CADA 1,00 M, E=12,5 MM\nGABINETE SESI/SENAI, RECEPÇÃO-COWOORKING, SALAS DE REUNIÃO SESI/SENAI E SALA DE ARQUIVO","M2",158.47,{"$f":"K131","v":154.77000000000001},{"$f":"ROUND(D131*E131,2)","v":24526.400000000001},null,"C_CIV0273",{"$f":"IF(M131=\"COMPOSIÇÃO\",LEFT(RIGHT(CAMINHO_DO_BD,19),14),IF(M131=\"INSUMO\",\"INSUMO \" & LEFT(RIGHT(CAMINHO_DO_BD,19),14),IF(M131=\"COMPOSIÇÃO PRÓPRIA\",\"COMPOSIÇÃO PRÓPRIA COM BASE NA \" & LEFT(RIGHT(CAMINHO_DO_BD,19),14),\"PREÇO MÉDIO DE ORÇAMENTOS\")))","v":"COMPOSIÇÃO PRÓPRIA COM BASE NA SINAPI-10-2022"},126.5,{"$f":"ROUND(J131*(1+BDI),2)","v":154.77000000000001},null,"COMPOSIÇÃO PRÓPRIA","BDI DE OBRA"]
[{"$f":"$A$130&\".\"&(ROW(A132)-ROW($A$130))","v":"1.9.2"},"FORNECIMENTO E INSTALAÇÃO DE JUNTA PERIMÉTRICA PARA FORRO DE GESSO ACARTONADO","M",133.53,{"$f":"K132","v":14.77},{"$f":"ROUND(D132*E132,2)","v":1972.24},null,"96121",{"$f":"IF(M132=\"COMPOSIÇÃO\",LEFT(RIGHT(CAMINHO_DO_BD,19),14),IF(M132=\"INSUMO\",\"INSUMO \" & LEFT(RIGHT(CAMINHO_DO_BD,19),14),IF(M132=\"COMPOSIÇÃO PRÓPRIA\",\"COMPOSIÇÃO PRÓPRIA COM BASE NA \" & LEFT(RIGHT(CAMINHO_DO_BD,19),14),\"PREÇO MÉDIO DE ORÇAMENTOS\")))","v":"SINAPI-10-2022"},12.07,{"$f":"ROUND(J132*(1+BDI),2)","v":14.77},null,"COMPOSIÇÃO","BDI DE OBRA"]
[]
["1.10","PINTURA",null,null,null,{"$f":"SUBTOTAL(9,F135:F145)","v":18525.05}]
[]
["1.10.1","PAREDE",null,null,null,{"$f":"SUBTOTAL(9,F137:F140)","v":10327.950000000001}]
[{"$f":"A136&\".\"&(ROW(A137)-ROW(A136))","v":"1.10.1.1"},"APLICAÇÃO E LIXAMENTO DE MASSA LÁTEX ACRÍLICA EM PAREDES, UMA DEMÃO. AF_06/2014- INTERNO E EXTERNO DIRETORIA E SUPERINTENDENCIA ","M2",118.61,{"$f":"K137","v":14.57},{"$f":"ROUND(D137*E137,2)","v":1728.15},null,"88495",{"$f":"IF(M137=\"COMPOSIÇÃO\",LEFT(RIGHT(CAMINHO_DO_BD,19),14),IF(M137=\"INSUMO\",\"INSUMO \" & LEFT(RIGHT(CAMINHO_DO_BD,19),14),IF(M137=\"COMPOSIÇÃO PRÓPRIA\",\"COMPOSIÇÃO PRÓPRIA COM BASE NA \" & LEFT(RIGHT(CAMINHO_DO_BD,19),14),\"PREÇO MÉDIO DE ORÇAMENTOS\")))","v":"SINAPI-10-2022"},11.91,{"$f":"ROUND(J137*(1+BDI),2)","v":14.57},null,"COMPOSIÇÃO","BDI DE OBRA"]
[{"$f":"A137&\".\"&(ROW(A138)-ROW(A137))","v":"1.10.1.1.1"},"APLICAÇÃO DE FUNDO SELADOR ACRÍLICO EM PAREDES, UMA DEMÃO. AF_06/2014\nINTERNO E EXTERNO DIRETORIA E SUPERINTENDENCIA ","M2",299.55,2.73,817.77,null,"88485",{"$f":"IF(M138=\"COMPOSIÇÃO\",LEFT(RIGHT(CAMINHO_DO_BD,19),14),IF(M138=\"INSUMO\",\"INSUMO \" & LEFT(RIGHT(CAMINHO_DO_BD,19),14),IF(M138=\"COMPOSIÇÃO PRÓPRIA\",\"COMPOSIÇÃO PRÓPRIA COM BASE NA \" & LEFT(RIGHT(CAMINHO_DO_BD,19),14),\"PREÇO MÉDIO DE ORÇAMENTOS\")))","v":"SINAPI-10-2022"},2.23,{"$f":"ROUND(J138*(1+BDI),2)","v":2.73},null,"COMPOSIÇÃO","BDI DE OBRA",null,null,null,null,null,null,null,null,null,null,null,null,null,null,null,null,null,"atual"]
["1.10.1.1.1.1","APLICAÇÃO MANUAL DE PINTURA COM TINTA LÁTEX ACRÍLICA EM PAREDES, DUAS DEMÃOS. AF_06/2014\nPINTURA INTERNA E EXTERNA DIRETORIA E SUPERINTENDENCIA - COR A SER DEFINIDA PELA FISCALIZAÇÃO","M2",424.31999999999994,{"$f":"K139","v":18.34},{"$f":"ROUND(D139*E139,2)","v":7782.03},null,"88489",{"$f":"IF(M139=\"COMPOSIÇÃO\",LEFT(RIGHT(CAMINHO_DO_BD,19),14),IF(M139=\"INSUMO\",\"INSUMO \" & LEFT(RIGHT(CAMINHO_DO_BD,19),14),IF(M139=\"COMPOSIÇÃO PRÓPRIA\",\"COMPOSIÇÃO PRÓPRIA COM BASE NA \" & LEFT(RIGHT(CAMINHO_DO_BD,19),14),\"PREÇO MÉDIO DE ORÇAMENTOS\")))","v":"SINAPI-10-2022"},14.99,{"$f":"ROUND(J139*(1+BDI),2)","v":18.34},null,"COMPOSIÇÃO","BDI DE OBRA",null,null,null,null,null,null,null,null,null,null,null,null,null,null,null,7462.91,{"$f":"F139-AD139","v":319.11999999999989},7782.03]
[]
["1.10.2","TETO",null,null,null,{"$f":"SUBTOTAL(9,F142:F145)","v":8197.1}]
[{"$f":"A141&\".\"&(ROW(A142)-ROW(A141))","v":"1.10.2.1"},"APLICAÇÃO E LIXAMENTO DE MASSA LÁTEX EM TETO, UMA DEMÃO. AF_06/2014","M2",166.53999999999996,{"$f":"K142","v":25.4},{"$f":"ROUND(D142*E142,2)","v":4230.12},null,"88494",{"$f":"IF(M142=\"COMPOSIÇÃO\",LEFT(RIGHT(CAMINHO_DO_BD,19),14),IF(M142=\"INSUMO\",\"INSUMO \" & LEFT(RIGHT(CAMINHO_DO_BD,19),14),IF(M142=\"COMPOSIÇÃO PRÓPRIA\",\"COMPOSIÇÃO PRÓPRIA COM BASE NA \" & LEFT(RIGHT(CAMINHO_DO_BD,19),14),\"PREÇO MÉDIO DE ORÇAMENTOS\")))","v":"SINAPI-10-2022"},20.76,{"$f":"ROUND(J142*(1+BDI),2)","v":25.4},null,"COMPOSIÇÃO","BDI DE OBRA"]
[{"$f":"$A$141&\".\"&(ROW(A143)-ROW($A$141))","v":"1.10.2.2"},"APLICAÇÃO DE FUNDO SELADOR ACRÍLICO EM TETO, UMA DEMÃO. AF_06/2014","M2",166.53999999999996,{"$f":"K143","v":3.22},{"$f":"ROUND(D143*E143,2)","v":536.26},null,"88484",{"$f":"IF(M143=\"COMPOSIÇÃO\",LEFT(RIGHT(CAMINHO_DO_BD,19),14),IF(M143=\"INSUMO\",\"INSUMO \" & LEFT(RIGHT(CAMINHO_DO_BD,19),14),IF(M143=\"COMPOSIÇÃO PRÓPRIA\",\"COMPOSIÇÃO PRÓPRIA COM BASE NA \" & LEFT(RIGHT(CAMINHO_DO_BD,19),14),\"PREÇO MÉDIO DE ORÇAMENTOS\")))","v":"SINAPI-10-2022"},2.63,{"$f":"ROUND(J143*(1+BDI),2)","v":3.22},null,"COMPOSIÇÃO","BDI DE OBRA"]
[{"$f":"$A$141&\".\"&(ROW(A144)-ROW($A$141))","v":"1.10.2.3"},"APLICAÇÃO MANUAL DE PINTURA COM TINTA LÁTEX ACRÍLICA EM TETO COR BRANCO NEVE, DUAS DEMÃOS. AF_06/2014","M2",166.53999999999996,{"$f":"K144","v":20.6},{"$f":"ROUND(D144*E144,2)","v":3430.72},null,"88488",{"$f":"IF(M144=\"COMPOSIÇÃO\",LEFT(RIGHT(CAMINHO_DO_BD,19),14),IF(M144=\"INSUMO\",\"INSUMO \" & LEFT(RIGHT(CAMINHO_DO_BD,19),14),IF(M144=\"COMPOSIÇÃO PRÓPRIA\",\"COMPOSIÇÃO PRÓPRIA COM BASE NA \" & LEFT(RIGHT(CAMINHO_DO_BD,19),14),\"PREÇO MÉDIO DE ORÇAMENTOS\")))","v":"SINAPI-10-2022"},16.84,{"$f":"ROUND(J144*(1+BDI),2)","v":20.6},null,"COMPOSIÇÃO","BDI DE OBRA"]
[]
["1.11","INSTALAÇÃO DE ÁGUA FRIA, ESGOTO E DRENAGEM",null,null,null,{"$f":"SUBTOTAL(9,F147:F171)","v":2574.0999999999995}]
[]
["1.11.1","ÁGUA FRIA DO BANHEIRO DA SUPERINTENDENCIA",null,null,null,{"$f":"SUBTOTAL(9,F149:F155)","v":1444.1999999999998}]
[{"$f":"$A$148&\".\"&(ROW(A149)-ROW($A$148))","v":"1.11.1.1"},"PONTO DE CONSUMO TERMINAL DE ÁGUA FRIA (SUBRAMAL) COM TUBULAÇÃO DE PVC, DN 25 MM, INSTALADO EM RAMAL DE ÁGUA, INCLUSOS RASGO E CHUMBAMENTO EM ALVENARIA. AF_12/2014\nDUCHA E TORNEIRA","UN",2,{"$f":"K149","v":177.73},{"$f":"ROUND(D149*E149,2)","v":355.46},null,"89957",{"$f":"IF(M149=\"COMPOSIÇÃO\",LEFT(RIGHT(CAMINHO_DO_BD,19),14),IF(M149=\"INSUMO\",\"INSUMO \" & LEFT(RIGHT(CAMINHO_DO_BD,19),14),IF(M149=\"COMPOSIÇÃO PRÓPRIA\",\"COMPOSIÇÃO PRÓPRIA COM BASE NA \" & LEFT(RIGHT(CAMINHO_DO_BD,19),14),\"PREÇO MÉDIO DE ORÇAMENTOS\")))","v":"SINAPI-10-2022"},145.26,{"$f":"ROUND(J149*(1+BDI),2)","v":177.73},null,"COMPOSIÇÃO","BDI DE OBRA"]
[{"$f":"$A$148&\".\"&(ROW(A150)-ROW($A$148))","v":"1.11.1.2"},"JOELHO 90 GRAUS COM BUCHA DE LATÃO, PVC, SOLDÁVEL, DN 25MM, X 3/4  INSTALADO EM RAMAL OU SUB-RAMAL DE ÁGUA - FORNECIMENTO E INSTALAÇÃO. AF_06/2022","UN",2,22.95,45.9,null,"89366","SINAPI-10-2022",18.760000000000002,22.95,null,"COMPOSIÇÃO","BDI DE OBRA"]
["1.11.1.3","JOELHO 90 GRAUS COM BUCHA DE LATÃO, PVC, SOLDÁVEL, DN 25MM, X 3/4  INSTALADO EM RAMAL OU SUB-RAMAL DE ÁGUA - FORNECIMENTO E INSTALAÇÃO. AF_06/2022","UN",2,{"$f":"K151","v":22.95},{"$f":"ROUND(D151*E151,2)","v":45.9},null,"89366","SINAPI-10-2022",18.760000000000002,22.95,null,"COMPOSIÇÃO","BDI DE OBRA"]
["1.11.1.4","JOELHO 90 GRAUS, PVC, SOLDÁVEL, DN 50MM, INSTALADO EM PRUMADA DE ÁGUA - FORNECIMENTO E INSTALAÇÃO. AF_06/2022","UN",2,{"$f":"K152","v":19.45},{"$f":"ROUND(D152*E152,2)","v":38.9},null,"89501","SINAPI-10-2022",15.9,19.45,null,"COMPOSIÇÃO","BDI DE OBRA"]
["1.11.1.5","TUBO, PVC, SOLDÁVEL, DN 50MM, INSTALADO EM PRUMADA DE ÁGUA - FORNECIMENTO E INSTALAÇÃO. AF_06/2022","M",3,{"$f":"K153","v":27.2},{"$f":"ROUND(D153*E153,2)","v":81.599999999999994},null,"89449","SINAPI-10-2022",22.23,27.2,null,"COMPOSIÇÃO","BDI DE OBRA"]
["1.11.1.6","VÁLVULA DE DESCARGA METÁLICA, BASE 1 1/2 \", ACABAMENTO METALICO CROMADO MOD. BENEFIT REF. DOCOL OU SIMILAR- FORNECIMENTO E INSTALAÇÃO","UN",1,{"$f":"K154","v":876.44},{"$f":"ROUND(D154*E154,2)","v":876.44},null,"C_CIV0228","COMPOSIÇÃO PRÓPRIA COM BASE NA SINAPI-10-2022",716.34,876.44,null,"COMPOSIÇÃO PRÓPRIA","BDI DE OBRA"]
[]
["1.11.2","ESGOTO DO BANHEIRO DA SUPERINTENDENCIA",null,null,null,{"$f":"SUBTOTAL(9,F157:F165)","v":673.42}]
[{"$f":"$A$156&\".\"&(ROW(A157)-ROW($A$156))","v":"1.11.2.1"},"TUBO DE PVC PARA REDE COLETORA DE ESGOTO DE PAREDE MACIÇA, DN 100 MM, JUNTA ELÁSTICA - FORNECIMENTO E ASSENTAMENTO. AF_01/2021","M",3,{"$f":"K157","v":58.32},{"$f":"ROUND(D157*E157,2)","v":174.96},null,"90694",{"$f":"IF(M157=\"COMPOSIÇÃO\",LEFT(RIGHT(CAMINHO_DO_BD,19),14),IF(M157=\"INSUMO\",\"INSUMO \" & LEFT(RIGHT(CAMINHO_DO_BD,19),14),IF(M157=\"COMPOSIÇÃO PRÓPRIA\",\"COMPOSIÇÃO PRÓPRIA COM BASE NA \" & LEFT(RIGHT(CAMINHO_DO_BD,19),14),\"PREÇO MÉDIO DE ORÇAMENTOS\")))","v":"SINAPI-10-2022"},47.67,{"$f":"ROUND(J157*(1+BDI),2)","v":58.32},null,"COMPOSIÇÃO","BDI DE OBRA"]
["1.11.2.2","TUBO PVC, SERIE NORMAL, ESGOTO PREDIAL, DN 40 MM, FORNECIDO E INSTALADO EM RAMAL DE DESCARGA OU RAMAL DE ESGOTO SANITÁRIO. AF_08/2022","M",3,{"$f":"K158","v":25.78},{"$f":"ROUND(D158*E158,2)","v":77.34},null,"89711","SINAPI-10-2022",21.07,25.78,null,"COMPOSIÇÃO","BDI DE OBRA"]
["1.11.2.3","TUBO PVC, SERIE NORMAL, ESGOTO PREDIAL, DN 50 MM, FORNECIDO E INSTALADO EM RAMAL DE DESCARGA OU RAMAL DE ESGOTO SANITÁRIO. AF_08/2022","M",4.74,{"$f":"K159","v":33.979999999999997},{"$f":"ROUND(D159*E159,2)","v":161.07},null,"89712","SINAPI-10-2022",27.77,33.979999999999997,null,"COMPOSIÇÃO","BDI DE OBRA"]
["1.11.2.4","JUNÇÃO DE REDUÇÃO INVERTIDA, PVC, SÉRIE NORMAL, ESGOTO PREDIAL, DN 100 X 50 MM, JUNTA ELÁSTICA, FORNECIDO E INSTALADO EM RAMAL DE DESCARGA OU RAMAL DE ESGOTO SANITÁRIO. AF_08/2022","UN",1,{"$f":"K160","v":59.5},{"$f":"ROUND(D160*E160,2)","v":59.5},null,"104345","SINAPI-10-2022",48.63,59.5,null,"COMPOSIÇÃO","BDI DE OBRA"]
["1.11.2.5","TÊ DE REDUÇÃO, PVC, SOLDÁVEL, DN 50MM X 40MM, INSTALADO EM PRUMADA DE ÁGUA - FORNECIMENTO E INSTALAÇÃO. AF_06/2022","UN",1,{"$f":"K161","v":44.41},{"$f":"ROUND(D161*E161,2)","v":44.41},null,"89626","SINAPI-10-2022",36.299999999999997,44.41,null,"COMPOSIÇÃO","BDI DE OBRA"]
["1.11.2.6","JOELHO 90 GRAUS, PVC, SOLDÁVEL, DN 40MM, INSTALADO EM RAMAL DE DISTRIBUIÇÃO DE ÁGUA - FORNECIMENTO E INSTALAÇÃO. AF_06/2022","UN",3,{"$f":"K162","v":23.34},{"$f":"ROUND(D162*E162,2)","v":70.02},null,"103980","SINAPI-10-2022",19.079999999999998,23.34,null,"COMPOSIÇÃO","BDI DE OBRA"]
["1.11.2.7","CAIXA SIFONADA, PVC, DN 100 X 100 X 50 MM, JUNTA ELÁSTICA, FORNECIDA E INSTALADA EM RAMAL DE DESCARGA OU EM RAMAL DE ESGOTO SANITÁRIO. AF_12/2014","UN",1,{"$f":"K163","v":61.96},{"$f":"ROUND(D163*E163,2)","v":61.96},null,"89707","SINAPI-10-2022",50.64,61.96,null,"COMPOSIÇÃO","BDI DE OBRA"]
["1.11.2.8","RALO SIFONADO REDONDO, PVC, DN 100 X 40 MM, JUNTA SOLDÁVEL, FORNECIDO E INSTALADO EM RAMAL DE DESCARGA OU EM RAMAL DE ESGOTO SANITÁRIO. AF_08/2022","UN",1,{"$f":"K164","v":24.16},{"$f":"ROUND(D164*E164,2)","v":24.16},null,"104327","SINAPI-10-2022",19.75,24.16,null,"COMPOSIÇÃO","BDI DE OBRA"]
[]
["1.11.3","DRENO DA CLIMATIZAÇÃO",null,null,null,{"$f":"SUBTOTAL(9,F167:F171)","v":456.48}]
[{"$f":"$A$166&\".\"&(ROW(A167)-ROW($A$166))","v":"1.11.3.1"},"TUBO, PVC, SOLDÁVEL, DN 25MM, INSTALADO EM DRENO DE AR-CONDICIONADO - FORNECIMENTO E INSTALAÇÃO. AF_08/2022","M",12,{"$f":"K167","v":21.51},{"$f":"ROUND(D167*E167,2)","v":258.12},null,"89865",{"$f":"IF(M167=\"COMPOSIÇÃO\",LEFT(RIGHT(CAMINHO_DO_BD,19),14),IF(M167=\"INSUMO\",\"INSUMO \" & LEFT(RIGHT(CAMINHO_DO_BD,19),14),IF(M167=\"COMPOSIÇÃO PRÓPRIA\",\"COMPOSIÇÃO PRÓPRIA COM BASE NA \" & LEFT(RIGHT(CAMINHO_DO_BD,19),14),\"PREÇO MÉDIO DE ORÇAMENTOS\")))","v":"SINAPI-10-2022"},17.579999999999998,{"$f":"ROUND(J167*(1+BDI),2)","v":21.51},null,"COMPOSIÇÃO","BDI DE OBRA"]
[{"$f":"$A$166&\".\"&(ROW(A168)-ROW($A$166))","v":"1.11.3.2"},"JOELHO 90 GRAUS, PVC, SOLDÁVEL, DN 25MM, INSTALADO EM DRENO DE AR-CONDICIONADO - FORNECIMENTO E INSTALAÇÃO. AF_08/2022","UN",6,8.81,52.86,null,"89866",{"$f":"IF(M168=\"COMPOSIÇÃO\",LEFT(RIGHT(CAMINHO_DO_BD,19),14),IF(M168=\"INSUMO\",\"INSUMO \" & LEFT(RIGHT(CAMINHO_DO_BD,19),14),IF(M168=\"COMPOSIÇÃO PRÓPRIA\",\"COMPOSIÇÃO PRÓPRIA COM BASE NA \" & LEFT(RIGHT(CAMINHO_DO_BD,19),14),\"PREÇO MÉDIO DE ORÇAMENTOS\")))","v":"SINAPI-10-2022"},7.2,{"$f":"ROUND(J168*(1+BDI),2)","v":8.81},null,"COMPOSIÇÃO","BDI DE OBRA"]
["1.11.3.3","JOELHO 45 GRAUS, PVC, SOLDÁVEL, DN 25MM, INSTALADO EM DRENO DE AR-CONDICIONADO - FORNECIMENTO E INSTALAÇÃO. AF_08/2022","UN",6,10.130000000000001,60.78,null,"89867",{"$f":"IF(M169=\"COMPOSIÇÃO\",LEFT(RIGHT(CAMINHO_DO_BD,19),14),IF(M169=\"INSUMO\",\"INSUMO \" & LEFT(RIGHT(CAMINHO_DO_BD,19),14),IF(M169=\"COMPOSIÇÃO PRÓPRIA\",\"COMPOSIÇÃO PRÓPRIA COM BASE NA \" & LEFT(RIGHT(CAMINHO_DO_BD,19),14),\"PREÇO MÉDIO DE ORÇAMENTOS\")))","v":"SINAPI-10-2022"},8.2799999999999994,{"$f":"ROUND(J169*(1+BDI),2)","v":10.130000000000001},null,"COMPOSIÇÃO","BDI DE OBRA"]
["1.11.3.4","TUBO DE ESPUMA DE POLIETILENO EXPANDIDO FLEXIVEL PARA ISOLAMENTO TERMICO DE TUBULACAO DE AR CONDICIONADO, AGUA QUENTE,  DN 1 1/2\", E= 10 MM","M     ",12,7.06,84.72,null,39707,{"$f":"IF(M170=\"COMPOSIÇÃO\",LEFT(RIGHT(CAMINHO_DO_BD,19),14),IF(M170=\"INSUMO\",\"INSUMO \" & LEFT(RIGHT(CAMINHO_DO_BD,19),14),IF(M170=\"COMPOSIÇÃO PRÓPRIA\",\"COMPOSIÇÃO PRÓPRIA COM BASE NA \" & LEFT(RIGHT(CAMINHO_DO_BD,19),14),\"PREÇO MÉDIO DE ORÇAMENTOS\")))","v":"INSUMO SINAPI-10-2022"},5.77,{"$f":"ROUND(J170*(1+BDI),2)","v":7.06},null,"INSUMO","BDI DE OBRA"]
[]
["1.12","INSTALAÇÕES ELÉTRICA DE BAIXA TENSÃO",null,null,null,{"$f":"SUBTOTAL(9,F173:F294)","v":144094.67999999996}]
[]
["1.2.1","CABOS",null,null,null,{"$f":"SUBTOTAL(9,F175:F185)","v":23354.69}]
[{"$f":"$A$174&\".\"&(ROW(A175)-ROW($A$174))","v":"1.2.1.1"},"CABO DE COBRE FLEXÍVEL ISOLADO, 2,5 MM², ANTI-CHAMA 450/750 V, PARA CIRCUITOS TERMINAIS - FORNECIMENTO E INSTALAÇÃO. AF_12/2015 - COR PRETA","M",120,{"$f":"K175","v":4.8600000000000003},{"$f":"ROUND(D175*E175,2)","v":583.20000000000005},null,"91926",{"$f":"IF(M175=\"COMPOSIÇÃO\",LEFT(RIGHT(CAMINHO_DO_BD,19),14),IF(M175=\"INSUMO\",\"INSUMO \" & LEFT(RIGHT(CAMINHO_DO_BD,19),14),IF(M175=\"COMPOSIÇÃO PRÓPRIA\",\"COMPOSIÇÃO PRÓPRIA COM BASE NA \" & LEFT(RIGHT(CAMINHO_DO_BD,19),14),\"PREÇO MÉDIO DE ORÇAMENTOS\")))","v":"SINAPI-10-2022"},3.97,{"$f":"ROUND(J175*(1+BDI),2)","v":4.8600000000000003},null,"COMPOSIÇÃO","BDI DE OBRA"]
[{"$f":"$A$174&\".\"&(ROW(A176)-ROW($A$174))","v":"1.2.1.2"},"CABO DE COBRE FLEXÍVEL ISOLADO, 2,5 MM², ANTI-CHAMA 450/750 V, PARA CIRCUITOS TERMINAIS - FORNECIMENTO E INSTALAÇÃO. AF_12/2015 - COR AZUL","M",349,4.8600000000000003,1696.14,null,"91926","SINAPI-10-2022",3.97,4.8600000000000003,null,"COMPOSIÇÃO","BDI DE OBRA"]
["1.2.1.3","CABO DE COBRE FLEXÍVEL ISOLADO, 2,5 MM², ANTI-CHAMA 450/750 V, PARA CIRCUITOS TERMINAIS - FORNECIMENTO E INSTALAÇÃO. AF_12/2015 - COR VERDE","M",327,4.8600000000000003,1589.22,null,"91926","SINAPI-10-2022",3.97,4.8600000000000003,null,"COMPOSIÇÃO","BDI DE OBRA"]
["1.2.1.4","CABO DE COBRE FLEXÍVEL ISOLADO, 2,5 MM², ANTI-CHAMA 450/750 V, PARA CIRCUITOS TERMINAIS - FORNECIMENTO E INSTALAÇÃO. AF_12/2015 - COR AMARELO","M",523,4.8600000000000003,2541.7800000000002,null,"91926","SINAPI-10-2022",3.97,4.8600000000000003,null,"COMPOSIÇÃO","BDI DE OBRA"]
["1.2.1.5","CABO DE COBRE FLEXÍVEL ISOLADO, 4 MM², ANTI-CHAMA 450/750 V, PARA CIRCUITOS TERMINAIS - FORNECIMENTO E INSTALAÇÃO. AF_12/2015 - COR PRETA","M",702,7.49,5257.98,null,"91928","SINAPI-10-2022",6.12,7.49,null,"COMPOSIÇÃO","BDI DE OBRA"]
["1.2.1.6","CABO DE COBRE FLEXÍVEL ISOLADO, 4 MM², ANTI-CHAMA 450/750 V, PARA CIRCUITOS TERMINAIS - FORNECIMENTO E INSTALAÇÃO. AF_12/2015 - COR AZUL","M",529,7.49,3962.21,null,"91928","SINAPI-10-2022",6.12,7.49,null,"COMPOSIÇÃO","BDI DE OBRA"]
["1.2.1.7","CABO DE COBRE FLEXÍVEL ISOLADO, 4 MM², ANTI-CHAMA 450/750 V, PARA CIRCUITOS TERMINAIS - FORNECIMENTO E INSTALAÇÃO. AF_12/2015 - COR VERDE","M",616,7.49,4613.84,null,"91928","SINAPI-10-2022",6.12,7.49,null,"COMPOSIÇÃO","BDI DE OBRA"]
["1.2.1.8","CABO DE COBRE FLEXÍVEL ISOLADO, 6 MM², ANTI-CHAMA 450/750 V, PARA CIRCUITOS TERMINAIS - FORNECIMENTO E INSTALAÇÃO. AF_12/2015 - COR PRETA","M",152,10.44,1586.88,null,"91930","SINAPI-10-2022",8.5299999999999994,10.44,null,"COMPOSIÇÃO","BDI DE OBRA"]
["1.2.1.9","CABO DE COBRE FLEXÍVEL ISOLADO, 6 MM², ANTI-CHAMA 450/750 V, PARA CIRCUITOS TERMINAIS - FORNECIMENTO E INSTALAÇÃO. AF_12/2015 - COR VERDE","M",76,10.44,793.44,null,"91930","SINAPI-10-2022",8.5299999999999994,10.44,null,"COMPOSIÇÃO","BDI DE OBRA"]
["1.2.1.10","REMOÇÃO DE CABOS ELÉTRICOS, DE FORMA MANUAL, SEM REAPROVEITAMENTO. AF_12/2017","M",1000,0.73,730,null,"97661",{"$f":"IF(M184=\"COMPOSIÇÃO\",LEFT(RIGHT(CAMINHO_DO_BD,19),14),IF(M184=\"INSUMO\",\"INSUMO \" & LEFT(RIGHT(CAMINHO_DO_BD,19),14),IF(M184=\"COMPOSIÇÃO PRÓPRIA\",\"COMPOSIÇÃO PRÓPRIA COM BASE NA \" & LEFT(RIGHT(CAMINHO_DO_BD,19),14),\"PREÇO MÉDIO DE ORÇAMENTOS\")))","v":"SINAPI-10-2022"},0.6,{"$f":"ROUND(J184*(1+BDI),2)","v":0.73},null,"COMPOSIÇÃO","BDI DE OBRA"]
[]
["1.2.2","DISPOSITIVO ELÉTRICO EMBUTIDO / SOBREPOR",null,null,null,{"$f":"SUBTOTAL(9,F187:F222)","v":23809.56}]
[{"$f":"$A$186&\".\"&(ROW(A187)-ROW($A$186))","v":"1.2.2.1"},"INTERRUPTOR SIMPLES (1 MÓDULO), 10A/250V, INCLUINDO SUPORTE E PLACA - FORNECIMENTO E INSTALAÇÃO. AF_12/2015 - COR BRANCA","UN",2,{"$f":"K187","v":29.29},{"$f":"ROUND(D187*E187,2)","v":58.58},null,"91953",{"$f":"IF(M187=\"COMPOSIÇÃO\",LEFT(RIGHT(CAMINHO_DO_BD,19),14),IF(M187=\"INSUMO\",\"INSUMO \" & LEFT(RIGHT(CAMINHO_DO_BD,19),14),IF(M187=\"COMPOSIÇÃO PRÓPRIA\",\"COMPOSIÇÃO PRÓPRIA COM BASE NA \" & LEFT(RIGHT(CAMINHO_DO_BD,19),14),\"PREÇO MÉDIO DE ORÇAMENTOS\")))","v":"SINAPI-10-2022"},23.94,{"$f":"ROUND(J187*(1+BDI),2)","v":29.29},null,"COMPOSIÇÃO","BDI DE OBRA"]
[{"$f":"$A$186&\".\"&(ROW(A188)-ROW($A$186))","v":"1.2.2.2"},"INTERRUPTOR SIMPLES (2 MÓDULOS), 10A/250V, INCLUINDO SUPORTE E PLACA - FORNECIMENTO E INSTALAÇÃO. AF_12/2015 - COR BRANCA","UN",2,46.38,92.76,null,"91959","SINAPI-10-2022",37.909999999999997,46.38,null,"COMPOSIÇÃO","BDI DE OBRA"]
["1.2.2.3","INTERRUPTOR SIMPLES (3 MÓDULOS), 10A/250V, INCLUINDO SUPORTE E PLACA - FORNECIMENTO E INSTALAÇÃO. AF_12/2015 - COR BRANCA","UN",2,63.45,126.9,null,"91967","SINAPI-10-2022",51.86,63.45,null,"COMPOSIÇÃO","BDI DE OBRA"]
["1.2.2.4","TOMADA ALTA DE EMBUTIR (1 MÓDULO), 2P+T 10 A, INCLUINDO SUPORTE E PLACA - FORNECIMENTO E INSTALAÇÃO. AF_12/2015 - COR BRANCA","UN",13,45.78,595.14,null,"91992","SINAPI-10-2022",37.42,45.78,null,"COMPOSIÇÃO","BDI DE OBRA"]
["1.2.2.5","TOMADA BAIXA DE EMBUTIR (1 MÓDULO), 2P+T 10 A, INCLUINDO SUPORTE E PLACA - FORNECIMENTO E INSTALAÇÃO. AF_12/2015 - COR BRANCA","UN",11,30.93,340.23,null,"92000","SINAPI-10-2022",25.28,30.93,null,"COMPOSIÇÃO","BDI DE OBRA"]
["1.2.2.6","TOMADA MÉDIA DE EMBUTIR (1 MÓDULO), 2P+T 10 A, INCLUINDO SUPORTE E PLACA - FORNECIMENTO E INSTALAÇÃO. AF_12/2015 - COR BRANCA","UN",2,35.08,70.16,null,"91996","SINAPI-10-2022",28.67,35.08,null,"COMPOSIÇÃO","BDI DE OBRA"]
["1.2.2.7","TOMADA MÉDIA DE EMBUTIR (2 MÓDULOS), 2P+T 10 A, INCLUINDO SUPORTE E PLACA - FORNECIMENTO E INSTALAÇÃO. AF_12/2015 - COR BRANCA","UN",1,57.9,57.9,null,"92004","SINAPI-10-2022",47.32,57.9,null,"COMPOSIÇÃO","BDI DE OBRA"]
["1.2.2.8","TOMADA BAIXA DE EMBUTIR (2 MÓDULOS), 2P+T 10 A, INCLUINDO SUPORTE E PLACA - FORNECIMENTO E INSTALAÇÃO. AF_12/2015 - COR BRANCA","UN",10,49.58,495.8,null,"92008","SINAPI-10-2022",40.520000000000003,49.58,null,"COMPOSIÇÃO","BDI DE OBRA"]
["1.2.2.9","TOMADA MÉDIA DE EMBUTIR (2 MÓDULOS), 2P+T 20 A, INCLUINDO SUPORTE E PLACA - FORNECIMENTO E INSTALAÇÃO. AF_12/2015 - COR BRANCA","UN",3,62.77,188.31,null,"92005","SINAPI-10-2022",51.3,62.77,null,"COMPOSIÇÃO","BDI DE OBRA"]
["1.2.2.10","INTERRUPTOR SMART TOUCH, WI-FI, 2 MÓDULOS, COMPATIVEL COM SISTEMA DE AUTOMAÇÃO, BRANCO INCLUINDO ACESSÓRIOS DE INSTALAÇÃO. FORNECIMENTO E INSTALAÇÃO","UN",1,175.3,175.3,null,"C_ELE0304",{"$f":"IF(M196=\"COMPOSIÇÃO\",LEFT(RIGHT(CAMINHO_DO_BD,19),14),IF(M196=\"INSUMO\",\"INSUMO \" & LEFT(RIGHT(CAMINHO_DO_BD,19),14),IF(M196=\"COMPOSIÇÃO PRÓPRIA\",\"COMPOSIÇÃO PRÓPRIA COM BASE NA \" & LEFT(RIGHT(CAMINHO_DO_BD,19),14),\"PREÇO MÉDIO DE ORÇAMENTOS\")))","v":"COMPOSIÇÃO PRÓPRIA COM BASE NA SINAPI-10-2022"},143.28,{"$f":"ROUND(J196*(1+BDI),2)","v":175.3},null,"COMPOSIÇÃO PRÓPRIA","BDI DE OBRA"]
["1.2.2.11","INTERRUPTOR SMART TOUCH, WI-FI, 3 MÓDULOS, COMPATIVEL COM SISTEMA DE AUTOMAÇÃO, BRANCO INCLUINDO ACESSÓRIOS DE INSTALAÇÃO. FORNECIMENTO E INSTALAÇÃO","UN",1,175.3,175.3,null,"C_ELE0304","COMPOSIÇÃO PRÓPRIA COM BASE NA SINAPI-10-2022",143.28,175.3,null,"COMPOSIÇÃO PRÓPRIA","BDI DE OBRA"]
["1.2.2.12","INTERRUPTOR SMART TOUCH, WI-FI, 4 MÓDULOS, COMPATIVEL COM SISTEMA DE AUTOMAÇÃO, BRANCO INCLUINDO ACESSÓRIOS DE INSTALAÇÃO. FORNECIMENTO E INSTALAÇÃO","UN",4,256.47000000000003,1025.8800000000001,null,"C_ELE0305","COMPOSIÇÃO PRÓPRIA COM BASE NA SINAPI-10-2022",209.62,256.47000000000003,null,"COMPOSIÇÃO PRÓPRIA","BDI DE OBRA"]
["1.2.2.13","INTERRUPTOR SMART TOUCH, WI-FI, 6 MÓDULOS, COMPATIVEL COM SISTEMA DE AUTOMAÇÃO, BRANCO INCLUINDO ACESSÓRIOS DE INSTALAÇÃO. FORNECIMENTO E INSTALAÇÃO","UN",2,564.25,1128.5,null,"C_ELE0306","COMPOSIÇÃO PRÓPRIA COM BASE NA SINAPI-10-2022",461.18,564.25,null,"COMPOSIÇÃO PRÓPRIA","BDI DE OBRA"]
["1.2.2.14","CAIXA DE PASSAGEM ELETRICA DE PAREDE, DE SOBREPOR, EM TERMOPLASTICO / PVC, COM TAMPA APARAFUSADA, DIMENSOES, 150 X 150 X *100* MM FORNECIMENTO E INSTALAÇÃO","UN",71,78.739999999999995,5590.54,null,"C_ELE0307","COMPOSIÇÃO PRÓPRIA COM BASE NA SINAPI-10-2022",64.36,78.739999999999995,null,"COMPOSIÇÃO PRÓPRIA","BDI DE OBRA"]
["1.2.2.15","CAIXA DE PASSAGEM ELETRICA DE PAREDE, DE SOBREPOR, EM PVC, COM TAMPA APARAFUSADA, DIMENSOES 300 X 300 X *100* MM FORNECIMENTO E INSTALAÇÃO","UN",17,198.62,3376.54,null,"C_ELE0308","COMPOSIÇÃO PRÓPRIA COM BASE NA SINAPI-10-2022",162.34,198.62,null,"COMPOSIÇÃO PRÓPRIA","BDI DE OBRA"]
["1.2.2.16","CAIXA DE PASSAGEM ELETRICA DE PAREDE, DE EMBUTIR, EM PVC, COM TAMPA APARAFUSADA, DIMENSOES 200 X 200 X *90* MM FORNECIMENTO E INSTALAÇÃO","UN",21,108.46,2277.66,null,"C_ELE0309","COMPOSIÇÃO PRÓPRIA COM BASE NA SINAPI-10-2022",88.65,108.46,null,"COMPOSIÇÃO PRÓPRIA","BDI DE OBRA"]
["1.2.2.17","CAIXA RETANGULAR 4\" X 2\" BAIXA (0,30 M DO PISO), PVC, INSTALADA EM PAREDE - FORNECIMENTO E INSTALAÇÃO. AF_12/2015","UN",20,12.09,241.8,null,"91941","SINAPI-10-2022",9.8800000000000008,{"$f":"ROUND(J203*(1+BDI),2)","v":12.09},null,"COMPOSIÇÃO","BDI DE OBRA"]
["1.2.2.18","CAIXA RETANGULAR 4\" X 2\" MÉDIA (1,30 M DO PISO), PVC, INSTALADA EM PAREDE - FORNECIMENTO E INSTALAÇÃO. AF_12/2015","UN",4,17.89,71.56,null,"91940","SINAPI-10-2022",14.62,{"$f":"ROUND(J204*(1+BDI),2)","v":17.89},null,"COMPOSIÇÃO","BDI DE OBRA"]
["1.2.2.19","CAIXA RETANGULAR 4\" X 2\" ALTA (2,00 M DO PISO), PVC, INSTALADA EM PAREDE - FORNECIMENTO E INSTALAÇÃO. AF_12/2015","UN",4,33.380000000000003,133.52000000000001,null,"91939","SINAPI-10-2022",27.28,{"$f":"ROUND(J205*(1+BDI),2)","v":33.380000000000003},null,"COMPOSIÇÃO","BDI DE OBRA"]
["1.2.2.20","CAIXA RETANGULAR, EM PVC, DE 4\" X 2\", PARA ELETRODUTO FLEXIVEL CORRUGADO (ALTA), INSTALADA EM GESSO - FORNECIMENTO E INSTALAÇÃO","UN",1,32.630000000000003,32.630000000000003,null,"C_ELE0310","COMPOSIÇÃO PRÓPRIA COM BASE NA SINAPI-10-2022",26.67,{"$f":"ROUND(J206*(1+BDI),2)","v":32.630000000000003},null,"COMPOSIÇÃO PRÓPRIA","BDI DE OBRA"]
["1.2.2.21","CAIXA RETANGULAR, EM PVC, DE 4\" X 2\", PARA ELETRODUTO FLEXIVEL CORRUGADO (BAIXA), INSTALADA EM GESSO - FORNECIMENTO E INSTALAÇÃO","UN",10,11.56,115.6,null,"C_ELE0312","COMPOSIÇÃO PRÓPRIA COM BASE NA SINAPI-10-2022",9.4499999999999993,11.56,null,"COMPOSIÇÃO PRÓPRIA","BDI DE OBRA"]
["1.2.2.22","CAIXA RETANGULAR, EM PVC, DE 4\" X 2\", PARA ELETRODUTO FLEXIVEL CORRUGADO (MÉDIA), INSTALADA EM GESSO - FORNECIMENTO E INSTALAÇÃO","UN",4,17.260000000000002,69.040000000000006,null,"C_ELE0311","COMPOSIÇÃO PRÓPRIA COM BASE NA SINAPI-10-2022",14.11,17.260000000000002,null,"COMPOSIÇÃO PRÓPRIA","BDI DE OBRA"]
["1.2.2.23","CAIXA RETANGULAR, EM PVC, DE 4\" X 2\", COM DUPLA PROFUNDIDADE, PARA ELETRODUTO FLEXIVEL CORRUGADO (MÉDIA), INSTALADA EM GESSO - FORNECIMENTO E INSTALAÇÃO","UN",2,20.29,40.58,null,"C_ELE0313","COMPOSIÇÃO PRÓPRIA COM BASE NA SINAPI-10-2022",16.579999999999998,20.29,null,"COMPOSIÇÃO PRÓPRIA","BDI DE OBRA"]
["1.2.2.24","CAIXA RETANGULAR, EM PVC, DE 4\" X 4\", COM DUPLA PROFUNDIDADE, PARA ELETRODUTO FLEXIVEL CORRUGADO (MÉDIA), INSTALADA EM GESSO - FORNECIMENTO E INSTALAÇÃO","UN",6,27.98,167.88,null,"C_ELE0314","COMPOSIÇÃO PRÓPRIA COM BASE NA SINAPI-10-2022",22.87,27.98,null,"COMPOSIÇÃO PRÓPRIA","BDI DE OBRA"]
["1.2.2.25","CAIXA TOMADA AÇO EMBUTIR P/MESA, COM FECHAMENTO, 3 TOMADAS 2P+T, 4 PORTAS RJ45, PRETA INCLUINDO ACESSÓRIOS DE INSTALAÇÃO. FORNECIMENTO E INSTALAÇÃO","UN",1,266.2,266.2,null,"C_ELE0298","COMPOSIÇÃO PRÓPRIA COM BASE NA SINAPI-10-2022",217.57,266.2,null,"COMPOSIÇÃO PRÓPRIA","BDI DE OBRA"]
["1.2.2.26","CAIXA TOMADA AÇO EMBUTIR P/MESA, COM FECHAMENTO, 3 TOMADAS 2P+T, 4 PORTAS RJ45, 1 ENTRADA HDMI (FÊMEA), PRETA INCLUINDO ACESSÓRIOS DE INSTALAÇÃO. FORNECIMENTO E INSTALAÇÃO","UN",1,524.26,524.26,null,"C_ELE0299","COMPOSIÇÃO PRÓPRIA COM BASE NA SINAPI-10-2022",428.49,524.26,null,"COMPOSIÇÃO PRÓPRIA","BDI DE OBRA"]
["1.2.2.27","CAIXA TOMADA AÇO EMBUTIR P/MESA, COM FECHAMENTO, 5 TOMADAS 2P+T, 4 PORTAS RJ45, 1 ENTRADA USB (CARGA), PRETA INCLUINDO ACESSÓRIOS DE INSTALAÇÃO. FORNECIMENTO E INSTALAÇÃO","UN",1,627.03,627.03,null,"C_ELE0300","COMPOSIÇÃO PRÓPRIA COM BASE NA SINAPI-10-2022",512.49,627.03,null,"COMPOSIÇÃO PRÓPRIA","BDI DE OBRA"]
["1.2.2.28","CAIXA TOMADA AÇO EMBUTIR P/MESA, COM FECHAMENTO, 5 TOMADAS 2P+T, 4 PORTAS RJ45, 1 ENTRADA USB (CARGA), 1 ENTRADA HDMI (FÊMEA), PRETA INCLUINDO ACESSÓRIOS DE INSTALAÇÃO. FORNECIMENTO E INSTALAÇÃO","UN",1,664.29,664.29,null,"C_ELE0301","COMPOSIÇÃO PRÓPRIA COM BASE NA SINAPI-10-2022",542.94000000000005,664.29,null,"COMPOSIÇÃO PRÓPRIA","BDI DE OBRA"]
["1.2.2.29","CAIXA TOMADA AÇO EMBUTIR P/MESA, COM FECHAMENTO, 2 TOMADAS 2P+T, 2 PORTAS RJ45, PRETA INCLUINDO ACESSÓRIOS DE INSTALAÇÃO. FORNECIMENTO E INSTALAÇÃO","UN",4,404.13,1616.52,null,"C_ELE0302","COMPOSIÇÃO PRÓPRIA COM BASE NA SINAPI-10-2022",330.31,404.13,null,"COMPOSIÇÃO PRÓPRIA","BDI DE OBRA"]
["1.2.2.30","CAIXA TOMADA AÇO EMBUTIR P/MESA, COM FECHAMENTO, 2 TOMADAS 2P+T, 2 PORTAS RJ45, 1 ENTRADA USB (CARGA), 1 ENTRADA HDMI (FÊMEA), PRETA INCLUINDO ACESSÓRIOS DE INSTALAÇÃO. FORNECIMENTO E INSTALAÇÃO","UN",2,462.59,925.18,null,"C_ELE0303","COMPOSIÇÃO PRÓPRIA COM BASE NA SINAPI-10-2022",378.09,462.59,null,"COMPOSIÇÃO PRÓPRIA","BDI DE OBRA"]
["1.2.2.31","QUADRO DE DISTRIBUIÇÃO DE EMBUTIR, EM CHAPA PINTADA, COM BARRAMENTO TRIFÁSICO DE 225A, BARRAMENTO DE NEUTRO E TERRA, COM ESPAÇO PARA DISJUNTOR GERAL E DISPOSITIVOS DE PROTEÇÃO, TIPO DIN, COM CAPACIDADE PARA 42 DISJUNTORES. FORNECIMENTO E INSTALAÇÃO","UN",1,1386.74,1386.74,null,"C_ELE0320",{"$f":"IF(M217=\"COMPOSIÇÃO\",LEFT(RIGHT(CAMINHO_DO_BD,19),14),IF(M217=\"INSUMO\",\"INSUMO \" & LEFT(RIGHT(CAMINHO_DO_BD,19),14),IF(M217=\"COMPOSIÇÃO PRÓPRIA\",\"COMPOSIÇÃO PRÓPRIA COM BASE NA \" & LEFT(RIGHT(CAMINHO_DO_BD,19),14),\"PREÇO MÉDIO DE ORÇAMENTOS\")))","v":"COMPOSIÇÃO PRÓPRIA COM BASE NA SINAPI-10-2022"},1133.42,{"$f":"ROUND(J217*(1+BDI),2)","v":1386.74},null,"COMPOSIÇÃO PRÓPRIA","BDI DE OBRA"]
["1.2.2.32","TOMADA 2P+T 10A, 250V  (APENAS MODULO)","UN    ",27,8.75,236.25,null,38101,{"$f":"IF(M218=\"COMPOSIÇÃO\",LEFT(RIGHT(CAMINHO_DO_BD,19),14),IF(M218=\"INSUMO\",\"INSUMO \" & LEFT(RIGHT(CAMINHO_DO_BD,19),14),IF(M218=\"COMPOSIÇÃO PRÓPRIA\",\"COMPOSIÇÃO PRÓPRIA COM BASE NA \" & LEFT(RIGHT(CAMINHO_DO_BD,19),14),\"PREÇO MÉDIO DE ORÇAMENTOS\")))","v":"INSUMO SINAPI-10-2022"},7.15,{"$f":"ROUND(J218*(1+BDI),2)","v":8.75},null,"INSUMO","BDI DE OBRA"]
["1.2.2.33","EXAUSTOR PARA BANHEIRO, 280 M³/H, 187X187X109MM, 127V, BRANCO. FORNECIMENTO E INSTALAÇÃO","UN",2,414.42,828.84,null,"C_ELE0321",{"$f":"IF(M219=\"COMPOSIÇÃO\",LEFT(RIGHT(CAMINHO_DO_BD,19),14),IF(M219=\"INSUMO\",\"INSUMO \" & LEFT(RIGHT(CAMINHO_DO_BD,19),14),IF(M219=\"COMPOSIÇÃO PRÓPRIA\",\"COMPOSIÇÃO PRÓPRIA COM BASE NA \" & LEFT(RIGHT(CAMINHO_DO_BD,19),14),\"PREÇO MÉDIO DE ORÇAMENTOS\")))","v":"COMPOSIÇÃO PRÓPRIA COM BASE NA SINAPI-10-2022"},338.72,{"$f":"ROUND(J219*(1+BDI),2)","v":414.42},null,"COMPOSIÇÃO PRÓPRIA","BDI DE OBRA"]
["1.2.2.34","REMOÇÃO DE INTERRUPTORES/TOMADAS ELÉTRICAS, DE FORMA MANUAL, SEM REAPROVEITAMENTO. AF_12/2017","UN",40,0.73,29.2,null,"97660",{"$f":"IF(M220=\"COMPOSIÇÃO\",LEFT(RIGHT(CAMINHO_DO_BD,19),14),IF(M220=\"INSUMO\",\"INSUMO \" & LEFT(RIGHT(CAMINHO_DO_BD,19),14),IF(M220=\"COMPOSIÇÃO PRÓPRIA\",\"COMPOSIÇÃO PRÓPRIA COM BASE NA \" & LEFT(RIGHT(CAMINHO_DO_BD,19),14),\"PREÇO MÉDIO DE ORÇAMENTOS\")))","v":"SINAPI-10-2022"},0.6,{"$f":"ROUND(J220*(1+BDI),2)","v":0.73},null,"COMPOSIÇÃO","BDI DE OBRA"]
["1.2.2.35","REMOÇÃO DE EXAUSTOR DE BANHEIRO CIRCULAR","UN",1,{"$f":"K221","v":56.94},{"$f":"ROUND(D221*E221,2)","v":56.94},null,"C_ELE0344",{"$f":"IF(M221=\"COMPOSIÇÃO\",LEFT(RIGHT(CAMINHO_DO_BD,19),14),IF(M221=\"INSUMO\",\"INSUMO \" & LEFT(RIGHT(CAMINHO_DO_BD,19),14),IF(M221=\"COMPOSIÇÃO PRÓPRIA\",\"COMPOSIÇÃO PRÓPRIA COM BASE NA \" & LEFT(RIGHT(CAMINHO_DO_BD,19),14),\"PREÇO MÉDIO DE ORÇAMENTOS\")))","v":"COMPOSIÇÃO PRÓPRIA COM BASE NA SINAPI-10-2022"},46.54,{"$f":"ROUND(J221*(1+BDI),2)","v":56.94},null,"COMPOSIÇÃO PRÓPRIA","BDI DE OBRA"]
[]
["1.2.3","DISPOSITIVO DE PROTEÇÃO",null,null,null,{"$f":"SUBTOTAL(9,F224:F231)","v":1740.71}]
[{"$f":"$A$223&\".\"&(ROW(A224)-ROW($A$223))","v":"1.2.3.1"},"DISJUNTOR MONOPOLAR TIPO DIN, CORRENTE NOMINAL DE 10A - FORNECIMENTO E INSTALAÇÃO. AF_10/2020","UN",15,{"$f":"K224","v":15.43},{"$f":"ROUND(D224*E224,2)","v":231.45},null,"93653",{"$f":"IF(M224=\"COMPOSIÇÃO\",LEFT(RIGHT(CAMINHO_DO_BD,19),14),IF(M224=\"INSUMO\",\"INSUMO \" & LEFT(RIGHT(CAMINHO_DO_BD,19),14),IF(M224=\"COMPOSIÇÃO PRÓPRIA\",\"COMPOSIÇÃO PRÓPRIA COM BASE NA \" & LEFT(RIGHT(CAMINHO_DO_BD,19),14),\"PREÇO MÉDIO DE ORÇAMENTOS\")))","v":"SINAPI-10-2022"},12.61,{"$f":"ROUND(J224*(1+BDI),2)","v":15.43},null,"COMPOSIÇÃO","BDI DE OBRA"]
[{"$f":"$A$223&\".\"&(ROW(A225)-ROW($A$223))","v":"1.2.3.2"},"DISJUNTOR MONOPOLAR TIPO DIN, CORRENTE NOMINAL DE 16A - FORNECIMENTO E INSTALAÇÃO. AF_10/2020","UN",3,16.14,48.42,null,"93654","SINAPI-10-2022",13.19,{"$f":"ROUND(J225*(1+BDI),2)","v":16.14},null,"COMPOSIÇÃO","BDI DE OBRA"]
["1.2.3.3","DISJUNTOR BIPOLAR TIPO DIN, CORRENTE NOMINAL DE 10A - FORNECIMENTO E INSTALAÇÃO. AF_10/2020","UN",3,76.680000000000007,230.04,null,"93660","SINAPI-10-2022",62.67,76.680000000000007,null,"COMPOSIÇÃO","BDI DE OBRA"]
["1.2.3.4","DISJUNTOR BIPOLAR TIPO DIN, CORRENTE NOMINAL DE 16A - FORNECIMENTO E INSTALAÇÃO. AF_10/2020","UN",1,78.099999999999994,78.099999999999994,null,"93661","SINAPI-10-2022",63.83,78.099999999999994,null,"COMPOSIÇÃO","BDI DE OBRA"]
["1.2.3.5","DISJUNTOR BIPOLAR TIPO DIN, CORRENTE NOMINAL DE 20A - FORNECIMENTO E INSTALAÇÃO. AF_10/2020","UN",4,80.930000000000007,323.72000000000003,null,"93662","SINAPI-10-2022",66.150000000000006,80.930000000000007,null,"COMPOSIÇÃO","BDI DE OBRA"]
["1.2.3.6","DISJUNTOR TRIPOLAR TERMOMAGNÉTICO, TIPO DIN, 100A. FORNECIMENTO E INSTALAÇÃO","UN",1,232.1,232.1,null,"C_ELE0084",{"$f":"IF(M229=\"COMPOSIÇÃO\",LEFT(RIGHT(CAMINHO_DO_BD,19),14),IF(M229=\"INSUMO\",\"INSUMO \" & LEFT(RIGHT(CAMINHO_DO_BD,19),14),IF(M229=\"COMPOSIÇÃO PRÓPRIA\",\"COMPOSIÇÃO PRÓPRIA COM BASE NA \" & LEFT(RIGHT(CAMINHO_DO_BD,19),14),\"PREÇO MÉDIO DE ORÇAMENTOS\")))","v":"COMPOSIÇÃO PRÓPRIA COM BASE NA SINAPI-10-2022"},189.7,{"$f":"ROUND(J229*(1+BDI),2)","v":232.1},null,"COMPOSIÇÃO PRÓPRIA","BDI DE OBRA"]
["1.2.3.7","FORNECIMENTO E INSTALAÇÃO DE DISPOSITIVO DPS, 1 POLO, 175 V, 45 KA","UN",4,149.22,596.88,null,"C_ELE0089",{"$f":"IF(M230=\"COMPOSIÇÃO\",LEFT(RIGHT(CAMINHO_DO_BD,19),14),IF(M230=\"INSUMO\",\"INSUMO \" & LEFT(RIGHT(CAMINHO_DO_BD,19),14),IF(M230=\"COMPOSIÇÃO PRÓPRIA\",\"COMPOSIÇÃO PRÓPRIA COM BASE NA \" & LEFT(RIGHT(CAMINHO_DO_BD,19),14),\"PREÇO MÉDIO DE ORÇAMENTOS\")))","v":"COMPOSIÇÃO PRÓPRIA COM BASE NA SINAPI-10-2022"},121.96,{"$f":"ROUND(J230*(1+BDI),2)","v":149.22},null,"COMPOSIÇÃO PRÓPRIA","BDI DE OBRA"]
[]
["1.2.4","ELETRODUTOS / ELETROCALHAS / PERFILADOS",null,null,null,{"$f":"SUBTOTAL(9,F233:F253)","v":17871.560000000001}]
[{"$f":"$A$232&\".\"&(ROW(A233)-ROW($A$232))","v":"1.2.4.1"},"ELETRODUTO RÍGIDO ROSCÁVEL, PVC, DN 25 MM (3/4\"), PARA CIRCUITOS TERMINAIS, INSTALADO EM FORRO - FORNECIMENTO E INSTALAÇÃO. AF_12/2015","M",24,{"$f":"K233","v":14.79},{"$f":"ROUND(D233*E233,2)","v":354.96},null,"91863",{"$f":"IF(M233=\"COMPOSIÇÃO\",LEFT(RIGHT(CAMINHO_DO_BD,19),14),IF(M233=\"INSUMO\",\"INSUMO \" & LEFT(RIGHT(CAMINHO_DO_BD,19),14),IF(M233=\"COMPOSIÇÃO PRÓPRIA\",\"COMPOSIÇÃO PRÓPRIA COM BASE NA \" & LEFT(RIGHT(CAMINHO_DO_BD,19),14),\"PREÇO MÉDIO DE ORÇAMENTOS\")))","v":"SINAPI-10-2022"},12.09,{"$f":"ROUND(J233*(1+BDI),2)","v":14.79},null,"COMPOSIÇÃO","BDI DE OBRA"]
[{"$f":"$A$232&\".\"&(ROW(A234)-ROW($A$232))","v":"1.2.4.2"},"ELETRODUTO RÍGIDO ROSCÁVEL, PVC, DN 32 MM (1\"), PARA CIRCUITOS TERMINAIS, INSTALADO EM FORRO - FORNECIMENTO E INSTALAÇÃO. AF_12/2015","M",213,19.54,4162.0200000000004,null,"91864","SINAPI-10-2022",15.97,19.54,null,"COMPOSIÇÃO","BDI DE OBRA"]
["1.2.4.3","ELETRODUTO RIGIDO ROSCÁVEL, PVC, DN 50 MM (1\" 1/2\"), PARA CIRCUITOS TERMINAIS, INSTALADO EM FORRO - FORNECIMENTO E INSTALAÇÃO","UN",63,25.27,1592.01,null,"C_ELE0315",{"$f":"IF(M235=\"COMPOSIÇÃO\",LEFT(RIGHT(CAMINHO_DO_BD,19),14),IF(M235=\"INSUMO\",\"INSUMO \" & LEFT(RIGHT(CAMINHO_DO_BD,19),14),IF(M235=\"COMPOSIÇÃO PRÓPRIA\",\"COMPOSIÇÃO PRÓPRIA COM BASE NA \" & LEFT(RIGHT(CAMINHO_DO_BD,19),14),\"PREÇO MÉDIO DE ORÇAMENTOS\")))","v":"COMPOSIÇÃO PRÓPRIA COM BASE NA SINAPI-10-2022"},20.65,{"$f":"ROUND(J235*(1+BDI),2)","v":25.27},null,"COMPOSIÇÃO PRÓPRIA","BDI DE OBRA"]
["1.2.4.4","ELETRODUTO RIGIDO ROSCÁVEL, PVC, DN 60 MM (2\"), PARA CIRCUITOS TERMINAIS, INSTALADO EM FORRO - FORNECIMENTO E INSTALAÇÃO","UN",24,34.04,816.96,null,"C_ELE0316","COMPOSIÇÃO PRÓPRIA COM BASE NA SINAPI-10-2022",27.82,34.04,null,"COMPOSIÇÃO PRÓPRIA","BDI DE OBRA"]
["1.2.4.5","LUVA PARA ELETRODUTO, PVC, ROSCÁVEL, DN 25 MM (3/4\"), PARA CIRCUITOS TERMINAIS, INSTALADA EM FORRO - FORNECIMENTO E INSTALAÇÃO. AF_12/2015","UN",18,7.6,136.80000000000001,null,"91875","SINAPI-10-2022",6.21,7.6,null,"COMPOSIÇÃO","BDI DE OBRA"]
["1.2.4.6","LUVA PARA ELETRODUTO, PVC, ROSCÁVEL, DN 32 MM (1\"), PARA CIRCUITOS TERMINAIS, INSTALADA EM FORRO - FORNECIMENTO E INSTALAÇÃO. AF_12/2015","UN",71,10.02,711.42,null,"91876","SINAPI-10-2022",8.19,10.02,null,"COMPOSIÇÃO","BDI DE OBRA"]
["1.2.4.7","LUVA PARA ELETRODUTO, PVC, ROSCÁVEL, DN 50 MM (1\" 1/2\"), PARA CIRCUITOS TERMINAIS, INSTALADA EM FORRO - FORNECIMENTO E INSTALAÇÃO. AF_12/2015","UN",21,10.79,226.59,null,"C_ELE0317","COMPOSIÇÃO PRÓPRIA COM BASE NA SINAPI-10-2022",8.82,10.79,null,"COMPOSIÇÃO PRÓPRIA","BDI DE OBRA"]
["1.2.4.8","LUVA PARA ELETRODUTO, PVC, ROSCÁVEL, DN 60 MM (2\"), PARA CIRCUITOS TERMINAIS, INSTALADA EM FORRO - FORNECIMENTO E INSTALAÇÃO. AF_12/2015","UN",12,12.82,153.84,null,"C_ELE0318","COMPOSIÇÃO PRÓPRIA COM BASE NA SINAPI-10-2022",10.48,12.82,null,"COMPOSIÇÃO PRÓPRIA","BDI DE OBRA"]
["1.2.4.9","CURVA 90 GRAUS PARA ELETRODUTO, PVC, ROSCÁVEL, DN 25 MM (3/4\"), PARA CIRCUITOS TERMINAIS, INSTALADA EM FORRO - FORNECIMENTO E INSTALAÇÃO. AF_12/2015","UN",5,12.61,63.05,null,"91890","SINAPI-10-2022",10.31,12.61,null,"COMPOSIÇÃO","BDI DE OBRA"]
["1.2.4.10","CURVA 90 GRAUS PARA ELETRODUTO, PVC, ROSCÁVEL, DN 60 MM (2\"), PARA CIRCUITOS TERMINAIS, INSTALADA EM FORRO - FORNECIMENTO E INSTALAÇÃO. ","UN",2,26.6,53.2,null,"C_ELE0319","COMPOSIÇÃO PRÓPRIA COM BASE NA SINAPI-10-2022",21.74,26.6,null,"COMPOSIÇÃO PRÓPRIA","BDI DE OBRA"]
["1.2.4.11","ELETRODUTO FLEXÍVEL CORRUGADO, PVC, DN 25 MM (3/4\"), PARA CIRCUITOS TERMINAIS, INSTALADO EM FORRO - FORNECIMENTO E INSTALAÇÃO. AF_12/2015","M",15,11.5,172.5,null,"91834","SINAPI-10-2022",9.4,11.5,null,"COMPOSIÇÃO","BDI DE OBRA"]
["1.2.4.12","ELETRODUTO FLEXÍVEL CORRUGADO, PVC, DN 32 MM (1\"), PARA CIRCUITOS TERMINAIS, INSTALADO EM FORRO - FORNECIMENTO E INSTALAÇÃO. AF_12/2015","M",275,15.09,4149.75,null,"91836","SINAPI-10-2022",12.33,15.09,null,"COMPOSIÇÃO","BDI DE OBRA"]
["1.2.4.13","ELETRODUTO FLEXÍVEL CORRUGADO, PEAD, DN 63 (2\"), PARA REDE ENTERRADA DE DISTRIBUIÇÃO DE ENERGIA ELÉTRICA - FORNECIMENTO E INSTALAÇÃO. AF_12/2021","M",5,16.52,82.6,null,"97668","SINAPI-10-2022",13.5,16.52,null,"COMPOSIÇÃO","BDI DE OBRA"]
["1.2.4.14","ELETRODUTO FLEXÍVEL CORRUGADO, PEAD, DN 50 (1 1/2\"), PARA REDE ENTERRADA DE DISTRIBUIÇÃO DE ENERGIA ELÉTRICA - FORNECIMENTO E INSTALAÇÃO. AF_12/2021","M",18,11.57,208.26,null,"97667","SINAPI-10-2022",9.4600000000000009,11.57,null,"COMPOSIÇÃO","BDI DE OBRA"]
["1.2.4.15","ELETRODUTO FLEXÍVEL CORRUGADO REFORÇADO, PVC, DN 32 MM (1\"), PARA CIRCUITOS TERMINAIS, INSTALADO EM PAREDE - FORNECIMENTO E INSTALAÇÃO. AF_12/2015","M",50,18.61,930.5,null,"91857","SINAPI-10-2022",15.21,18.61,null,"COMPOSIÇÃO","BDI DE OBRA"]
["1.2.4.16","ELETRODUTO FLEXÍVEL CORRUGADO REFORÇADO, PVC, DN 32 MM (1\"), PARA CIRCUITOS TERMINAIS, INSTALADO EM PAREDE - FORNECIMENTO E INSTALAÇÃO. AF_12/2015","M",50,18.61,930.5,null,"91857","SINAPI-10-2022",15.21,18.61,null,"COMPOSIÇÃO","BDI DE OBRA"]
["1.2.4.17","ELETRODUTO FLEXÍVEL CORRUGADO REFORÇADO, PVC, DN 32 MM (1\"), PARA CIRCUITOS TERMINAIS, INSTALADO EM PAREDE - FORNECIMENTO E INSTALAÇÃO. AF_12/2015","M",50,18.61,930.5,null,"91857","SINAPI-10-2022",15.21,18.61,null,"COMPOSIÇÃO","BDI DE OBRA"]
["1.2.4.18","ELETRODUTO FLEXÍVEL CORRUGADO REFORÇADO, PVC, DN 32 MM (1\"), PARA CIRCUITOS TERMINAIS, INSTALADO EM PAREDE - FORNECIMENTO E INSTALAÇÃO. AF_12/2015","M",50,18.61,930.5,null,"91857","SINAPI-10-2022",15.21,18.61,null,"COMPOSIÇÃO","BDI DE OBRA"]
["1.2.4.19","ELETRODUTO FLEXÍVEL CORRUGADO REFORÇADO, PVC, DN 32 MM (1\"), PARA CIRCUITOS TERMINAIS, INSTALADO EM PAREDE - FORNECIMENTO E INSTALAÇÃO. AF_12/2015","M",50,18.61,930.5,null,"91857",{"$f":"IF(M251=\"COMPOSIÇÃO\",LEFT(RIGHT(CAMINHO_DO_BD,19),14),IF(M251=\"INSUMO\",\"INSUMO \" & LEFT(RIGHT(CAMINHO_DO_BD,19),14),IF(M251=\"COMPOSIÇÃO PRÓPRIA\",\"COMPOSIÇÃO PRÓPRIA COM BASE NA \" & LEFT(RIGHT(CAMINHO_DO_BD,19),14),\"PREÇO MÉDIO DE ORÇAMENTOS\")))","v":"SINAPI-10-2022"},15.21,{"$f":"ROUND(J251*(1+BDI),2)","v":18.61},null,"COMPOSIÇÃO","BDI DE OBRA"]
["1.2.4.20","Fornecimento e Instalação de Canaleta PVC ventilada cinza 50x50mm - Instalada em Móvel","M",5,67.02,335.1,null,"C_ELE0218",{"$f":"IF(M252=\"COMPOSIÇÃO\",LEFT(RIGHT(CAMINHO_DO_BD,19),14),IF(M252=\"INSUMO\",\"INSUMO \" & LEFT(RIGHT(CAMINHO_DO_BD,19),14),IF(M252=\"COMPOSIÇÃO PRÓPRIA\",\"COMPOSIÇÃO PRÓPRIA COM BASE NA \" & LEFT(RIGHT(CAMINHO_DO_BD,19),14),\"PREÇO MÉDIO DE ORÇAMENTOS\")))","v":"COMPOSIÇÃO PRÓPRIA COM BASE NA SINAPI-10-2022"},54.78,{"$f":"ROUND(J252*(1+BDI),2)","v":67.02},null,"COMPOSIÇÃO PRÓPRIA","BDI DE OBRA"]
[]
["1.2.5","LUMINÁRIAS E ACESSÓRIOS",null,null,null,{"$f":"SUBTOTAL(9,F255:F286)","v":77108.319999999992}]
[{"$f":"$A$254&\".\"&(ROW(A255)-ROW($A$254))","v":"1.2.5.1"},"LUMINÁRIA DE EMBUTIR, PLAFON LED, 25W, 300 X 300 MM, SLIM, QUADRADA, BRANCA, TC 6500K, 2000LM OU MAIOR, BIVOLT, INCLUINDO ACESSÓRIOS DE INSTALAÇÃO. FORNECIMENTO E INSTALAÇÃO","UN",4,{"$f":"K255","v":110.49},{"$f":"ROUND(D255*E255,2)","v":441.96},null,"C_ELE0291",{"$f":"IF(M255=\"COMPOSIÇÃO\",LEFT(RIGHT(CAMINHO_DO_BD,19),14),IF(M255=\"INSUMO\",\"INSUMO \" & LEFT(RIGHT(CAMINHO_DO_BD,19),14),IF(M255=\"COMPOSIÇÃO PRÓPRIA\",\"COMPOSIÇÃO PRÓPRIA COM BASE NA \" & LEFT(RIGHT(CAMINHO_DO_BD,19),14),\"PREÇO MÉDIO DE ORÇAMENTOS\")))","v":"COMPOSIÇÃO PRÓPRIA COM BASE NA SINAPI-10-2022"},90.31,{"$f":"ROUND(J255*(1+BDI),2)","v":110.49},null,"COMPOSIÇÃO PRÓPRIA","BDI DE OBRA"]
[{"$f":"$A$254&\".\"&(ROW(A256)-ROW($A$254))","v":"1.2.5.2"},"LUMINÁRIA DE EMBUTIR, PLAFON LED, 30W, 400 X 400 MM, SLIM, QUADRADA, BRANCA, TC 6500K, 2000LM OU MAIOR, BIVOLT INCLUINDO ACESSÓRIOS DE INSTALAÇÃO. FORNECIMENTO E INSTALAÇÃO","UN",7,211.27,1478.89,null,"C_ELE0292","COMPOSIÇÃO PRÓPRIA COM BASE NA SINAPI-10-2022",172.68,211.27,null,"COMPOSIÇÃO PRÓPRIA","BDI DE OBRA"]
["1.2.5.3","LUMINÁRIA DE EMBUTIR, PLAFON LED, 36W, 400 X 400 MM, SLIM, QUADRADA, BRANCA, TC 6500K, 2000LM OU MAIOR, BIVOLT INCLUINDO ACESSÓRIOS DE INSTALAÇÃO. FORNECIMENTO E INSTALAÇÃO","UN",7,334.35,2340.4499999999998,null,"C_ELE0293","COMPOSIÇÃO PRÓPRIA COM BASE NA SINAPI-10-2022",273.27,334.35,null,"COMPOSIÇÃO PRÓPRIA","BDI DE OBRA"]
["1.2.5.4","LUMINÁRIA DE EMBUTIR, TIPO DICROICA COM 6 LÂMPADAS EVERGLOW DIRECIONAL, 14,5W, FACHO DE 48°, FABRICANTE EVERLIGHT OU SIMILAR INCLUINDO ACESSÓRIOS DE INSTALAÇÃO. FORNECIMENTO E INSTALAÇÃO","UN",2,971.61,1943.22,null,"C_ELE0294","COMPOSIÇÃO PRÓPRIA COM BASE NA SINAPI-10-2022",794.12,971.61,null,"COMPOSIÇÃO PRÓPRIA","BDI DE OBRA"]
["1.2.5.5","LUMINÁRIA DE EMBUTIR, TIPO DICROICA COM 2 LÂMPADAS EVERGLOW DIRECIONAL, 5,1W, FACHO DE 12°, FABRICANTE EVERLIGHT OU SIMILAR INCLUINDO ACESSÓRIOS DE INSTALAÇÃO. FORNECIMENTO E INSTALAÇÃO","UN",20,485.86,9717.2000000000007,null,"C_ELE0295","COMPOSIÇÃO PRÓPRIA COM BASE NA SINAPI-10-2022",397.11,485.86,null,"COMPOSIÇÃO PRÓPRIA","BDI DE OBRA"]
["1.2.5.6","KIT SPOT RECUADO QUADRADO, INCLUSO LÂMPADA DICROICA GU10, 6W 36° 2700K, BRANCO INCLUINDO ACESSÓRIOS DE INSTALAÇÃO. FORNECIMENTO E INSTALAÇÃO","UN",3,102.54,307.62,null,"C_ELE0296","COMPOSIÇÃO PRÓPRIA COM BASE NA SINAPI-10-2022",83.81,102.54,null,"COMPOSIÇÃO PRÓPRIA","BDI DE OBRA"]
["1.2.5.7","KIT SPOT RECUADO QUADRADO, INCLUSO LÂMPADA DICROICA GU10, 6W 36° 2700K, PRETO INCLUINDO ACESSÓRIOS DE INSTALAÇÃO. FORNECIMENTO E INSTALAÇÃO","UN",7,102.54,717.78,null,"C_ELE0296","COMPOSIÇÃO PRÓPRIA COM BASE NA SINAPI-10-2022",83.81,102.54,null,"COMPOSIÇÃO PRÓPRIA","BDI DE OBRA"]
["1.2.5.8","MINI SPOT LED QUADRADO, 1,5W PARA MÓVEIS 2700K 90LM, PRETO OU BRANCO INCLUINDO ACESSÓRIOS DE INSTALAÇÃO. FORNECIMENTO E INSTALAÇÃO","UN",6,112.1,672.6,null,"C_ELE0297","COMPOSIÇÃO PRÓPRIA COM BASE NA SINAPI-10-2022",91.62,112.1,null,"COMPOSIÇÃO PRÓPRIA","BDI DE OBRA"]
["1.2.5.9","PERFIL LINEAR DE SOBREPOR FIT 15 (NEWLINE OU SIMILAR) - BR 3000MM. FORNECIMENTO E INSTALAÇÃO","UN",13,300.39,3905.07,null,"C_ELE0322",{"$f":"IF(M263=\"COMPOSIÇÃO\",LEFT(RIGHT(CAMINHO_DO_BD,19),14),IF(M263=\"INSUMO\",\"INSUMO \" & LEFT(RIGHT(CAMINHO_DO_BD,19),14),IF(M263=\"COMPOSIÇÃO PRÓPRIA\",\"COMPOSIÇÃO PRÓPRIA COM BASE NA \" & LEFT(RIGHT(CAMINHO_DO_BD,19),14),\"PREÇO MÉDIO DE ORÇAMENTOS\")))","v":"COMPOSIÇÃO PRÓPRIA COM BASE NA SINAPI-10-2022"},245.52,{"$f":"ROUND(J263*(1+BDI),2)","v":300.39},null,"COMPOSIÇÃO PRÓPRIA","BDI DE OBRA"]
["1.2.5.10","LUMINÁRIA DIFUSA / LINEAR DE SOBREPOR PARA PERFIL FIT 15 - 17,6 W / 127 V  - DIMENSÕES 1010 X 15 X 17 MM (NEWLINE OU SIMILAR). FORNECIMENTO E INSTALAÇÃO","UN",14,884.1,12377.4,null,"C_ELE0323","COMPOSIÇÃO PRÓPRIA COM BASE NA SINAPI-10-2022",722.6,884.1,null,"COMPOSIÇÃO PRÓPRIA","BDI DE OBRA"]
["1.2.5.11","LUMINÁRIA DIFUSA / LINEAR DE SOBREPOR PARA PERFIL FIT 15 - 8,8 W / 127 V  - DIMENSÕES 510 X 15 X 17 MM (NEWLINE OU SIMILAR). FORNECIMENTO E INSTALAÇÃO","UN",2,487.65,975.3,null,"C_ELE0324","COMPOSIÇÃO PRÓPRIA COM BASE NA SINAPI-10-2022",398.57,487.65,null,"COMPOSIÇÃO PRÓPRIA","BDI DE OBRA"]
["1.2.5.12","LUMINÁRIA PENDENTE LED PARA PERFIL FIT 15 RETANGULAR 3000K 26,8W 110V - DIMENSÕES 1,7X151X2CM DE ALUMÍNIO - (NEWLINE OU SIMILAR). FORNECIMENTO E INSTALAÇÃO","UN",1,1505.57,1505.57,null,"C_ELE0325","COMPOSIÇÃO PRÓPRIA COM BASE NA SINAPI-10-2022",1230.54,1505.57,null,"COMPOSIÇÃO PRÓPRIA","BDI DE OBRA"]
["1.2.5.13","PENDENTE LED PARA PERFIL  FIT 15 CILÍNDRICO  3000K 3,7W BIVOLT 40 X Ø 2,8 CM ALUMINIO - (NEWLINE OU SIMILAR). FORNECIMENTO E INSTALAÇÃO","UN",3,585.32000000000005,1755.96,null,"C_ELE0326","COMPOSIÇÃO PRÓPRIA COM BASE NA SINAPI-10-2022",478.4,585.32000000000005,null,"COMPOSIÇÃO PRÓPRIA","BDI DE OBRA"]
["1.2.5.14","SPOT DIRECIONÁVEL LED PARA PERFIL FIT15 - 5W / 127 V -   DIM 28X28X120 MM - (NEWLINE OU SIMILAR). FORNECIMENTO E INSTALAÇÃO","UN",21,471.1,9893.1,null,"C_ELE0327","COMPOSIÇÃO PRÓPRIA COM BASE NA SINAPI-10-2022",385.04,471.1,null,"COMPOSIÇÃO PRÓPRIA","BDI DE OBRA"]
["1.2.5.15","LUMINÁRIA (PERFIL) STANDARD LINEAR EMBUTIR LED FIT 15 INTEGRADO - TETO - 14W 24V - DIM 1000 X 25 X 40 MM DE ALUMUNIO E ACRILICO (NEWLINE OU SIMILAR)   . FORNECIMENTO E INSTALAÇÃO","UN",2,557.35,1114.7,null,"C_ELE0328","COMPOSIÇÃO PRÓPRIA COM BASE NA SINAPI-10-2022",455.54,557.35,null,"COMPOSIÇÃO PRÓPRIA","BDI DE OBRA"]
["1.2.5.16","LUMINÁRIA (PERFIL) STANDARD LINEAR EMBUTIR LED FIT 15 INTEGRADO - JUNÇÃO - 5,6W 24V - DIM 230 X 25 X 230 MM DE ALUMUNIO E ACRILICO (NEWLINE OU SIMILAR)   . FORNECIMENTO E INSTALAÇÃO","UN",2,321.22000000000003,642.44000000000005,null,"C_ELE0329","COMPOSIÇÃO PRÓPRIA COM BASE NA SINAPI-10-2022",262.54000000000002,321.22000000000003,null,"COMPOSIÇÃO PRÓPRIA","BDI DE OBRA"]
["1.2.5.17","LUMINÁRIA (PERFIL) STANDARD LINEAR EMBUTIR LED FIT 15 INTEGRADO - PAREDE - 28,7W 24V - DIM 2000 X 25 X 40 MM DE ALUMUNIO E ACRILICO (NEWLINE OU SIMILAR)   . FORNECIMENTO E INSTALAÇÃO","UN",3,991.7,2975.1,null,"C_ELE0330","COMPOSIÇÃO PRÓPRIA COM BASE NA SINAPI-10-2022",810.54,991.7,null,"COMPOSIÇÃO PRÓPRIA","BDI DE OBRA"]
["1.2.5.18","LUMINÁRIA (PERFIL) STANDARD LINEAR EMBUTIR LED FIT15 INTEGRADO - PAREDE - 37,8W 24V - DIM 2700 X 25 X 40 MM DE ALUMUNIO E ACRILICO (NEWLINE OU SIMILAR). FORNECIMENTO E INSTALAÇÃO","UN",1,1227.22,1227.22,null,"C_ELE0331","COMPOSIÇÃO PRÓPRIA COM BASE NA SINAPI-10-2022",1003.04,1227.22,null,"COMPOSIÇÃO PRÓPRIA","BDI DE OBRA"]
["1.2.5.19","PERFIL RETANGULAR SLED  9005  4,8W, 12 VDC, 2700K, 580 LM – PAREDE  1500X8X17  (MISTER LED OU SIMILAR)  . FORNECIMENTO E INSTALAÇÃO","UN",4,411.14,1644.56,null,"C_ELE0332","COMPOSIÇÃO PRÓPRIA COM BASE NA SINAPI-10-2022",336.04,411.14,null,"COMPOSIÇÃO PRÓPRIA","BDI DE OBRA"]
["1.2.5.20","PERFIL RETANGULAR SLED  9005  4,8W, 12 VDC, 2700K, 580 LM – TETO  1000X8X17  (MISTER LED OU SIMILAR)  . FORNECIMENTO E INSTALAÇÃO","UN",8,279.01,2232.08,null,"C_ELE0333","COMPOSIÇÃO PRÓPRIA COM BASE NA SINAPI-10-2022",228.04,279.01,null,"COMPOSIÇÃO PRÓPRIA","BDI DE OBRA"]
["1.2.5.21","PERFIL RETANGULAR SLED  9005  4,8W, 12 VDC, 2700K,  580 LM – JUNÇÃO  CANTO 90°  (MISTER LED OU SIMILAR)  . FORNECIMENTO E INSTALAÇÃO","UN",17,304.7,5179.8999999999996,null,"C_ELE0334","COMPOSIÇÃO PRÓPRIA COM BASE NA SINAPI-10-2022",249.04,304.7,null,"COMPOSIÇÃO PRÓPRIA","BDI DE OBRA"]
["1.2.5.22","PERFIL RETANGULAR SLED  9005  4,8W, 12 VDC, 2700K, 580 LM – PAREDE  2500X8X17  (MISTER LED OU SIMILAR) . FORNECIMENTO E INSTALAÇÃO","UN",4,671.75,2687,null,"C_ELE0335","COMPOSIÇÃO PRÓPRIA COM BASE NA SINAPI-10-2022",549.04,671.75,null,"COMPOSIÇÃO PRÓPRIA","BDI DE OBRA"]
["1.2.5.23","PERFIL RETANGULAR SLED  9005  4,8W, 12 VDC, 2700K, 580 LM – 1900X8X17  (MISTER LED OU SIMILAR). FORNECIMENTO E INSTALAÇÃO","UN",1,515.75,515.75,null,"C_ELE0336","COMPOSIÇÃO PRÓPRIA COM BASE NA SINAPI-10-2022",421.54,515.75,null,"COMPOSIÇÃO PRÓPRIA","BDI DE OBRA"]
["1.2.5.24","PERFIL RETANGULAR SLED  9005  4,8W, 12 VDC, 2700K, 580 LM – 950X8X17  (MISTER LED OU SIMILAR). FORNECIMENTO E INSTALAÇÃO","UN",1,263.70999999999998,263.70999999999998,null,"C_ELE0337","COMPOSIÇÃO PRÓPRIA COM BASE NA SINAPI-10-2022",215.54,263.70999999999998,null,"COMPOSIÇÃO PRÓPRIA","BDI DE OBRA"]
["1.2.5.25","PERFIL RETANGULAR SLED  9005  4,8W, 12 VDC, 2700K, 580 LM – TETO  2000X8X17  (MISTER LED OU SIMILAR). FORNECIMENTO E INSTALAÇÃO","UN",2,723.14,1446.28,null,"C_ELE0338","COMPOSIÇÃO PRÓPRIA COM BASE NA SINAPI-10-2022",591.04,723.14,null,"COMPOSIÇÃO PRÓPRIA","BDI DE OBRA"]
["1.2.5.26","PERFIL RETANGULAR SLED  9005  4,8W, 12 VDC, 2700K, 580 LM – JUNÇÃO  PONTA FINAL  (MISTER LED OU SIMILAR). FORNECIMENTO E INSTALAÇÃO","UN",4,304.7,1218.8,null,"C_ELE0339","COMPOSIÇÃO PRÓPRIA COM BASE NA SINAPI-10-2022",249.04,304.7,null,"COMPOSIÇÃO PRÓPRIA","BDI DE OBRA"]
["1.2.5.27","FITA DE LED 6W/M 12 V  IP 20  3000K - FONTE SLIM DC 12 V. FORNECIMENTO E INSTALAÇÃO","M",51.6,52.4,2703.84,null,"C_ELE0340","COMPOSIÇÃO PRÓPRIA COM BASE NA SINAPI-10-2022",42.83,52.4,null,"COMPOSIÇÃO PRÓPRIA","BDI DE OBRA"]
["1.2.5.28","FITA DE NEON LED FLEX 7,4W/M  3000K 12V IP67 - FONTE SLIM DC 12 V. FORNECIMENTO E INSTALAÇÃO","M",6.5,122,793,null,"C_ELE0341","COMPOSIÇÃO PRÓPRIA COM BASE NA SINAPI-10-2022",99.71,122,null,"COMPOSIÇÃO PRÓPRIA","BDI DE OBRA"]
["1.2.5.29","FONTE SLIM DC 24 V 6,25 A 150W BIVOLT. FORNECIMENTO E INSTALAÇÃO","UN",4,159.01,636.04,null,"C_ELE0342","COMPOSIÇÃO PRÓPRIA COM BASE NA SINAPI-10-2022",129.96,159.01,null,"COMPOSIÇÃO PRÓPRIA","BDI DE OBRA"]
["1.2.5.30","FONTE 12,5 A 12 V 150W BIVOLT. FORNECIMENTO E INSTALAÇÃO","UN",27,137.19,3704.13,null,"C_ELE0343",{"$f":"IF(M284=\"COMPOSIÇÃO\",LEFT(RIGHT(CAMINHO_DO_BD,19),14),IF(M284=\"INSUMO\",\"INSUMO \" & LEFT(RIGHT(CAMINHO_DO_BD,19),14),IF(M284=\"COMPOSIÇÃO PRÓPRIA\",\"COMPOSIÇÃO PRÓPRIA COM BASE NA \" & LEFT(RIGHT(CAMINHO_DO_BD,19),14),\"PREÇO MÉDIO DE ORÇAMENTOS\")))","v":"COMPOSIÇÃO PRÓPRIA COM BASE NA SINAPI-10-2022"},112.13,{"$f":"ROUND(J284*(1+BDI),2)","v":137.19},null,"COMPOSIÇÃO PRÓPRIA","BDI DE OBRA"]
["1.2.5.31","REMOÇÃO DE LUMINÁRIAS, DE FORMA MANUAL, SEM REAPROVEITAMENTO. AF_12/2017","UN",65,1.41,91.65,null,"97665",{"$f":"IF(M285=\"COMPOSIÇÃO\",LEFT(RIGHT(CAMINHO_DO_BD,19),14),IF(M285=\"INSUMO\",\"INSUMO \" & LEFT(RIGHT(CAMINHO_DO_BD,19),14),IF(M285=\"COMPOSIÇÃO PRÓPRIA\",\"COMPOSIÇÃO PRÓPRIA COM BASE NA \" & LEFT(RIGHT(CAMINHO_DO_BD,19),14),\"PREÇO MÉDIO DE ORÇAMENTOS\")))","v":"SINAPI-10-2022"},1.1499999999999999,{"$f":"ROUND(J285*(1+BDI),2)","v":1.41},null,"COMPOSIÇÃO","BDI DE OBRA"]
[]
["1.2.6","TERMINAIS",null,null,null,{"$f":"SUBTOTAL(9,F288:F294)","v":209.84000000000003}]
[{"$f":"$A$287&\".\"&(ROW(A288)-ROW($A$287))","v":"1.2.6.1"},"Fornecimento e Instalação de Terminal de compressão 2,5mm² - PINO","UN",2,{"$f":"K288","v":2.42},{"$f":"ROUND(D288*E288,2)","v":4.84},null,"C_ELE0032.1",{"$f":"IF(M288=\"COMPOSIÇÃO\",LEFT(RIGHT(CAMINHO_DO_BD,19),14),IF(M288=\"INSUMO\",\"INSUMO \" & LEFT(RIGHT(CAMINHO_DO_BD,19),14),IF(M288=\"COMPOSIÇÃO PRÓPRIA\",\"COMPOSIÇÃO PRÓPRIA COM BASE NA \" & LEFT(RIGHT(CAMINHO_DO_BD,19),14),\"PREÇO MÉDIO DE ORÇAMENTOS\")))","v":"COMPOSIÇÃO PRÓPRIA COM BASE NA SINAPI-10-2022"},1.98,{"$f":"ROUND(J288*(1+BDI),2)","v":2.42},null,"COMPOSIÇÃO PRÓPRIA","BDI DE OBRA"]
[{"$f":"$A$287&\".\"&(ROW(A289)-ROW($A$287))","v":"1.2.6.2"},"Fornecimento e Instalação de Terminal de compressão 2,5mm² - GARFO","UN",2,2.42,4.84,null,"C_ELE0032.1","COMPOSIÇÃO PRÓPRIA COM BASE NA SINAPI-10-2022",1.98,2.42,null,"COMPOSIÇÃO PRÓPRIA","BDI DE OBRA"]
["1.2.6.3","Fornecimento e Instalação de Terminal de compressão 4mm² - PINO","UN",24,2.78,66.72,null,"C_ELE0032.2","COMPOSIÇÃO PRÓPRIA COM BASE NA SINAPI-10-2022",2.27,2.78,null,"COMPOSIÇÃO PRÓPRIA","BDI DE OBRA"]
["1.2.6.4","Fornecimento e Instalação de Terminal de compressão 4mm² - GARFO","UN",36,2.78,100.08,null,"C_ELE0032.2","COMPOSIÇÃO PRÓPRIA COM BASE NA SINAPI-10-2022",2.27,2.78,null,"COMPOSIÇÃO PRÓPRIA","BDI DE OBRA"]
["1.2.6.5","Fornecimento e Instalação de Terminal de compressão 6mm² - PINO","UN",8,2.78,22.24,null,"C_ELE0032.2","COMPOSIÇÃO PRÓPRIA COM BASE NA SINAPI-10-2022",2.27,2.78,null,"COMPOSIÇÃO PRÓPRIA","BDI DE OBRA"]
["1.2.6.6","Fornecimento e Instalação de Terminal de compressão 6mm² - GARFO","UN",4,2.78,11.12,null,"C_ELE0032.2","COMPOSIÇÃO PRÓPRIA COM BASE NA SINAPI-10-2022",2.27,2.78,null,"COMPOSIÇÃO PRÓPRIA","BDI DE OBRA"]
[]
["1.13","LOGICA E TELEFONICA",null,null,null,{"$f":"SUBTOTAL(9,F296:F318)","v":39043.119999999995}]
[]
["1.13.1","DISPOSITIVOS EMBUTIR",null,null,null,{"$f":"SUBTOTAL(9,F298:F300)","v":235.32}]
[{"$f":"$A$297&\".\"&(ROW(A298)-ROW($A$297))","v":"1.13.1.1"},"Fornecimento e Instalação de Placa 4x2\" - branca, 1 módulo p/ RJ45","UN",12,{"$f":"K298","v":9.9499999999999993},{"$f":"ROUND(D298*E298,2)","v":119.4},null,"C_TEL0016",{"$f":"IF(M298=\"COMPOSIÇÃO\",LEFT(RIGHT(CAMINHO_DO_BD,19),14),IF(M298=\"INSUMO\",\"INSUMO \" & LEFT(RIGHT(CAMINHO_DO_BD,19),14),IF(M298=\"COMPOSIÇÃO PRÓPRIA\",\"COMPOSIÇÃO PRÓPRIA COM BASE NA \" & LEFT(RIGHT(CAMINHO_DO_BD,19),14),\"PREÇO MÉDIO DE ORÇAMENTOS\")))","v":"COMPOSIÇÃO PRÓPRIA COM BASE NA SINAPI-10-2022"},8.1300000000000008,{"$f":"ROUND(J298*(1+BDI),2)","v":9.9499999999999993},null,"COMPOSIÇÃO PRÓPRIA","BDI DE OBRA"]
[{"$f":"$A$297&\".\"&(ROW(A299)-ROW($A$297))","v":"1.13.1.2"},"Fornecimento e Instalação de Placa 4x2\" - branca, 2 módulos p/ RJ45","UN",9,12.88,115.92,null,"C_TEL0017",{"$f":"IF(M299=\"COMPOSIÇÃO\",LEFT(RIGHT(CAMINHO_DO_BD,19),14),IF(M299=\"INSUMO\",\"INSUMO \" & LEFT(RIGHT(CAMINHO_DO_BD,19),14),IF(M299=\"COMPOSIÇÃO PRÓPRIA\",\"COMPOSIÇÃO PRÓPRIA COM BASE NA \" & LEFT(RIGHT(CAMINHO_DO_BD,19),14),\"PREÇO MÉDIO DE ORÇAMENTOS\")))","v":"COMPOSIÇÃO PRÓPRIA COM BASE NA SINAPI-10-2022"},10.53,{"$f":"ROUND(J299*(1+BDI),2)","v":12.88},null,"COMPOSIÇÃO PRÓPRIA","BDI DE OBRA"]
[]
["1.13.2","CABOS E CONECTORES",null,null,null,{"$f":"SUBTOTAL(9,F302:F308)","v":28027.14}]
[{"$f":"$A$301&\".\"&(ROW(A302)-ROW($A$301))","v":"1.13.2.1"},"FORNECIMENTO E INSTALAÇÃO DE CABO UTP-CAT.6 (23AWG) - 4 PARES","M",1300,{"$f":"K302","v":19.71},{"$f":"ROUND(D302*E302,2)","v":25623},null,"C_TEL0002",{"$f":"IF(M302=\"COMPOSIÇÃO\",LEFT(RIGHT(CAMINHO_DO_BD,19),14),IF(M302=\"INSUMO\",\"INSUMO \" & LEFT(RIGHT(CAMINHO_DO_BD,19),14),IF(M302=\"COMPOSIÇÃO PRÓPRIA\",\"COMPOSIÇÃO PRÓPRIA COM BASE NA \" & LEFT(RIGHT(CAMINHO_DO_BD,19),14),\"PREÇO MÉDIO DE ORÇAMENTOS\")))","v":"COMPOSIÇÃO PRÓPRIA COM BASE NA SINAPI-10-2022"},16.11,{"$f":"ROUND(J302*(1+BDI),2)","v":19.71},null,"COMPOSIÇÃO PRÓPRIA","BDI DE OBRA"]
[{"$f":"$A$301&\".\"&(ROW(A303)-ROW($A$301))","v":"1.13.2.2"},"Fornecimento e Instalação de Módulo de Tomada Fêmea RJ45 - Cat.6","UN",40,41.7,1668,null,"C_TEL0018.2","COMPOSIÇÃO PRÓPRIA COM BASE NA SINAPI-10-2022",34.08,41.7,null,"COMPOSIÇÃO PRÓPRIA","BDI DE OBRA"]
["1.13.2.3","Fornecimento e Instalação de Conector Macho RJ45 - Cat.6","UN",46,9.3699999999999992,431.02,null,"C_TEL0020","COMPOSIÇÃO PRÓPRIA COM BASE NA SINAPI-10-2022",7.66,9.3699999999999992,null,"COMPOSIÇÃO PRÓPRIA","BDI DE OBRA"]
["1.13.2.4","REMOÇÃO DE CANALETAS ELÉTRICAS/LÓGICAS, PVC OU METALICA, DE FORMA MANUAL, SEM REAPROVEITAMENTO","M",25,{"$f":"K305","v":1.73},{"$f":"ROUND(D305*E305,2)","v":43.25},null,"C_ELE0345","COMPOSIÇÃO PRÓPRIA COM BASE NA SINAPI-10-2022",1.41,1.73,null,"COMPOSIÇÃO PRÓPRIA","BDI DE OBRA"]
["1.13.2.5","REMOÇÃO DE CÂMERAS DE CFTV, DE FORMA MANUAL, SEM REAPROVEITAMENTO","UN",1,{"$f":"K306","v":0.87},{"$f":"ROUND(D306*E306,2)","v":0.87},null,"C_ELE0346","COMPOSIÇÃO PRÓPRIA COM BASE NA SINAPI-10-2022",0.71,0.87,null,"COMPOSIÇÃO PRÓPRIA","BDI DE OBRA"]
["1.13.2.6","REMOÇÃO DE  CABOS DE LÓGICA, DE FORMA MANUAL, SEM REAPROVEITAMENTO","M",300,{"$f":"K307","v":0.87},{"$f":"ROUND(D307*E307,2)","v":261},null,"C_ELE0347","COMPOSIÇÃO PRÓPRIA COM BASE NA SINAPI-10-2022",0.71,0.87,null,"COMPOSIÇÃO PRÓPRIA","BDI DE OBRA"]
[]
["1.13.3","RACK / EQUIPAMENTOS / ACESSÓRIOS ",null,null,null,{"$f":"SUBTOTAL(9,F310:F318)","v":10780.66}]
[{"$f":"$A$309&\".\"&(ROW(A310)-ROW($A$309))","v":"1.13.3.1"},"Fornecimento e Instalação de Rack Caixa padrão 19\" - porta acrílico fumê 16U x 570 mm","UN",1,{"$f":"K310","v":956.19},{"$f":"ROUND(D310*E310,2)","v":956.19},null,"C_TEL0005.1",{"$f":"IF(M310=\"COMPOSIÇÃO\",LEFT(RIGHT(CAMINHO_DO_BD,19),14),IF(M310=\"INSUMO\",\"INSUMO \" & LEFT(RIGHT(CAMINHO_DO_BD,19),14),IF(M310=\"COMPOSIÇÃO PRÓPRIA\",\"COMPOSIÇÃO PRÓPRIA COM BASE NA \" & LEFT(RIGHT(CAMINHO_DO_BD,19),14),\"PREÇO MÉDIO DE ORÇAMENTOS\")))","v":"COMPOSIÇÃO PRÓPRIA COM BASE NA SINAPI-10-2022"},834.3,{"$f":"ROUND(J310*(1+BDI_EQUI),2)","v":956.19},null,"COMPOSIÇÃO PRÓPRIA","BDI DIFERENCIADO"]
[{"$f":"$A$309&\".\"&(ROW(A311)-ROW($A$309))","v":"1.13.3.2"},"FORNECIMENTO E INSTALAÇÃO DE REGUA PARA 8 TOMADAS 2P+T 20A - 1U","UN",1,103.15,103.15,null,"C_TEL0025","COMPOSIÇÃO PRÓPRIA COM BASE NA SINAPI-10-2022",84.31,{"$f":"ROUND(J311*(1+BDI),2)","v":103.15},null,"COMPOSIÇÃO PRÓPRIA","BDI DE OBRA"]
["1.13.3.3","Fornecimento e Instalação de Voice panel 50 portas RJ45","UN",1,711.12,711.12,null,"C_TEL0023","COMPOSIÇÃO PRÓPRIA COM BASE NA SINAPI-10-2022",581.22,711.12,null,"COMPOSIÇÃO PRÓPRIA","BDI DE OBRA"]
["1.13.3.4","Fornecimento e Instalação de Guia de cabos fechado horizontal - 1U","UN",5,37.22,186.1,null,"C_TEL0010","COMPOSIÇÃO PRÓPRIA COM BASE NA SINAPI-10-2022",30.42,37.22,null,"COMPOSIÇÃO PRÓPRIA","BDI DE OBRA"]
["1.13.3.5","BANDEJA FRONTAL 1U x 500MM. FORNECIMENTO E INSTALAÇÃO","UN",1,161.12,161.12,null,"C_TEL0001.1","COMPOSIÇÃO PRÓPRIA COM BASE NA SINAPI-10-2022",131.69,161.12,null,"COMPOSIÇÃO PRÓPRIA","BDI DE OBRA"]
["1.13.3.6","SWITCH 24 PORTAS 10/100/1000 MBPS - 2U. FORNECIMENTO E INSTALAÇÃO","UN",1,1464.66,1464.66,null,"C_TEL0026","COMPOSIÇÃO PRÓPRIA COM BASE NA SINAPI-10-2022",1197.1099999999999,1464.66,null,"COMPOSIÇÃO PRÓPRIA","BDI DE OBRA"]
["1.13.3.7","ROTEADOR WI-FI, UNIFI UAP-AC-LR 2,4GHZ E 5GHZ - POE 24V, 0.5A, 2,4 Ghz: 24 dBm; 5 Ghz: 22 dBm, MONTAGEM PAREDE/TETO , Porta Ethernet 10/100/1000, 802.11 a / b / g / n / ac, DIMENSÕES: 175,7 x 175,7 x 43,2 mm - (UBITIQUI OU SIMILAR). FORNECIMENTO E INSTALAÇÃO","UN",4,1483.73,5934.92,null,"C_TEL0027",{"$f":"IF(M316=\"COMPOSIÇÃO\",LEFT(RIGHT(CAMINHO_DO_BD,19),14),IF(M316=\"INSUMO\",\"INSUMO \" & LEFT(RIGHT(CAMINHO_DO_BD,19),14),IF(M316=\"COMPOSIÇÃO PRÓPRIA\",\"COMPOSIÇÃO PRÓPRIA COM BASE NA \" & LEFT(RIGHT(CAMINHO_DO_BD,19),14),\"PREÇO MÉDIO DE ORÇAMENTOS\")))","v":"COMPOSIÇÃO PRÓPRIA COM BASE NA SINAPI-10-2022"},1294.5899999999999,{"$f":"ROUND(J316*(1+BDI_EQUI),2)","v":1483.73},null,"COMPOSIÇÃO PRÓPRIA","BDI DIFERENCIADO"]
["1.13.3.8","Injetor Conversor PoE Ativo PoE 200 AT 01, Normas IEEE 802.3, IEEE 802.3u, IEEE 802.3ab, IEEE 802.3af e IEEE 802.3at, 2 MÓDULOSRJ45 com velocidade de 10/100/1000 Mbps, Plug and Play (Intelbras ou SIMILAR). FORNECIMENTO E INSTALAÇÃO","UN",4,315.85000000000002,1263.4000000000001,null,"C_TEL0028",{"$f":"IF(M317=\"COMPOSIÇÃO\",LEFT(RIGHT(CAMINHO_DO_BD,19),14),IF(M317=\"INSUMO\",\"INSUMO \" & LEFT(RIGHT(CAMINHO_DO_BD,19),14),IF(M317=\"COMPOSIÇÃO PRÓPRIA\",\"COMPOSIÇÃO PRÓPRIA COM BASE NA \" & LEFT(RIGHT(CAMINHO_DO_BD,19),14),\"PREÇO MÉDIO DE ORÇAMENTOS\")))","v":"COMPOSIÇÃO PRÓPRIA COM BASE NA SINAPI-10-2022"},258.14999999999998,{"$f":"ROUND(J317*(1+BDI),2)","v":315.85000000000002},null,"COMPOSIÇÃO PRÓPRIA","BDI DE OBRA"]
[]
["1.14","CLIMATIZAÇÃO - AR CONDICIONADO",null,null,null,{"$f":"SUBTOTAL(9,F320:F331)","v":4802.66}]
[]
["1.14.1","REMANEJAMENTO / INSTALAÇÃO / FRIGORIGENA",null,null,null,{"$f":"SUBTOTAL(9,F322:F331)","v":4802.66}]
[{"$f":"$A$321&\".\"&(ROW(A322)-ROW($A$321))","v":"1.14.1.1"},"REMOÇÃO E INSTALAÇÃO DE AR CONDICIONADO SPLIT ON/OFF, FRIO 4 VIAS CASSETE (TETO), 48000 BTU/H ATÉ 60000BTU/H","UN",3,{"$f":"K322","v":440.15},{"$f":"ROUND(D322*E322,2)","v":1320.45},null,"C_AR010",{"$f":"IF(M322=\"COMPOSIÇÃO\",LEFT(RIGHT(CAMINHO_DO_BD,19),14),IF(M322=\"INSUMO\",\"INSUMO \" & LEFT(RIGHT(CAMINHO_DO_BD,19),14),IF(M322=\"COMPOSIÇÃO PRÓPRIA\",\"COMPOSIÇÃO PRÓPRIA COM BASE NA \" & LEFT(RIGHT(CAMINHO_DO_BD,19),14),\"PREÇO MÉDIO DE ORÇAMENTOS\")))","v":"COMPOSIÇÃO PRÓPRIA COM BASE NA SINAPI-10-2022"},359.75,{"$f":"ROUND(J322*(1+BDI),2)","v":440.15},null,"COMPOSIÇÃO PRÓPRIA","BDI DE OBRA"]
[{"$f":"$A$321&\".\"&(ROW(A323)-ROW($A$321))","v":"1.14.1.2"},"INSTALAÇÃO DE AR CONDICIONADO SPLIT ON/OFF, FRIO 4 VIAS CASSETE (TETO), 30000BTU/H","UN",1,386.32,386.32,null,"C_AR011",{"$f":"IF(M323=\"COMPOSIÇÃO\",LEFT(RIGHT(CAMINHO_DO_BD,19),14),IF(M323=\"INSUMO\",\"INSUMO \" & LEFT(RIGHT(CAMINHO_DO_BD,19),14),IF(M323=\"COMPOSIÇÃO PRÓPRIA\",\"COMPOSIÇÃO PRÓPRIA COM BASE NA \" & LEFT(RIGHT(CAMINHO_DO_BD,19),14),\"PREÇO MÉDIO DE ORÇAMENTOS\")))","v":"COMPOSIÇÃO PRÓPRIA COM BASE NA SINAPI-10-2022"},315.75,{"$f":"ROUND(J323*(1+BDI),2)","v":386.32},null,"COMPOSIÇÃO PRÓPRIA","BDI DE OBRA"]
["1.14.1.3","INSTALAÇÃO DE AR CONDICIONADO SPLIT ON/OFF, FRIO 4 VIAS CASSETE (TETO), 18000BTU/H","UN",1,341.25,341.25,null,"C_AR012","COMPOSIÇÃO PRÓPRIA COM BASE NA SINAPI-10-2022",278.91000000000003,341.25,null,"COMPOSIÇÃO PRÓPRIA","BDI DE OBRA"]
["1.14.1.4","TUBO DE COBRE FLEXIVEL, D = 3/8 \", E = 0,79 MM, PARA AR-CONDICIONADO/ INSTALACOES GAS RESIDENCIAIS E COMERCIAIS","M     ",12,35.049999999999997,420.6,null,39664,"INSUMO SINAPI-10-2022",28.65,35.049999999999997,null,"INSUMO","BDI DE OBRA"]
["1.14.1.5","TUBO DE COBRE FLEXIVEL, D = 5/8 \", E = 0,79 MM, PARA AR-CONDICIONADO/ INSTALACOES GAS RESIDENCIAIS E COMERCIAIS","M     ",12,59.14,709.68,null,39665,"INSUMO SINAPI-10-2022",48.34,59.14,null,"INSUMO","BDI DE OBRA"]
["1.14.1.6","TUBO DE ESPUMA DE POLIETILENO EXPANDIDO FLEXIVEL PARA ISOLAMENTO TERMICO DE TUBULACAO DE AR CONDICIONADO, AGUA QUENTE,  DN 1 1/2\", E= 10 MM","M     ",12,7.06,84.72,null,39707,{"$f":"IF(M327=\"COMPOSIÇÃO\",LEFT(RIGHT(CAMINHO_DO_BD,19),14),IF(M327=\"INSUMO\",\"INSUMO \" & LEFT(RIGHT(CAMINHO_DO_BD,19),14),IF(M327=\"COMPOSIÇÃO PRÓPRIA\",\"COMPOSIÇÃO PRÓPRIA COM BASE NA \" & LEFT(RIGHT(CAMINHO_DO_BD,19),14),\"PREÇO MÉDIO DE ORÇAMENTOS\")))","v":"INSUMO SINAPI-10-2022"},5.77,{"$f":"ROUND(J327*(1+BDI),2)","v":7.06},null,"INSUMO","BDI DE OBRA"]
["1.14.1.7","REMOÇÃO DE AR CONDICIONADO SPLIT ON/OFF, PISO TETO, 60.000 BTU/H, CICLO FRIO, COM ALOCAÇÃO EM LOCAL DEFINIDO PELA EQUIPE DE FISCALIZAÇÃO (SESI/SENAI) DA OBRA","UN",1,438.33,438.33,null,"C_AR013",{"$f":"IF(M328=\"COMPOSIÇÃO\",LEFT(RIGHT(CAMINHO_DO_BD,19),14),IF(M328=\"INSUMO\",\"INSUMO \" & LEFT(RIGHT(CAMINHO_DO_BD,19),14),IF(M328=\"COMPOSIÇÃO PRÓPRIA\",\"COMPOSIÇÃO PRÓPRIA COM BASE NA \" & LEFT(RIGHT(CAMINHO_DO_BD,19),14),\"PREÇO MÉDIO DE ORÇAMENTOS\")))","v":"COMPOSIÇÃO PRÓPRIA COM BASE NA SINAPI-10-2022"},358.26,{"$f":"ROUND(J328*(1+BDI),2)","v":438.33},null,"COMPOSIÇÃO PRÓPRIA","BDI DE OBRA"]
["1.14.1.8","REMOÇÃO E INSTALAÇÃO DE AR CONDICIONADO SPLIT ON/OFF, PISO TETO, 60.000 BTU/H, CICLO FRIO","UN",1,{"$f":"K329","v":418.51},{"$f":"ROUND(D329*E329,2)","v":418.51},null,"C_AR014",{"$f":"IF(M329=\"COMPOSIÇÃO\",LEFT(RIGHT(CAMINHO_DO_BD,19),14),IF(M329=\"INSUMO\",\"INSUMO \" & LEFT(RIGHT(CAMINHO_DO_BD,19),14),IF(M329=\"COMPOSIÇÃO PRÓPRIA\",\"COMPOSIÇÃO PRÓPRIA COM BASE NA \" & LEFT(RIGHT(CAMINHO_DO_BD,19),14),\"PREÇO MÉDIO DE ORÇAMENTOS\")))","v":"COMPOSIÇÃO PRÓPRIA COM BASE NA SINAPI-10-2022"},342.06,{"$f":"ROUND(J329*(1+BDI),2)","v":418.51},null,"COMPOSIÇÃO PRÓPRIA","BDI DE OBRA"]
["1.14.1.9","FORNECIMENTO E INSTALAÇÃO DE GÁS REFRIGERANTE R410A - DUPONT ","kg",12,{"$f":"K330","v":56.9},{"$f":"ROUND(D330*E330,2)","v":682.8},null,"C_AR_04",{"$f":"IF(M330=\"COMPOSIÇÃO\",LEFT(RIGHT(CAMINHO_DO_BD,19),14),IF(M330=\"INSUMO\",\"INSUMO \" & LEFT(RIGHT(CAMINHO_DO_BD,19),14),IF(M330=\"COMPOSIÇÃO PRÓPRIA\",\"COMPOSIÇÃO PRÓPRIA COM BASE NA \" & LEFT(RIGHT(CAMINHO_DO_BD,19),14),\"PREÇO MÉDIO DE ORÇAMENTOS\")))","v":"COMPOSIÇÃO PRÓPRIA COM BASE NA SINAPI-10-2022"},46.51,{"$f":"ROUND(J330*(1+BDI),2)","v":56.9},null,"COMPOSIÇÃO PRÓPRIA","BDI DE OBRA"]
[]
["1.15","INFRAESTRUTURA PARA INSTALAÇÃO DE AUDIO E VÍDEO",null,null,null,{"$f":"SUBTOTAL(9,F333:F344)","v":20443.830000000002}]
[]
["1.15.1","ACESSÓRIOS P/ELETRODUTO E USO GERAL",null,null,null,{"$f":"SUBTOTAL(9,F335:F336)","v":203.12}]
[{"$f":"$A$334&\".\"&(ROW(A335)-ROW($A$334))","v":"1.15.1.1"},"Fornecimento e Instalação de Conector Keystone HDMI Fêmea x Fêmea, em Módulo PVC Branco","UN",4,{"$f":"K335","v":50.78},{"$f":"ROUND(D335*E335,2)","v":203.12},null,"C_MUL0023",{"$f":"IF(M335=\"COMPOSIÇÃO\",LEFT(RIGHT(CAMINHO_DO_BD,19),14),IF(M335=\"INSUMO\",\"INSUMO \" & LEFT(RIGHT(CAMINHO_DO_BD,19),14),IF(M335=\"COMPOSIÇÃO PRÓPRIA\",\"COMPOSIÇÃO PRÓPRIA COM BASE NA \" & LEFT(RIGHT(CAMINHO_DO_BD,19),14),\"PREÇO MÉDIO DE ORÇAMENTOS\")))","v":"COMPOSIÇÃO PRÓPRIA COM BASE NA SINAPI-10-2022"},41.5,{"$f":"ROUND(J335*(1+BDI),2)","v":50.78},null,"COMPOSIÇÃO PRÓPRIA","BDI DE OBRA"]
[]
["1.15.2","CABOS",null,null,null,{"$f":"SUBTOTAL(9,F338:F340)","v":5373.88}]
[{"$f":"$A$337&\".\"&(ROW(A338)-ROW($A$337))","v":"1.15.2.1"},"Fornecimento e Instalação de Cabo polarizado, para sonorização 2x1,5mm² - bicolor","M",530,{"$f":"K338","v":9.34},{"$f":"ROUND(D338*E338,2)","v":4950.2},null,"C_MUL0001",{"$f":"IF(M338=\"COMPOSIÇÃO\",LEFT(RIGHT(CAMINHO_DO_BD,19),14),IF(M338=\"INSUMO\",\"INSUMO \" & LEFT(RIGHT(CAMINHO_DO_BD,19),14),IF(M338=\"COMPOSIÇÃO PRÓPRIA\",\"COMPOSIÇÃO PRÓPRIA COM BASE NA \" & LEFT(RIGHT(CAMINHO_DO_BD,19),14),\"PREÇO MÉDIO DE ORÇAMENTOS\")))","v":"COMPOSIÇÃO PRÓPRIA COM BASE NA SINAPI-10-2022"},7.63,{"$f":"ROUND(J338*(1+BDI),2)","v":9.34},null,"COMPOSIÇÃO PRÓPRIA","BDI DE OBRA"]
[{"$f":"$A$337&\".\"&(ROW(A339)-ROW($A$337))","v":"1.15.2.2"},"Fornecimento e Instalação de Cabo HDMI Blindado 2.0 FULL HD - 10 metros","UN",4,105.92,423.68,null,"C_MUL0020",{"$f":"IF(M339=\"COMPOSIÇÃO\",LEFT(RIGHT(CAMINHO_DO_BD,19),14),IF(M339=\"INSUMO\",\"INSUMO \" & LEFT(RIGHT(CAMINHO_DO_BD,19),14),IF(M339=\"COMPOSIÇÃO PRÓPRIA\",\"COMPOSIÇÃO PRÓPRIA COM BASE NA \" & LEFT(RIGHT(CAMINHO_DO_BD,19),14),\"PREÇO MÉDIO DE ORÇAMENTOS\")))","v":"COMPOSIÇÃO PRÓPRIA COM BASE NA SINAPI-10-2022"},86.57,{"$f":"ROUND(J339*(1+BDI),2)","v":105.92},null,"COMPOSIÇÃO PRÓPRIA","BDI DE OBRA"]
[]
["1.15.3","DISPOSITIVO MULTIMIDIA",null,null,null,{"$f":"SUBTOTAL(9,F342:F344)","v":14866.83}]
[{"$f":"$A$341&\".\"&(ROW(A342)-ROW($A$341))","v":"1.15.3.1"},"CAIXA ACUSTICA, 6,5\" DE EMBUTIR EM FORRO, COM TELA, COR BRANCA, SENSIBILIDADE MÍNIMA DE 89DB, POTÊNCIA DE 120W OU SUPERIOR, RESP. FREQUENCIA 65HZ A 20KHZ, 225X225X105 MM. FORNECIMENTO E INSTALAÇÃO (WAVE SOUND WSR120R OU SIMILAR)","UN",7,{"$f":"K342","v":990.34},{"$f":"ROUND(D342*E342,2)","v":6932.38},null,"C_MUL0025",{"$f":"IF(M342=\"COMPOSIÇÃO\",LEFT(RIGHT(CAMINHO_DO_BD,19),14),IF(M342=\"INSUMO\",\"INSUMO \" & LEFT(RIGHT(CAMINHO_DO_BD,19),14),IF(M342=\"COMPOSIÇÃO PRÓPRIA\",\"COMPOSIÇÃO PRÓPRIA COM BASE NA \" & LEFT(RIGHT(CAMINHO_DO_BD,19),14),\"PREÇO MÉDIO DE ORÇAMENTOS\")))","v":"COMPOSIÇÃO PRÓPRIA COM BASE NA SINAPI-10-2022"},809.43,{"$f":"ROUND(J342*(1+BDI),2)","v":990.34},null,"COMPOSIÇÃO PRÓPRIA","BDI DE OBRA"]
[{"$f":"$A$341&\".\"&(ROW(A343)-ROW($A$341))","v":"1.15.3.2"},"FORNECIMENTO E INSTALAÇÃO DE MODULO AMPLIFICADOR COM POTÊNCIA DE 120 WRMS, COM ENTRADA DE MICROFONE E AUXILIAR COM CONTROLES DE VOLUMES INDEPENDENTES, CONTROLE DE GRAVE E AGUDO (REF.: SLIM 2200 OU SIMILAR)","UN",5,1586.89,7934.45,null,"C_MUL0026",{"$f":"IF(M343=\"COMPOSIÇÃO\",LEFT(RIGHT(CAMINHO_DO_BD,19),14),IF(M343=\"INSUMO\",\"INSUMO \" & LEFT(RIGHT(CAMINHO_DO_BD,19),14),IF(M343=\"COMPOSIÇÃO PRÓPRIA\",\"COMPOSIÇÃO PRÓPRIA COM BASE NA \" & LEFT(RIGHT(CAMINHO_DO_BD,19),14),\"PREÇO MÉDIO DE ORÇAMENTOS\")))","v":"COMPOSIÇÃO PRÓPRIA COM BASE NA SINAPI-10-2022"},1384.6,{"$f":"ROUND(J343*(1+BDI_EQUI),2)","v":1586.89},null,"COMPOSIÇÃO PRÓPRIA","BDI DIFERENCIADO"]
[]
["1.16","LOUÇAS E METÁIS",null,null,null,{"$f":"SUBTOTAL(9,F346:F365)","v":21311.539999999997}]
[]
["1.16.1","BANHEIRO DO GABINETE SESI",null,null,null,{"$f":"SUBTOTAL(9,F348:F357)","v":16763.02}]
[{"$f":"$A$347&\".\"&(ROW(A348)-ROW($A$347))","v":"1.16.1.1"},"ESPELHO CRISTAL ESPESSURA 6MM, COM ESTRUTURA DE ALUMÍNIO PARA FIXAÇÃO RESSALTADA","M²",5.17,{"$f":"K348","v":1482.96},{"$f":"ROUND(D348*E348,2)","v":7666.9},null,"C_CIV0312",{"$f":"IF(M348=\"COMPOSIÇÃO\",LEFT(RIGHT(CAMINHO_DO_BD,19),14),IF(M348=\"INSUMO\",\"INSUMO \" & LEFT(RIGHT(CAMINHO_DO_BD,19),14),IF(M348=\"COMPOSIÇÃO PRÓPRIA\",\"COMPOSIÇÃO PRÓPRIA COM BASE NA \" & LEFT(RIGHT(CAMINHO_DO_BD,19),14),\"PREÇO MÉDIO DE ORÇAMENTOS\")))","v":"COMPOSIÇÃO PRÓPRIA COM BASE NA SINAPI-10-2022"},1212.06,{"$f":"ROUND(J348*(1+BDI),2)","v":1482.96},null,"COMPOSIÇÃO PRÓPRIA","BDI DE OBRA"]
["1.16.1.2","BACIA SUSPENSA REF.: DECA P.232.95, INCLUSO SUPORTE PARA FIXAÇÃO E ASSENTO AP.236.95","UN",1,{"$f":"K349","v":5743.3},{"$f":"ROUND(D349*E349,2)","v":5743.3},null,"C_CIV0313",{"$f":"IF(M349=\"COMPOSIÇÃO\",LEFT(RIGHT(CAMINHO_DO_BD,19),14),IF(M349=\"INSUMO\",\"INSUMO \" & LEFT(RIGHT(CAMINHO_DO_BD,19),14),IF(M349=\"COMPOSIÇÃO PRÓPRIA\",\"COMPOSIÇÃO PRÓPRIA COM BASE NA \" & LEFT(RIGHT(CAMINHO_DO_BD,19),14),\"PREÇO MÉDIO DE ORÇAMENTOS\")))","v":"COMPOSIÇÃO PRÓPRIA COM BASE NA SINAPI-10-2022"},4694.16,{"$f":"ROUND(J349*(1+BDI),2)","v":5743.3},null,"COMPOSIÇÃO PRÓPRIA","BDI DE OBRA"]
["1.16.1.3","FORNECIMENTO E INSTALAÇÃO DE DUCHA HIGIENICA REF. DECA 1948.C.ACT.CR, LINHA POLO OU SIMILAR","UN",1,{"$f":"K350","v":638.1},{"$f":"ROUND(D350*E350,2)","v":638.1},null,"C_CIV0316","COMPOSIÇÃO PRÓPRIA COM BASE NA SINAPI-10-2022",521.54,638.1,null,"COMPOSIÇÃO PRÓPRIA","BDI DE OBRA"]
["1.16.1.4","FORNECIMENTO E INSTALAÇÃO DE TORNEIRA DECA LINHA POLO 1191.C33","UN",1,{"$f":"K351","v":742.97},{"$f":"ROUND(D351*E351,2)","v":742.97},null,"C_CIV0324",{"$f":"IF(M351=\"COMPOSIÇÃO\",LEFT(RIGHT(CAMINHO_DO_BD,19),14),IF(M351=\"INSUMO\",\"INSUMO \" & LEFT(RIGHT(CAMINHO_DO_BD,19),14),IF(M351=\"COMPOSIÇÃO PRÓPRIA\",\"COMPOSIÇÃO PRÓPRIA COM BASE NA \" & LEFT(RIGHT(CAMINHO_DO_BD,19),14),\"PREÇO MÉDIO DE ORÇAMENTOS\")))","v":"COMPOSIÇÃO PRÓPRIA COM BASE NA SINAPI-10-2022"},607.25,{"$f":"ROUND(J351*(1+BDI),2)","v":742.97},null,"COMPOSIÇÃO PRÓPRIA","BDI DE OBRA"]
["1.16.1.5","FORNECIMENTO E INSTALAÇÃO DE ACABAMENTO PARA VÁLVULA DE DESCARGA FLAT - DOCOL OU SIMILAR","UN",1,{"$f":"K352","v":471.52},{"$f":"ROUND(D352*E352,2)","v":471.52},null,"C_CIV0318",{"$f":"IF(M352=\"COMPOSIÇÃO\",LEFT(RIGHT(CAMINHO_DO_BD,19),14),IF(M352=\"INSUMO\",\"INSUMO \" & LEFT(RIGHT(CAMINHO_DO_BD,19),14),IF(M352=\"COMPOSIÇÃO PRÓPRIA\",\"COMPOSIÇÃO PRÓPRIA COM BASE NA \" & LEFT(RIGHT(CAMINHO_DO_BD,19),14),\"PREÇO MÉDIO DE ORÇAMENTOS\")))","v":"COMPOSIÇÃO PRÓPRIA COM BASE NA SINAPI-10-2022"},385.39,{"$f":"ROUND(J352*(1+BDI),2)","v":471.52},null,"COMPOSIÇÃO PRÓPRIA","BDI DE OBRA"]
["1.16.1.6","FORNECIMENTO E INSTALAÇÃO VÁLVULA DE ESCOAMENTO REF.: DECA, MODELO CLICK OU SIMILAR","UN",1,{"$f":"K353","v":321.44},{"$f":"ROUND(D353*E353,2)","v":321.44},null,"C_CIV0320","COMPOSIÇÃO PRÓPRIA COM BASE NA SINAPI-10-2022",262.72000000000003,321.44,null,"COMPOSIÇÃO PRÓPRIA","BDI DE OBRA"]
["1.16.1.7","SIFÃO DO TIPO COPO EM METAL CROMADO 1 X 1.1/2\u0094 - FORNECIMENTO E INSTALAÇÃO. AF_01/2020","UN",1,{"$f":"K354","v":240.19},{"$f":"ROUND(D354*E354,2)","v":240.19},null,"86881","SINAPI-10-2022",196.31,240.19,null,"COMPOSIÇÃO","BDI DE OBRA"]
["1.16.1.8","FORNECIMENTO E INSTALAÇÃO DE ACABAMENTO PARA REGISTRO DE GAVETA CROMADO POLO DECA  OU SIMILAR","UN",1,{"$f":"K355","v":515.09},{"$f":"ROUND(D355*E355,2)","v":515.09},null,"C_CIV0319","COMPOSIÇÃO PRÓPRIA COM BASE NA SINAPI-10-2022",421,{"$f":"ROUND(J355*(1+BDI),2)","v":515.09},null,"COMPOSIÇÃO PRÓPRIA","BDI DE OBRA"]
["1.16.1.9","FORNECIMENTO E INSTALAÇÃO DE CABIDE POLO, MARCA DECA OU SIMILAR","UN",1,{"$f":"K356","v":423.51},{"$f":"ROUND(D356*E356,2)","v":423.51},null,"C_CIV0323","COMPOSIÇÃO PRÓPRIA COM BASE NA SINAPI-10-2022",346.15,423.51,null,"COMPOSIÇÃO PRÓPRIA","BDI DE OBRA"]
[]
["1.16.2","BANHEIRO DO GABINETE SENAI",null,null,null,{"$f":"SUBTOTAL(9,F359:F365)","v":4548.5200000000004}]
[{"$f":"$A$358&\".\"&(ROW(A359)-ROW($A$358))","v":"1.16.2.1"},"FORNECIMENTO E INSTALAÇÃO DE DUCHA HIGIENICA SEM REGISTRO, cod: 1983 C.AC, Deca ou similar ","UN",1,{"$f":"K359","v":886.16},{"$f":"ROUND(D359*E359,2)","v":886.16},null,"C_CIV0325",{"$f":"IF(M359=\"COMPOSIÇÃO\",LEFT(RIGHT(CAMINHO_DO_BD,19),14),IF(M359=\"INSUMO\",\"INSUMO \" & LEFT(RIGHT(CAMINHO_DO_BD,19),14),IF(M359=\"COMPOSIÇÃO PRÓPRIA\",\"COMPOSIÇÃO PRÓPRIA COM BASE NA \" & LEFT(RIGHT(CAMINHO_DO_BD,19),14),\"PREÇO MÉDIO DE ORÇAMENTOS\")))","v":"COMPOSIÇÃO PRÓPRIA COM BASE NA SINAPI-10-2022"},724.28,{"$f":"ROUND(J359*(1+BDI),2)","v":886.16},null,"COMPOSIÇÃO PRÓPRIA","BDI DE OBRA"]
[{"$f":"$A$358&\".\"&(ROW(A360)-ROW($A$358))","v":"1.16.2.2"},"FORNECIMENTO E INSTALAÇÃO DE TORNEIRA DECA MESA 1191 C33 BICA ALTA","UN",1,{"$f":"K360","v":1023.78},{"$f":"ROUND(D360*E360,2)","v":1023.78},null,"C_CIV0317","COMPOSIÇÃO PRÓPRIA COM BASE NA SINAPI-10-2022",836.76,{"$f":"ROUND(J360*(1+BDI),2)","v":1023.78},null,"COMPOSIÇÃO PRÓPRIA","BDI DE OBRA"]
["1.16.2.3","FORNECIMENTO E INSTALAÇÃO DE ACABAMENTO PARA VÁLVULA DE DESCARGA DECA SLIM, HYDRA MAX, COD: 4916.075, DECA OU SIMILAR","UN",1,{"$f":"K361","v":1157.7},{"$f":"ROUND(D361*E361,2)","v":1157.7},null,"C_CIV0321","COMPOSIÇÃO PRÓPRIA COM BASE NA SINAPI-10-2022",946.22,{"$f":"ROUND(J361*(1+BDI),2)","v":1157.7},null,"COMPOSIÇÃO PRÓPRIA","BDI DE OBRA"]
["1.16.2.4","FORNECIMENTO E INSTALAÇÃO DE ACABAMENTO PARA REGISTRO DE PRESSÃO PARA CHUVEIRO 1/2\" e 3/4\" com mecanismo 1/2 volta, cod:4916.C33.PQ.","UN",1,{"$f":"K362","v":542.28},{"$f":"ROUND(D362*E362,2)","v":542.28},null,"C_CIV0322","COMPOSIÇÃO PRÓPRIA COM BASE NA SINAPI-10-2022",443.22,{"$f":"ROUND(J362*(1+BDI),2)","v":542.28},null,"COMPOSIÇÃO PRÓPRIA","BDI DE OBRA"]
["1.16.2.5","FORNECIMENTO E INSTALAÇÃO DE ACABAMENTO PARA REGISTRO DE GAVETA CROMADO POLO DECA  OU SIMILAR","UN",1,515.09,515.09,null,"C_CIV0319","COMPOSIÇÃO PRÓPRIA COM BASE NA SINAPI-10-2022",421,{"$f":"ROUND(J363*(1+BDI),2)","v":515.09},null,"COMPOSIÇÃO PRÓPRIA","BDI DE OBRA"]
["1.16.2.6","FORNECIMENTO E INSTALAÇÃO DE CABIDE POLO, MARCA DECA OU SIMILAR","UN",1,423.51,423.51,null,"C_CIV0323","COMPOSIÇÃO PRÓPRIA COM BASE NA SINAPI-10-2022",346.15,423.51,null,"COMPOSIÇÃO PRÓPRIA","BDI DE OBRA"]
[]
["1.17","LIMPEZA FINAL PARA ENTREGA",null,null,null,{"$f":"SUBTOTAL(9,F367:F368)","v":297.92}]
[{"$f":"$A$366&\".\"&(ROW(A367)-ROW($A$366))","v":"1.17.1"},"LIMPEZA DE OBRA","M2",316.94,{"$f":"K367","v":0.94},{"$f":"ROUND(D367*E367,2)","v":297.92},null,"99806",{"$f":"IF(M367=\"COMPOSIÇÃO\",LEFT(RIGHT(CAMINHO_DO_BD,19),14),IF(M367=\"INSUMO\",\"INSUMO \" & LEFT(RIGHT(CAMINHO_DO_BD,19),14),IF(M367=\"COMPOSIÇÃO PRÓPRIA\",\"COMPOSIÇÃO PRÓPRIA COM BASE NA \" & LEFT(RIGHT(CAMINHO_DO_BD,19),14),\"PREÇO MÉDIO DE ORÇAMENTOS\")))","v":"SINAPI-10-2022"},0.77,{"$f":"ROUND(J367*(1+BDI),2)","v":0.94},null,"COMPOSIÇÃO","BDI DE OBRA"]
[]
["VALOR TOTAL",null,null,null,null,{"$f":"SUBTOTAL(9,F13:F368)","v":528266.32000000041}]

{"sheet":"COMPOSIÇÃO DO BDI","index":3,"n_rows":29,"n_cols":4,"rows_kept":29,"cut":false,"hidden":false,"merged":[[1,0,4,2],[27,0,27,1],[28,0,42,2],[5,0,5,1],[6,0,6,1],[10,0,10,1],[18,0,18,1]]}
[]
["COMPOSIÇÃO DO BDI OBRAS DE ENGENHARIA        "]
[]
[]
[]
["DESCRIÇÃO",null,"%"]
["GRUPO A"]
["A1","(AC) ADMINISTRAÇÃO CENTRAL - VARIA CONFORME O PORTE DA NÚMERO DE OBRAS EM ANDAMENTO, VOLUME FINANCEIRO DAS OBRAS A INICIAREM, ETC,  EM CADA   EM CADA EMPRESA - (ACORDAO 2622/2013 - 3,0% A 5,5%)",{"$f":"ROUND(AVERAGE(3%,5.5%),4)","v":4.2500000000000003E-2}]
[null,"TOTAL DO GRUPO A  =",{"$f":"SUM(C8)","v":4.2500000000000003E-2}]
[]
["GRUPO B"]
["B1","(DF) DESPESAS FINANCEIRAS - (ACORDAO 2622/2013 - 0,59% A 1,39%)",{"$f":"ROUND(AVERAGE(0.59%,1.39%),4)","v":9.9000000000000008E-3},"***deve estar dentro da média dos ultimos 3 meses antecedentes ao contrato"]
["B2","(S)   SEGUROS - (ACORDAO 2622/2013 SEGURO + GARANTIA - 0,8% A 1,0%)",{"$f":"ROUND(AVERAGE(0.4%,0.5%),4)","v":4.4999999999999997E-3}]
["B2","(G)   GARANTIAS - (ACORDAO 2622/2013 SEGURO + GARANTIA - 0,8% A 1,0%)",{"$f":"ROUND(AVERAGE(0.4%,0.5%),4)","v":4.4999999999999997E-3}]
["B3","(R)   TAXA DE RISCO E IMPREVISTOS - (ACORDAO 2622/2013 0,97% A 1,27%)",{"$f":"ROUND(AVERAGE(0.97%,1.27%),4)","v":1.12E-2}]
["B4","(L)    LUCRO (ACORDAO 2622/2013 6,16% A 8,96%)",{"$f":"ROUND(AVERAGE(6.16%,8.96%),4)","v":7.5600000000000001E-2}]
[null,"TOTAL DO GRUPO B  =",{"$f":"SUM(C12:C16)","v":0.1057}]
[]
["GRUPO C"]
["C1","ISS - (ISS% SOBRE 40% DE MÃO DE OBRA)"]
["C2","%MÃO DE OBRA",0.4]
["C3","ISS DO MUNICÍPIO",0.05]
["C4","SUBTOTAL ISS (C2 X C3) =",{"$f":"C22*C21","v":2.0000000000000004E-2}]
["C5","PIS",6.4999999999999997E-3]
["C6","COFINS",0.03]
[null,"TOTAL DO GRUPO C  =",{"$f":"SUM(C23:C25)","v":5.6500000000000002E-2}]
[]
["TOTAL BDI (FORMULA ACORDAO 2369/2011)",null,{"$f":"ROUND((1+C8+C13+C15+C14)*(1+C12)*(1+C16)/(1-C26)-1,4)","v":0.2235}]
[" BDI = (1+AC+S+R+G)x(1+DF)X(1+L))  -1\n                                  1-I\nOnde: \nAC = taxa representativa das despesas de rateio da Administração Central;\nS = taxa representativa de Seguros;\nR = taxa representativa de Riscos;\nG = taxa representativa de Garantias;\nDF = taxa representativa das Despesas Financeiras;\nL = taxa representativa do Lucro;\nI = taxa representativa da incidência de Impostos. \n\n  Observação:\n  i)   Composição do BDI, intervalos admissíveis e Fórmula de cálculo nos termos do Acórdão 2622/2013 do TCU."]

{"sheet":"COMPOSIÇÃO DO BDI REDUZIDO","index":4,"n_rows":29,"n_cols":3,"rows_kept":29,"cut":false,"hidden":false,"merged":[[28,0,42,2],[1,0,4,2],[5,0,5,1],[6,0,6,1],[10,0,10,1],[18,0,18,1],[27,0,27,1]]}
[]
["COMPOSIÇÃO DO BDI REDUZIDO                       "]
[]
[]
[]
["DESCRIÇÃO",null,"%"]
["GRUPO A"]
["A1","(AC) ADMINISTRAÇÃO CENTRAL - VARIA CONFORME O PORTE DA NÚMERO DE OBRAS EM ANDAMENTO, VOLUME FINANCEIRO DAS OBRAS A INICIAREM, ETC,  EM CADA   EM CADA EMPRESA - (ACORDAO 2622/2013 - 1,5% A 4,49%)",{"$f":"ROUND(AVERAGE(1.5%,4.49%),4)","v":0.03}]
[null,"TOTAL DO GRUPO A  =",{"$f":"SUM(C8)","v":0.03}]
[]
["GRUPO B"]
["B1","(DF) DESPESAS FINANCEIRAS - (ACORDAO 2622/2013 - 0,85% A 1,11%)",{"$f":"ROUND(AVERAGE(0.85%,1.11%),4)","v":9.7999999999999997E-3}]
["B2","(S)   SEGUROS - (ACORDAO 2622/2013 SEGURO + GARANTIA - 0,3% A 0,82%)",{"$f":"ROUND(AVERAGE(0.3%/2,0.82%/2),4)","v":2.8E-3}]
["B2","(G)   GARANTIAS - (ACORDAO 2622/2013 SEGURO + GARANTIA - 0,3% A 0,82%)",{"$f":"ROUND(AVERAGE(0.3%/2,0.82%/2),4)","v":2.8E-3}]
["B3","(R)   TAXA DE RISCO E IMPREVISTOS - (ACORDAO 2622/2013 0,56% A 0,89%)",{"$f":"ROUND(AVERAGE(0.56%,0.89%),4)","v":7.3000000000000001E-3}]
["B4","(L)    LUCRO (ACORDAO 2622/2013 3,50% A 6,22%)",{"$f":"ROUND(AVERAGE(3.5%,6.22%),4)","v":4.8599999999999997E-2}]
[null,"TOTAL DO GRUPO B  =",{"$f":"SUM(C12:C16)","v":7.1300000000000002E-2}]
[]
["GRUPO C"]
["C1","ISS - (ISS% SOBRE 40% DE MÃO DE OBRA)"]
["C2","%MÃO DE OBRA",0]
["C3","ISS DO MUNICÍPIO",0.05]
["C4","SUBTOTAL ISS (C2 X C3) =",{"$f":"C22*C21","v":0}]
["C5","PIS",6.4999999999999997E-3]
["C6","COFINS",0.03]
[null,"TOTAL DO GRUPO C  =",{"$f":"SUM(C23:C25)","v":3.6499999999999998E-2}]
[]
["TOTAL BDI (ACORDAO 2369/2011)",null,{"$f":"ROUND((1+C8+C13+C15+C14)*(1+C12)*(1+C16)/(1-C26)-1,4)","v":0.14610000000000001}]
[" BDI = (1+AC+S+R+G)x(1+DF)X(1+L))  -1\n                                  1-I\nOnde: \nAC = taxa representativa das despesas de rateio da Administração Central;\nS = taxa representativa de Seguros;\nR = taxa representativa de Riscos;\nG = taxa representativa de Garantias;\nDF = taxa representativa das Despesas Financeiras;\nL = taxa representativa do Lucro;\nI = taxa representativa da incidência de Impostos. \n\n  Observação:\n  i)   Composição do BDI, intervalos admissíveis e Fórmula de cálculo nos termos do Acórdão 2622/2013 do TCU."]